Body_Code,Body_Name,Service,GL Code,GL Code Desc,Posting Date,Doc Number,Doc Net Amount,Supplier Name
http://statistics.data.gov.uk/id/local-authority/38,Oxfordshire County Council,Preventative Defect Treatment,5526,Payments to Private Contractors,18/09/2020,2200797088,"-98,623.71",Skanska Construction UK Ltd Sp
http://statistics.data.gov.uk/id/local-authority/38,Oxfordshire County Council,COMM DRAWDOWN FUNDNG,8004,Design Consultant,24/09/2020,2200799043,"-62,100.06",AECOM Infrastructure & Environment
http://statistics.data.gov.uk/id/local-authority/38,Oxfordshire County Council,COLLTN AUTH GENERAL,5500,Payments to Other Local Authorities,21/09/2020,2200797948,"-58,613.47",West Oxfordshire District Council
http://statistics.data.gov.uk/id/local-authority/38,Oxfordshire County Council,WASTE TREATMENT,5500,Payments to Other Local Authorities,18/09/2020,3110825620,"-34,250.00",Oxford Direct Services Ltd
http://statistics.data.gov.uk/id/local-authority/38,Oxfordshire County Council,LD Continuing Care  Care Homes  Under 65,5687,,10/09/2020,3110821960,"-24,552.38",LEONARD CHESHIRE DISABILITY
http://statistics.data.gov.uk/id/local-authority/38,Oxfordshire County Council,Care Homes - Over 65 Physical Sypport,5686,,10/09/2020,3110819586,"-24,452.87",Orders of St John
http://statistics.data.gov.uk/id/local-authority/38,Oxfordshire County Council,Care Homes - Over 65 Physical Sypport,5687,,10/09/2020,3110821134,"-24,376.64",Chacombe Park Care Home
http://statistics.data.gov.uk/id/local-authority/38,Oxfordshire County Council,High Cost INMSS Placements,5537,Payments to Other Establishments,17/09/2020,3110825364,"-18,625.00",Kedleston Group
http://statistics.data.gov.uk/id/local-authority/38,Oxfordshire County Council,COMM DRAWDOWN FUNDNG,8102,Payments to main contractor,18/09/2020,2200797091,"-16,668.95",Skanska Construction UK Ltd Sp
http://statistics.data.gov.uk/id/local-authority/38,Oxfordshire County Council,Care Homes - Over 65 Memory & Cognition,5686,,10/09/2020,3110820011,"-16,114.29",Mon Choisy
http://statistics.data.gov.uk/id/local-authority/38,Oxfordshire County Council,Home Improvement Agency,4861,Hired and Contracted Services,21/09/2020,2200797850,"-16,043.91",Mears Home Improvement Ltd
http://statistics.data.gov.uk/id/local-authority/38,Oxfordshire County Council,Support at Home U65 Learning Disability,5688,,10/09/2020,3110819479,"-15,354.05",H F TRUST LTD
http://statistics.data.gov.uk/id/local-authority/38,Oxfordshire County Council,Funded Nursing Care  - Over 65,5692,,10/09/2020,3110819672,"-14,238.44",Freeland House
http://statistics.data.gov.uk/id/local-authority/38,Oxfordshire County Council,Continuing Care - Care Homes - Under 65,5687,,10/09/2020,3110819952,"-13,514.29",Mill House Nursing Home
http://statistics.data.gov.uk/id/local-authority/38,Oxfordshire County Council,Care Homes - Over 65 Mental Health,5686,,10/09/2020,3110822136,"-12,984.00",Orchard House (Harwell)
http://statistics.data.gov.uk/id/local-authority/38,Oxfordshire County Council,COMM DRAWDOWN FUNDNG,8004,Design Consultant,09/09/2020,2200793142,"-12,607.80",AECOM Infrastructure & Environment
http://statistics.data.gov.uk/id/local-authority/38,Oxfordshire County Council,COMM DRAWDOWN FUNDNG,8004,Design Consultant,16/09/2020,2200795987,"-12,607.80",AECOM Infrastructure & Environment
http://statistics.data.gov.uk/id/local-authority/38,Oxfordshire County Council,COMM DRAWDOWN FUNDNG,8004,Design Consultant,23/09/2020,2200798519,"-12,607.80",AECOM Infrastructure & Environment
http://statistics.data.gov.uk/id/local-authority/38,Oxfordshire County Council,COMM DRAWDOWN FUNDNG,8004,Design Consultant,24/09/2020,2200799049,"-12,607.80",AECOM Infrastructure & Environment
http://statistics.data.gov.uk/id/local-authority/38,Oxfordshire County Council,Interim Funding  - Care Homes - Over 65,5687,,10/09/2020,3110822171,"-12,442.85",Oxford Beaumont
http://statistics.data.gov.uk/id/local-authority/38,Oxfordshire County Council,Support at Home U65 Learning Disability,5688,,10/09/2020,3110820115,"-11,896.04",Style Acre
http://statistics.data.gov.uk/id/local-authority/38,Oxfordshire County Council,Care Homes - Under 65 Leaning Disability,5686,,10/09/2020,3110821855,"-11,051.50",H F TRUST LTD
http://statistics.data.gov.uk/id/local-authority/38,Oxfordshire County Council,COMM DRAWDOWN FUNDNG,8102,Payments to main contractor,18/09/2020,2200797119,"-10,570.22",Skanska Construction UK Ltd Sp
http://statistics.data.gov.uk/id/local-authority/38,Oxfordshire County Council,Care Homes - Under 65 Leaning Disability,5686,,10/09/2020,3110821860,"-10,149.57",H F TRUST LTD
http://statistics.data.gov.uk/id/local-authority/38,Oxfordshire County Council,Interim Funding  - Care Homes - Over 65,5687,,10/09/2020,3110822540,"-9,519.74",The Close Nursing Home
http://statistics.data.gov.uk/id/local-authority/38,Oxfordshire County Council,Health Acquired Brain Injury C Homes 65+,5687,,10/09/2020,3110822132,"-9,192.86",Orchard House (Harwell)
http://statistics.data.gov.uk/id/local-authority/38,Oxfordshire County Council,Care Homes - Over 65 Physical Sypport,5687,,10/09/2020,3110822266,"-8,970.00",RICHMOND VILLAGE WITNEY
http://statistics.data.gov.uk/id/local-authority/38,Oxfordshire County Council,CHC Fast Track - Care Homes - Over 65,5687,,10/09/2020,3110821320,"-8,820.00",CUMNOR HILL HOUSE
http://statistics.data.gov.uk/id/local-authority/38,Oxfordshire County Council,ALTERNATIVES TO CARE,4861,Hired and Contracted Services,10/09/2020,2200793869,"-8,742.82",Keen Thinking Ltd T/A Simplicity
http://statistics.data.gov.uk/id/local-authority/38,Oxfordshire County Council,Support at Home U65 Learning Disability,5688,,10/09/2020,3110821392,"-8,607.86",Choice Pathways Ltd
http://statistics.data.gov.uk/id/local-authority/38,Oxfordshire County Council,COMM DRAWDOWN FUNDNG,8102,Payments to main contractor,18/09/2020,2200797103,"-8,466.12",Skanska Construction UK Ltd Sp
http://statistics.data.gov.uk/id/local-authority/38,Oxfordshire County Council,Interim Funding  - Care Homes - Over 65,5687,,10/09/2020,3110821099,"-7,907.14",Chacombe Park Care Home
http://statistics.data.gov.uk/id/local-authority/38,Oxfordshire County Council,CHC Fast Track - Care Homes - Over 65,5687,,10/09/2020,3110822005,"-7,871.43",Lincroft Meadow
http://statistics.data.gov.uk/id/local-authority/38,Oxfordshire County Council,CHC Fast Track - Care Homes - Over 65,5687,,10/09/2020,3110822214,"-7,773.86",Penhurst Gardens
http://statistics.data.gov.uk/id/local-authority/38,Oxfordshire County Council,Support at Home 65+ Physical Support,5686,,10/09/2020,3110819724,"-7,404.29",Orders of St John
http://statistics.data.gov.uk/id/local-authority/38,Oxfordshire County Council,LANDLORD & TENANT,3980,Service Charges - Premises,16/09/2020,2200795847,"-7,076.00",Vale of White Horse District Counci
http://statistics.data.gov.uk/id/local-authority/38,Oxfordshire County Council,CHC Fast Track - Care Homes - Under 65,5687,,10/09/2020,3110822168,"-6,814.29",Oxford Beaumont
http://statistics.data.gov.uk/id/local-authority/38,Oxfordshire County Council,,1448,Blackfield Inc & Exp A/c,02/09/2020,3110814532,"-6,804.27",OCC One Time Vendor
http://statistics.data.gov.uk/id/local-authority/38,Oxfordshire County Council,,1448,Blackfield Inc & Exp A/c,02/09/2020,3110814533,"-6,804.27",OCC One Time Vendor
http://statistics.data.gov.uk/id/local-authority/38,Oxfordshire County Council,LANDLORD & TENANT,3980,Service Charges - Premises,16/09/2020,2200795846,"-6,478.00",Vale of White Horse District Counci
http://statistics.data.gov.uk/id/local-authority/38,Oxfordshire County Council,GYPSY & TRAVELLER SV,3956,Non System - Water - Metered,04/09/2020,2200791225,"-6,334.12",Anglian Water Business National
http://statistics.data.gov.uk/id/local-authority/38,Oxfordshire County Council,NURSERY ED FUND,5537,Payments to Other Establishments,17/09/2020,3110825300,"-6,298.66",Ladygrove Park Primary School
http://statistics.data.gov.uk/id/local-authority/38,Oxfordshire County Council,Care Homes - Under 65 Physical Sypport,5687,,10/09/2020,3110821825,"-6,260.16",Cedar Court Care Home
http://statistics.data.gov.uk/id/local-authority/38,Oxfordshire County Council,Care Homes - Over 65 Physical Sypport,5686,,10/09/2020,3110819988,"-6,246.28",OSJ  - Old Station House
http://statistics.data.gov.uk/id/local-authority/38,Oxfordshire County Council,BRIDGES GENERAL,5526,Payments to Private Contractors,18/09/2020,2200797092,"-6,124.26",Skanska Construction UK Ltd Sp
http://statistics.data.gov.uk/id/local-authority/38,Oxfordshire County Council,Reading Adoption Support Fund,4859,Medical and Counselling Fees,14/09/2020,2200794689,"-6,004.29",PACT (PARENTS & CHILDREN TOGETHER)
http://statistics.data.gov.uk/id/local-authority/38,Oxfordshire County Council,CAP CHRGES-SEC SCHS,8102,Payments to main contractor,15/09/2020,2200795447,"-5,690.00",Ridge
http://statistics.data.gov.uk/id/local-authority/38,Oxfordshire County Council,Support at Home 65+ Physical Support,5686,,10/09/2020,3110821508,"-5,564.28",Ferendune Court (Anchor Trust)
http://statistics.data.gov.uk/id/local-authority/38,Oxfordshire County Council,CAP CHRGES-PRIM SCHS,8102,Payments to main contractor,10/09/2020,2200793878,"-5,496.75",Ridge
http://statistics.data.gov.uk/id/local-authority/38,Oxfordshire County Council,Funded Nursing Care  - Over 65,5692,,10/09/2020,3110821714,"-5,359.41",Gracewell Healthcare Ltd
http://statistics.data.gov.uk/id/local-authority/38,Oxfordshire County Council,Procurement Rebates & Income,7203,Other Miscellaneous Income,16/09/2020,3110824874,"-5,341.38",ASKEWS & HOLTS LIBRARY SERVICES LTD
http://statistics.data.gov.uk/id/local-authority/38,Oxfordshire County Council,Care Homes - Over 65 Physical Sypport,5686,,10/09/2020,3110820006,"-5,318.58",OSJ  - Old Station House
http://statistics.data.gov.uk/id/local-authority/38,Oxfordshire County Council,Support at Home U65 Physical Support,5687,,10/09/2020,3110821295,"-4,928.57",Coxwell Hall & Mews Nursing Home
http://statistics.data.gov.uk/id/local-authority/38,Oxfordshire County Council,Support at Home U65 Learning Disability,5686,,10/09/2020,3110819469,"-4,868.58",Orders of St John
http://statistics.data.gov.uk/id/local-authority/38,Oxfordshire County Council,Care Homes - Over 65 Mental Health,5686,,10/09/2020,3110820036,"-4,868.58",Orders of St John
http://statistics.data.gov.uk/id/local-authority/38,Oxfordshire County Council,Wokingham Adoption Support Fund,4859,Medical and Counselling Fees,14/09/2020,2200794682,"-4,482.00",PACT (PARENTS & CHILDREN TOGETHER)
http://statistics.data.gov.uk/id/local-authority/38,Oxfordshire County Council,Care Homes - Over 65 Physical Sypport,5687,,10/09/2020,3110821685,"-4,451.76",GCH (St Katherines) Ltd
http://statistics.data.gov.uk/id/local-authority/38,Oxfordshire County Council,Procurement Rebates & Income,7203,Other Miscellaneous Income,16/09/2020,3110824876,"-4,370.04",GRUNDON WASTE MANAGEMENT LTD
http://statistics.data.gov.uk/id/local-authority/38,Oxfordshire County Council,Continuing Care - Care Homes - 65+,5687,,10/09/2020,3110822186,"-4,271.43",Oxford Beaumont
http://statistics.data.gov.uk/id/local-authority/38,Oxfordshire County Council,Interim Funding  - Care Homes - Over 65,5687,,10/09/2020,3110821100,"-4,000.00",Chacombe Park Care Home
http://statistics.data.gov.uk/id/local-authority/38,Oxfordshire County Council,Funded Nursing Care  - Over 65,5692,,10/09/2020,3110822429,"-3,967.41",St. Lukes Oxford - Free Nursing
http://statistics.data.gov.uk/id/local-authority/38,Oxfordshire County Council,West Berkshire Adoption Support Fund,4859,Medical and Counselling Fees,14/09/2020,2200794652,"-3,885.00",PACT (PARENTS & CHILDREN TOGETHER)
http://statistics.data.gov.uk/id/local-authority/38,Oxfordshire County Council,Care Homes - Over 65 Physical Sypport,5687,,10/09/2020,3110822367,"-3,834.38",Barchester Healthcare Homes Ltd
http://statistics.data.gov.uk/id/local-authority/38,Oxfordshire County Council,Care Homes - Under 65 Leaning Disability,5686,,10/09/2020,3110821857,"-3,822.88",H F TRUST LTD
http://statistics.data.gov.uk/id/local-authority/38,Oxfordshire County Council,MAINSTREAM-SECONDARY,4330,Transport to School Activities,24/09/2020,3110826837,"-3,710.00",Reading Transport Ltd
http://statistics.data.gov.uk/id/local-authority/38,Oxfordshire County Council,Care Homes - Over 65 Physical Sypport,5686,,10/09/2020,3110822117,"-3,688.72",Newland House
http://statistics.data.gov.uk/id/local-authority/38,Oxfordshire County Council,Care Homes - Over 65 Physical Sypport,5687,,10/09/2020,3110820405,"-3,608.57",SANCTUARY CARE LTD
http://statistics.data.gov.uk/id/local-authority/38,Oxfordshire County Council,COUNTY PRINT FINSHRS,5666,Hire of Admin Equipment,09/09/2020,2200792979,"-3,327.23",Annodata Limited
http://statistics.data.gov.uk/id/local-authority/38,Oxfordshire County Council,COUNTY PRINT FINSHRS,5666,Hire of Admin Equipment,14/09/2020,2200794629,"-3,327.23",Annodata Limited
http://statistics.data.gov.uk/id/local-authority/38,Oxfordshire County Council,COUNTY PRINT FINSHRS,5666,Hire of Admin Equipment,14/09/2020,2200794637,"-3,327.23",Annodata Limited
http://statistics.data.gov.uk/id/local-authority/38,Oxfordshire County Council,FOSTERING MAIN,5549,B*Fostering Allowance - Regulation 38,09/09/2020,3110817142,"-3,300.90",Redacted Personal Data 
http://statistics.data.gov.uk/id/local-authority/38,Oxfordshire County Council,Care Homes - Over 65 Leaning Disability,5686,,10/09/2020,3110821861,"-3,198.31",H F TRUST LTD
http://statistics.data.gov.uk/id/local-authority/38,Oxfordshire County Council,Funded Nursing Care  - Over 65,5692,,10/09/2020,3110822205,"-3,126.64",Penhurst Gardens
http://statistics.data.gov.uk/id/local-authority/38,Oxfordshire County Council,BRIDGES GENERAL,5526,Payments to Private Contractors,18/09/2020,2200797109,"-3,033.63",Skanska Construction UK Ltd Sp
http://statistics.data.gov.uk/id/local-authority/38,Oxfordshire County Council,Funded Nursing Care  - Over 65,5692,,10/09/2020,3110819978,"-2,995.26",Mill House Nursing Home
http://statistics.data.gov.uk/id/local-authority/38,Oxfordshire County Council,West Berkshire Adoption Support Fund,4859,Medical and Counselling Fees,14/09/2020,2200794654,"-2,856.00",PACT (PARENTS & CHILDREN TOGETHER)
http://statistics.data.gov.uk/id/local-authority/38,Oxfordshire County Council,Care Homes - Over 65 Mental Health,5686,,10/09/2020,3110820014,"-2,850.00",Mon Choisy
http://statistics.data.gov.uk/id/local-authority/38,Oxfordshire County Council,Care Homes - Over 65 Physical Sypport,5686,,10/09/2020,3110818527,"-2,840.00",Orders of St John
http://statistics.data.gov.uk/id/local-authority/38,Oxfordshire County Council,Care Homes - Over 65 Memory & Cognition,5687,,10/09/2020,3110822648,"-2,830.14",Four Seasons (Headington) Ltd
http://statistics.data.gov.uk/id/local-authority/38,Oxfordshire County Council,Care Homes - Over 65 Physical Sypport,5687,,10/09/2020,3110819946,"-2,766.57",Mill House Nursing Home
http://statistics.data.gov.uk/id/local-authority/38,Oxfordshire County Council,Care Homes - Under 65 Physical Sypport,5687,,10/09/2020,3110822078,"-2,739.34",Middletown Grange Care Home
http://statistics.data.gov.uk/id/local-authority/38,Oxfordshire County Council,Continuing Care - Care Homes - 65+,5687,,10/09/2020,3110822927,"-2,700.00",Caring Homes Healthcare Group Ltd
http://statistics.data.gov.uk/id/local-authority/38,Oxfordshire County Council,CAP CHRGES-PRIM SCHS,8102,Payments to main contractor,15/09/2020,2200795417,"-2,689.73",Ridge
http://statistics.data.gov.uk/id/local-authority/38,Oxfordshire County Council,Funded Nursing Care  - Over 65,5692,,10/09/2020,3110822654,"-2,679.97",Four Seasons (Headington) Ltd
http://statistics.data.gov.uk/id/local-authority/38,Oxfordshire County Council,Care Homes - Over 65 Physical Sypport,5686,,10/09/2020,3110819733,"-2,663.86",Orders of St John
http://statistics.data.gov.uk/id/local-authority/38,Oxfordshire County Council,Care Homes - Over 65 Physical Sypport,5686,,10/09/2020,3110821418,"-2,610.28",Enstone House
http://statistics.data.gov.uk/id/local-authority/38,Oxfordshire County Council,Care Homes - Over 65 Mental Health,5686,,10/09/2020,3110820274,"-2,537.14",Orders of St John
http://statistics.data.gov.uk/id/local-authority/38,Oxfordshire County Council,CHC Fast Track - Care Homes - Over 65,5687,,10/09/2020,3110822384,"-2,536.08",Stowford House
http://statistics.data.gov.uk/id/local-authority/38,Oxfordshire County Council,Delegated Health Tasks  - Over 65,5691,,08/09/2020,3110816308,"-2,424.00",Redacted Personal Data 
http://statistics.data.gov.uk/id/local-authority/38,Oxfordshire County Council,Care Homes - Over 65 Physical Sypport,5687,,10/09/2020,3110819384,"-2,408.80",Banbury Heights Nursing Home
http://statistics.data.gov.uk/id/local-authority/38,Oxfordshire County Council,MAINSTREAM-SECONDARY,4330,Transport to School Activities,24/09/2020,3110826835,"-2,385.00",Reading Transport Ltd
http://statistics.data.gov.uk/id/local-authority/38,Oxfordshire County Council,Support at Home U65 Learning Disability,5688,,10/09/2020,3110818849,"-2,341.14",H F TRUST LTD
http://statistics.data.gov.uk/id/local-authority/38,Oxfordshire County Council,Care Homes - Under 65 Mental Health,5687,,10/09/2020,3110822511,"-2,314.90",The Close Nursing Home
http://statistics.data.gov.uk/id/local-authority/38,Oxfordshire County Council,Care Homes - Over 65 Physical Sypport,5686,,10/09/2020,3110818754,"-2,296.43",Orders of St John
http://statistics.data.gov.uk/id/local-authority/38,Oxfordshire County Council,LANDLORD & TENANT,3980,Service Charges - Premises,16/09/2020,2200795848,"-2,076.00",Vale of White Horse District Counci
http://statistics.data.gov.uk/id/local-authority/38,Oxfordshire County Council,,1448,Blackfield Inc & Exp A/c,03/09/2020,3110815560,"-1,924.00",OCC One Time Vendor
http://statistics.data.gov.uk/id/local-authority/38,Oxfordshire County Council,,1448,Blackfield Inc & Exp A/c,03/09/2020,3110815561,"-1,924.00",OCC One Time Vendor
http://statistics.data.gov.uk/id/local-authority/38,Oxfordshire County Council,Independent Foster,5559,,09/09/2020,3110818277,"-1,910.70",Nexus Fostering Ltd
http://statistics.data.gov.uk/id/local-authority/38,Oxfordshire County Council,Support at Home U65 Learning Disability,5688,,10/09/2020,3110818630,"-1,813.50",ADVANCE HOUSING & SUPPORT LTD
http://statistics.data.gov.uk/id/local-authority/38,Oxfordshire County Council,AGENCY RESID - DISAB,5558,,02/09/2020,3110815104,"-1,800.00",Children & Adolescent Placement Pro
http://statistics.data.gov.uk/id/local-authority/38,Oxfordshire County Council,Continuing Care - Support at Home - U65,5691,,30/09/2020,3110829725,"-1,761.06",THORNBURY NURSING SERVICES
http://statistics.data.gov.uk/id/local-authority/38,Oxfordshire County Council,Support at Home 65+ Physical Support,5681,,10/09/2020,3110819618,"-1,745.29",Orders of St John
http://statistics.data.gov.uk/id/local-authority/38,Oxfordshire County Council,Care Homes - Over 65 Physical Sypport,5686,,10/09/2020,3110820033,"-1,745.29",Orders of St John
http://statistics.data.gov.uk/id/local-authority/38,Oxfordshire County Council,Support at Home U65 Learning Disability,5688,,10/09/2020,3110819443,"-1,712.70",H F TRUST LTD
http://statistics.data.gov.uk/id/local-authority/38,Oxfordshire County Council,Support at Home 65+ Physical Support,5689,,15/09/2020,3110823894,"-1,669.07",Oasis Private Care Ltd
http://statistics.data.gov.uk/id/local-authority/38,Oxfordshire County Council,Care Homes - Over 65 Memory & Cognition,5687,,10/09/2020,3110822627,"-1,563.71",Four Seasons (Headington) Ltd
http://statistics.data.gov.uk/id/local-authority/38,Oxfordshire County Council,,1448,Blackfield Inc & Exp A/c,03/09/2020,3110815555,"-1,553.37",OCC One Time Vendor
http://statistics.data.gov.uk/id/local-authority/38,Oxfordshire County Council,,1448,Blackfield Inc & Exp A/c,03/09/2020,3110815556,"-1,553.37",OCC One Time Vendor
http://statistics.data.gov.uk/id/local-authority/38,Oxfordshire County Council,COMM DRAWDOWN FUNDNG,8102,Payments to main contractor,18/09/2020,2200797100,"-1,497.40",Skanska Construction UK Ltd Sp
http://statistics.data.gov.uk/id/local-authority/38,Oxfordshire County Council,Care Homes - Under 65 Leaning Disability,5686,,10/09/2020,3110821853,"-1,434.64",H F TRUST LTD
http://statistics.data.gov.uk/id/local-authority/38,Oxfordshire County Council,Support at Home U65 Learning Disability,5688,,10/09/2020,3110819440,"-1,405.16",H F TRUST LTD
http://statistics.data.gov.uk/id/local-authority/38,Oxfordshire County Council,Care Homes - Over 65 Physical Sypport,5687,,10/09/2020,3110820699,"-1,358.23",ACER HEALTHCARE LTD
http://statistics.data.gov.uk/id/local-authority/38,Oxfordshire County Council,Continuing Care - Support at Home - U65,5691,,30/09/2020,3110829730,"-1,333.86",THORNBURY NURSING SERVICES
http://statistics.data.gov.uk/id/local-authority/38,Oxfordshire County Council,FOSTERING MAIN,5532,B*Fostering - Loan Equipment,15/09/2020,3110824316,"-1,329.71",Redacted Personal Data 
http://statistics.data.gov.uk/id/local-authority/38,Oxfordshire County Council,Property Cleaning,4060,Cleaning Materials,29/09/2020,2200800519,"-1,312.50",Jigsaw Commercial Ltd
http://statistics.data.gov.uk/id/local-authority/38,Oxfordshire County Council,Care Homes - Over 65 Memory & Cognition,5687,,10/09/2020,3110822613,"-1,228.87",Four Seasons (Headington) Ltd
http://statistics.data.gov.uk/id/local-authority/38,Oxfordshire County Council,Care Homes - Over 65 Physical Sypport,5687,,10/09/2020,3110819281,"-1,227.94",Orders of St John
http://statistics.data.gov.uk/id/local-authority/38,Oxfordshire County Council,High Cost INMSS Placements,5500,Payments to Other Local Authorities,09/09/2020,3110818191,"-1,206.33",Chiltern Way Academy
http://statistics.data.gov.uk/id/local-authority/38,Oxfordshire County Council,High Cost INMSS Placements,5500,Payments to Other Local Authorities,09/09/2020,3110818192,"-1,206.33",Chiltern Way Academy
http://statistics.data.gov.uk/id/local-authority/38,Oxfordshire County Council,GYPSY & TRAVELLER SV,3951,Non System - Electricity,23/09/2020,2200798639,"-1,204.30",NPOWER
http://statistics.data.gov.uk/id/local-authority/38,Oxfordshire County Council,Care Homes - Over 65 Physical Sypport,5686,,10/09/2020,3110819670,"-1,194.14",Orders of St John
http://statistics.data.gov.uk/id/local-authority/38,Oxfordshire County Council,Care Homes - Over 65 Physical Sypport,5686,,10/09/2020,3110820240,"-1,114.29",ST ANNES RESIDENTIAL  HOME
http://statistics.data.gov.uk/id/local-authority/38,Oxfordshire County Council,FOSTERING MAIN,5549,B*Fostering Allowance - Regulation 38,09/09/2020,3110817472,"-1,100.57",Redacted Personal Data 
http://statistics.data.gov.uk/id/local-authority/38,Oxfordshire County Council,COMM DRAWDOWN FUNDNG,8102,Payments to main contractor,16/09/2020,2200796067,"-1,035.05",Openreach - British Telecommunicati
http://statistics.data.gov.uk/id/local-authority/38,Oxfordshire County Council,Care Homes - Over 65 Physical Sypport,5686,,10/09/2020,3110821080,-995.00,CARE UK COMMUNITY PARTNERSHIPS LIMI
http://statistics.data.gov.uk/id/local-authority/38,Oxfordshire County Council,COMM DRAWDOWN FUNDNG,8102,Payments to main contractor,24/09/2020,2200799177,-968.55,Bouygues E&S Infrastructure UK Ltd
http://statistics.data.gov.uk/id/local-authority/38,Oxfordshire County Council,Continuing Care - Support at Home - U65,5691,,30/09/2020,3110829709,-943.86,THORNBURY NURSING SERVICES
http://statistics.data.gov.uk/id/local-authority/38,Oxfordshire County Council,Continuing Care - Support at Home - U65,5691,,30/09/2020,3110829703,-934.00,THORNBURY NURSING SERVICES
http://statistics.data.gov.uk/id/local-authority/38,Oxfordshire County Council,Continuing Care - Support at Home - U65,5691,,30/09/2020,3110829712,-934.00,THORNBURY NURSING SERVICES
http://statistics.data.gov.uk/id/local-authority/38,Oxfordshire County Council,Continuing Care - Support at Home - U65,5691,,30/09/2020,3110829715,-934.00,THORNBURY NURSING SERVICES
http://statistics.data.gov.uk/id/local-authority/38,Oxfordshire County Council,Continuing Care - Support at Home - U65,5691,,30/09/2020,3110829718,-934.00,THORNBURY NURSING SERVICES
http://statistics.data.gov.uk/id/local-authority/38,Oxfordshire County Council,Funded Nursing Care  - Over 65,5692,,10/09/2020,3110822488,-919.60,Tall Trees
http://statistics.data.gov.uk/id/local-authority/38,Oxfordshire County Council,Care Homes - Over 65 Physical Sypport,5687,,10/09/2020,3110820086,-918.36,Oakenholt Care Ltd
http://statistics.data.gov.uk/id/local-authority/38,Oxfordshire County Council,Care Homes - Over 65 Physical Sypport,5686,,10/09/2020,3110821536,-914.29,Ferendune Court (Anchor Trust)
http://statistics.data.gov.uk/id/local-authority/38,Oxfordshire County Council,,1448,Blackfield Inc & Exp A/c,02/09/2020,3110814538,-896.67,OCC One Time Vendor
http://statistics.data.gov.uk/id/local-authority/38,Oxfordshire County Council,,1448,Blackfield Inc & Exp A/c,02/09/2020,3110814539,-896.67,OCC One Time Vendor
http://statistics.data.gov.uk/id/local-authority/38,Oxfordshire County Council,Care Homes - Over 65 Physical Sypport,5687,,10/09/2020,3110822017,-893.15,Maria Malllaband Care Group
http://statistics.data.gov.uk/id/local-authority/38,Oxfordshire County Council,Continuing Care - Support at Home - U65,5691,,30/09/2020,3110829727,-871.78,THORNBURY NURSING SERVICES
http://statistics.data.gov.uk/id/local-authority/38,Oxfordshire County Council,PLACEMENTS- RELEVANT,5558,,02/09/2020,3110815109,-870.00,Children & Adolescent Placement Pro
http://statistics.data.gov.uk/id/local-authority/38,Oxfordshire County Council,Care Homes - Over 65 Physical Sypport,5687,,10/09/2020,3110820387,-859.71,Vale House
http://statistics.data.gov.uk/id/local-authority/38,Oxfordshire County Council,COMM DRAWDOWN FUNDNG,8004,Design Consultant,18/09/2020,2200797098,-857.86,Skanska Construction UK Ltd Sp
http://statistics.data.gov.uk/id/local-authority/38,Oxfordshire County Council,Care Homes - Over 65 Mental Health,5686,,10/09/2020,3110821656,-857.14,GCH (St Katherines) Ltd
http://statistics.data.gov.uk/id/local-authority/38,Oxfordshire County Council,Funded Nursing Care  - Over 65,5692,,10/09/2020,3110822754,-814.50,The Triangle Nursing Home
http://statistics.data.gov.uk/id/local-authority/38,Oxfordshire County Council,CHC Fast Track - Care Homes - Over 65,5687,,10/09/2020,3110822001,-814.29,Lincroft Meadow
http://statistics.data.gov.uk/id/local-authority/38,Oxfordshire County Council,Care Homes - Over 65 Physical Sypport,5687,,10/09/2020,3110818951,-811.71,Orders of St John
http://statistics.data.gov.uk/id/local-authority/38,Oxfordshire County Council,PLACEMENTS- RELEVANT,5558,,02/09/2020,3110815107,-750.00,Children & Adolescent Placement Pro
http://statistics.data.gov.uk/id/local-authority/38,Oxfordshire County Council,Care Homes - Over 65 Physical Sypport,5685,B*Cycle tracks,10/09/2020,3110819477,-736.75,Fewcott Healthcare Ltd
http://statistics.data.gov.uk/id/local-authority/38,Oxfordshire County Council,Funded Nursing Care  - Over 65,5692,,10/09/2020,3110819893,-735.68,Mill House Nursing Home
http://statistics.data.gov.uk/id/local-authority/38,Oxfordshire County Council,RBWM Adoption Support Fund,4859,Medical and Counselling Fees,25/09/2020,2200799643,-700.00,The Annex Project
http://statistics.data.gov.uk/id/local-authority/38,Oxfordshire County Council,Care Homes - Under 65 Leaning Disability,5686,,10/09/2020,3110821856,-688.46,H F TRUST LTD
http://statistics.data.gov.uk/id/local-authority/38,Oxfordshire County Council,Funded Nursing Care  - Over 65,5692,,10/09/2020,3110821764,-683.13,Green Pastures Christian NH
http://statistics.data.gov.uk/id/local-authority/38,Oxfordshire County Council,LEAVING CARE SOUTH,3942,Hire of Accommodation and Facilities,09/09/2020,3110818194,-678.00,Redacted Personal Data 
http://statistics.data.gov.uk/id/local-authority/38,Oxfordshire County Council,LEGAL SERVICES,5251,Legal Costs,22/09/2020,2200798391,-675.00,Miss Cecilia Barrett
http://statistics.data.gov.uk/id/local-authority/38,Oxfordshire County Council,COMM DRAWDOWN FUNDNG,8102,Payments to main contractor,18/09/2020,2200797105,-667.78,Skanska Construction UK Ltd Sp
http://statistics.data.gov.uk/id/local-authority/38,Oxfordshire County Council,,1448,Blackfield Inc & Exp A/c,02/09/2020,3110814527,-659.49,OCC One Time Vendor
http://statistics.data.gov.uk/id/local-authority/38,Oxfordshire County Council,,1448,Blackfield Inc & Exp A/c,02/09/2020,3110814528,-659.49,OCC One Time Vendor
http://statistics.data.gov.uk/id/local-authority/38,Oxfordshire County Council,Funded Nursing Care  - Over 65,5692,,10/09/2020,3110820319,-656.86,Vale House
http://statistics.data.gov.uk/id/local-authority/38,Oxfordshire County Council,FOSTERING MAIN,5548,B*Fostering - Special Rates & Plus Amou,22/09/2020,3110826272,-648.61,Redacted Personal Data 
http://statistics.data.gov.uk/id/local-authority/38,Oxfordshire County Council,Funded Nursing Care  - Over 65,5692,,10/09/2020,3110822632,-604.31,Four Seasons (Headington) Ltd
http://statistics.data.gov.uk/id/local-authority/38,Oxfordshire County Council,Funded Nursing Care  - Over 65,5692,,10/09/2020,3110822002,-604.31,Lincroft Meadow
http://statistics.data.gov.uk/id/local-authority/38,Oxfordshire County Council,Funded Nursing Care  - Over 65,5692,,10/09/2020,3110819005,-604.31,Orders of St John
http://statistics.data.gov.uk/id/local-authority/38,Oxfordshire County Council,Funded Nursing Care  - Over 65,5692,,10/09/2020,3110822056,-578.03,Merryfield Nursing Home
http://statistics.data.gov.uk/id/local-authority/38,Oxfordshire County Council,RBWM Adoption Support Fund,4859,Medical and Counselling Fees,14/09/2020,2200794691,-546.03,PACT (PARENTS & CHILDREN TOGETHER)
http://statistics.data.gov.uk/id/local-authority/38,Oxfordshire County Council,,1448,Blackfield Inc & Exp A/c,01/09/2020,3110812228,-534.56,OCC One Time Vendor
http://statistics.data.gov.uk/id/local-authority/38,Oxfordshire County Council,,1448,Blackfield Inc & Exp A/c,01/09/2020,3110812229,-534.56,OCC One Time Vendor
http://statistics.data.gov.uk/id/local-authority/38,Oxfordshire County Council,COMM DRAWDOWN FUNDNG,8004,Design Consultant,18/09/2020,2200797114,-526.56,Skanska Construction UK Ltd Sp
http://statistics.data.gov.uk/id/local-authority/38,Oxfordshire County Council,Funded Nursing Care  - Over 65,5692,,10/09/2020,3110822066,-525.49,Merryfield Nursing Home
http://statistics.data.gov.uk/id/local-authority/38,Oxfordshire County Council,Oxford Citywide Cycle & Ped Routes,5526,Payments to Private Contractors,18/09/2020,2200797110,-520.08,Skanska Construction UK Ltd Sp
http://statistics.data.gov.uk/id/local-authority/38,Oxfordshire County Council,MUSIC UNALLOCABLE,4314,"Other Trans Contract Costs (CRB, Car Sea",30/09/2020,2200800998,-520.00,Worths Motor Services Ltd
http://statistics.data.gov.uk/id/local-authority/38,Oxfordshire County Council,COUNTY PRINT FINSHRS,4236,Vehicle Equipment and Running Expen,24/09/2020,9300048580,-511.51,OCC County Print Finisher Cash
http://statistics.data.gov.uk/id/local-authority/38,Oxfordshire County Council,ATTACH TEAM,3105,Training related expenditure,22/09/2020,2200798152,-505.00,The Compassionate Mind Foundation
http://statistics.data.gov.uk/id/local-authority/38,Oxfordshire County Council,,1448,Blackfield Inc & Exp A/c,01/09/2020,3110812225,-504.17,OCC One Time Vendor
http://statistics.data.gov.uk/id/local-authority/38,Oxfordshire County Council,,1448,Blackfield Inc & Exp A/c,01/09/2020,3110812226,-504.17,OCC One Time Vendor
http://statistics.data.gov.uk/id/local-authority/38,Oxfordshire County Council,Wokingham Adoption Support Fund,6500,Government Grants (Revenue),30/09/2020,2200800823,500.00,2PIP Theraputic Services
http://statistics.data.gov.uk/id/local-authority/38,Oxfordshire County Council,Supervised Consumption APL,4934,,01/09/2020,3110818327,500.00,Bloxham Pharmacy (Chalice)
http://statistics.data.gov.uk/id/local-authority/38,Oxfordshire County Council,ROW MAINT,4861,Hired and Contracted Services,30/09/2020,2200800997,500.00,Buryhook Countryside Management
http://statistics.data.gov.uk/id/local-authority/38,Oxfordshire County Council,FOSTERING TEAM,4861,Hired and Contracted Services,01/09/2020,2200790156,500.00,Green Light People Solutions
http://statistics.data.gov.uk/id/local-authority/38,Oxfordshire County Council,FOSTERING TEAM,4861,Hired and Contracted Services,01/09/2020,2200790158,500.00,Green Light People Solutions
http://statistics.data.gov.uk/id/local-authority/38,Oxfordshire County Council,FOSTERING TEAM,4861,Hired and Contracted Services,01/09/2020,2200790159,500.00,Green Light People Solutions
http://statistics.data.gov.uk/id/local-authority/38,Oxfordshire County Council,Councillors Priorities Fund,4940,Other Services,17/09/2020,3110825312,500.00,Invicta Summer Academy Oxfordshire
http://statistics.data.gov.uk/id/local-authority/38,Oxfordshire County Council,Councillors Priorities Fund,4940,Other Services,17/09/2020,3110825315,500.00,Jericho Low Traffic Neighbourhood G
http://statistics.data.gov.uk/id/local-authority/38,Oxfordshire County Council,LEGAL SERVICES,5251,Legal Costs,11/09/2020,2200794324,500.00,June Rodgers
http://statistics.data.gov.uk/id/local-authority/38,Oxfordshire County Council,COVID-19 response COD,4790,"Publicity, Promotions and Advertisement",02/09/2020,2200790591,500.00,Newsquest Oxfordshire
http://statistics.data.gov.uk/id/local-authority/38,Oxfordshire County Council,HIGHWAYS GENERAL,5055,Insurance Costs,04/09/2020,3110815814,500.00,OCC One Time Vendor
http://statistics.data.gov.uk/id/local-authority/38,Oxfordshire County Council,Children's Social Care Covid-19 Addition,5555,Payments to Carers,10/09/2020,3110818312,500.00,OCC One Time Vendor
http://statistics.data.gov.uk/id/local-authority/38,Oxfordshire County Council,LEAVING CARE SOUTH,4861,Hired and Contracted Services,11/09/2020,3110822950,500.00,OCC One Time Vendor
http://statistics.data.gov.uk/id/local-authority/38,Oxfordshire County Council,HIGHWAYS GENERAL,5055,Insurance Costs,17/09/2020,3110825358,500.00,OCC One Time Vendor
http://statistics.data.gov.uk/id/local-authority/38,Oxfordshire County Council,HIGHWAYS GENERAL,5055,Insurance Costs,18/09/2020,3110825584,500.00,OCC One Time Vendor
http://statistics.data.gov.uk/id/local-authority/38,Oxfordshire County Council,EDUCATION & LEARNING MANAGEMENT,5251,Legal Costs,22/09/2020,3110825861,500.00,OCC One Time Vendor
http://statistics.data.gov.uk/id/local-authority/38,Oxfordshire County Council,HOUSING & IMMIGRATION & SOUTHWARK S17,5365,Non-Staff Subsistence and Expenses,28/09/2020,3110827382,500.00,Redacted Personal Data 
http://statistics.data.gov.uk/id/local-authority/38,Oxfordshire County Council,LANDLORD & TENANT,3945,Rent,26/09/2020,3500073003,500.00,Oxford City Council
http://statistics.data.gov.uk/id/local-authority/38,Oxfordshire County Council,Support at Home 65+ Physical Support,5899,Social Care - Direct Payments,02/09/2020,3110814255,500.00,Purple Conversation Com In Co (DP)
http://statistics.data.gov.uk/id/local-authority/38,Oxfordshire County Council,Support at Home 65+ Physical Support,5899,Social Care - Direct Payments,29/09/2020,3110828098,500.00,Purple Conversation Com In Co (DP)
http://statistics.data.gov.uk/id/local-authority/38,Oxfordshire County Council,HEARING IMP. TEAM,5668,Technical and Professional Consultant F,01/09/2020,2200790067,500.00,SignVideo - Significan't (UK) Ltd
http://statistics.data.gov.uk/id/local-authority/38,Oxfordshire County Council,Councillors Priorities Fund,4940,Other Services,29/09/2020,3110827445,500.00,Stanford in the Vale Parish Council
http://statistics.data.gov.uk/id/local-authority/38,Oxfordshire County Council,Councillors Priorities Fund,4940,Other Services,29/09/2020,3110827452,500.00,Sustainable Wantage
http://statistics.data.gov.uk/id/local-authority/38,Oxfordshire County Council,RBWM Adoption Support Fund,4859,Medical and Counselling Fees,02/09/2020,2200790406,500.00,The Annex Project
http://statistics.data.gov.uk/id/local-authority/38,Oxfordshire County Council,RBWM Adoption Support Fund,4859,Medical and Counselling Fees,08/09/2020,2200792663,500.00,The Annex Project
http://statistics.data.gov.uk/id/local-authority/38,Oxfordshire County Council,RBWM Adoption Support Fund,4859,Medical and Counselling Fees,30/09/2020,2200800795,500.00,The Annex Project
http://statistics.data.gov.uk/id/local-authority/38,Oxfordshire County Council,Councillors Priorities Fund,4940,Other Services,01/09/2020,3110812209,500.00,The Valentine Club
http://statistics.data.gov.uk/id/local-authority/38,Oxfordshire County Council,Support at Home 65+ Mental Health,5689,,15/09/2020,3110824114,500.50,Response Organisation
http://statistics.data.gov.uk/id/local-authority/38,Oxfordshire County Council,Support at Home U65 Learning Disability,5690,,10/09/2020,3110818915,501.30,Turnstyle
http://statistics.data.gov.uk/id/local-authority/38,Oxfordshire County Council,Support at Home U65 Learning Disability,5690,,10/09/2020,3110818429,501.43,ADVANCE HOUSING & SUPPORT LTD
http://statistics.data.gov.uk/id/local-authority/38,Oxfordshire County Council,Support at Home 65+ Physical Support,5689,,15/09/2020,3110823852,501.45,My Carer Ltd
http://statistics.data.gov.uk/id/local-authority/38,Oxfordshire County Council,LEAVING CARE CITY 1,3942,Hire of Accommodation and Facilities,10/09/2020,3110819267,502.00,Redacted Personal Data 
http://statistics.data.gov.uk/id/local-authority/38,Oxfordshire County Council,LIBRARY COLLECTIONS,4539,"Books, DVDs and CDs",02/09/2020,3110815523,502.11,ASKEWS & HOLTS LIBRARY SERVICES LTD
http://statistics.data.gov.uk/id/local-authority/38,Oxfordshire County Council,SM DISABILITIES,5554,Childrens' Social Care - Direct Payments,25/09/2020,3110827280,502.20,Redacted Personal Data 
http://statistics.data.gov.uk/id/local-authority/38,Oxfordshire County Council,Support at Home U65 Physical Support,5899,Social Care - Direct Payments,01/09/2020,3110812815,502.32,Redacted Personal Data 
http://statistics.data.gov.uk/id/local-authority/38,Oxfordshire County Council,Support at Home U65 Physical Support,5899,Social Care - Direct Payments,30/09/2020,3110829388,502.32,Redacted Personal Data 
http://statistics.data.gov.uk/id/local-authority/38,Oxfordshire County Council,Support at Home U65 Physical Support,5698,,09/09/2020,3110817646,502.36,Acquire Care Ltd
http://statistics.data.gov.uk/id/local-authority/38,Oxfordshire County Council,Contingency Home Care,5689,,15/09/2020,3110823992,502.69,Oxford University Hospitals NHS FT
http://statistics.data.gov.uk/id/local-authority/38,Oxfordshire County Council,Support at Home 65+ Physical Support,5689,,15/09/2020,3110823334,502.88,Care Outlook Ltd
http://statistics.data.gov.uk/id/local-authority/38,Oxfordshire County Council,Support at Home U65 Physical Support,5696,,08/09/2020,3110816397,503.59,Orders of St John Care Trust
http://statistics.data.gov.uk/id/local-authority/38,Oxfordshire County Council,Support at Home U65 Sensory Support,5899,Social Care - Direct Payments,01/09/2020,3110812388,504.00,Redacted Personal Data 
http://statistics.data.gov.uk/id/local-authority/38,Oxfordshire County Council,Support at Home U65 Sensory Support,5899,Social Care - Direct Payments,30/09/2020,3110829066,504.00,Redacted Personal Data 
http://statistics.data.gov.uk/id/local-authority/38,Oxfordshire County Council,Central FSS Statutory - Rose Hill,5416,After School Activities,25/09/2020,3110827074,504.00,OCC One Time Vendor
http://statistics.data.gov.uk/id/local-authority/38,Oxfordshire County Council,Support at Home U65 MH OBC Contract,5899,Social Care - Direct Payments,02/09/2020,3110813971,504.00,Purple Conversation Com In Co (DP)
http://statistics.data.gov.uk/id/local-authority/38,Oxfordshire County Council,Support at Home 65+ Physical Support,5899,Social Care - Direct Payments,02/09/2020,3110814086,504.00,Purple Conversation Com In Co (DP)
http://statistics.data.gov.uk/id/local-authority/38,Oxfordshire County Council,Support at Home U65 Learning Disability,5899,Social Care - Direct Payments,02/09/2020,3110814439,504.00,Purple Conversation Com In Co (DP)
http://statistics.data.gov.uk/id/local-authority/38,Oxfordshire County Council,Support at Home U65 MH OBC Contract,5899,Social Care - Direct Payments,29/09/2020,3110827817,504.00,Purple Conversation Com In Co (DP)
http://statistics.data.gov.uk/id/local-authority/38,Oxfordshire County Council,Support at Home 65+ Physical Support,5899,Social Care - Direct Payments,29/09/2020,3110827933,504.00,Purple Conversation Com In Co (DP)
http://statistics.data.gov.uk/id/local-authority/38,Oxfordshire County Council,Support at Home U65 Learning Disability,5899,Social Care - Direct Payments,29/09/2020,3110828282,504.00,Purple Conversation Com In Co (DP)
http://statistics.data.gov.uk/id/local-authority/38,Oxfordshire County Council,Councillors Priorities Fund,4940,Other Services,01/09/2020,3110812210,504.00,Steeple Aston Parish Council
http://statistics.data.gov.uk/id/local-authority/38,Oxfordshire County Council,South FSS Statutory - Abingdon,2040,Agency Staff,01/09/2020,2200790289,504.09,TRIPOD PARTNERS LIMITED
http://statistics.data.gov.uk/id/local-authority/38,Oxfordshire County Council,North FSS Statutory - Witney,2040,Agency Staff,03/09/2020,2200790845,504.09,TRIPOD PARTNERS LIMITED
http://statistics.data.gov.uk/id/local-authority/38,Oxfordshire County Council,North FSS Statutory - Banbury,3200,Staff Advertising - General,08/09/2020,2200792212,504.09,TRIPOD PARTNERS LIMITED
http://statistics.data.gov.uk/id/local-authority/38,Oxfordshire County Council,North FSS Statutory - Banbury,3200,Staff Advertising - General,08/09/2020,2200792270,504.09,TRIPOD PARTNERS LIMITED
http://statistics.data.gov.uk/id/local-authority/38,Oxfordshire County Council,North FSS Statutory - Witney,2040,Agency Staff,08/09/2020,2200792472,504.09,TRIPOD PARTNERS LIMITED
http://statistics.data.gov.uk/id/local-authority/38,Oxfordshire County Council,North FSS Statutory - Witney,2040,Agency Staff,08/09/2020,2200792473,504.09,TRIPOD PARTNERS LIMITED
http://statistics.data.gov.uk/id/local-authority/38,Oxfordshire County Council,South FSS Statutory - Abingdon,2040,Agency Staff,11/09/2020,2200794327,504.09,TRIPOD PARTNERS LIMITED
http://statistics.data.gov.uk/id/local-authority/38,Oxfordshire County Council,Support at Home U65 Learning Disability,5696,,08/09/2020,3110816354,504.33,Orders of St John Care Trust
http://statistics.data.gov.uk/id/local-authority/38,Oxfordshire County Council,ST NICHOLAS PRIMARY,3357,,30/09/2020,3110829967,504.50,McLarens
http://statistics.data.gov.uk/id/local-authority/38,Oxfordshire County Council,SM DISABILITIES,5554,Childrens' Social Care - Direct Payments,25/09/2020,3110827228,504.55,Redacted Personal Data 
http://statistics.data.gov.uk/id/local-authority/38,Oxfordshire County Council,SM DISABILITIES,5554,Childrens' Social Care - Direct Payments,25/09/2020,3110827230,504.55,Redacted Personal Data 
http://statistics.data.gov.uk/id/local-authority/38,Oxfordshire County Council,SM DISABILITIES,5554,Childrens' Social Care - Direct Payments,25/09/2020,3110827197,504.55,Purple Conversation Com In Co (DP)
http://statistics.data.gov.uk/id/local-authority/38,Oxfordshire County Council,Support at Home U65 Learning Disability,5697,,16/09/2020,3110824977,504.64,Guideposts Trust
http://statistics.data.gov.uk/id/local-authority/38,Oxfordshire County Council,FPT NORTH,5227,Other Transport Arrangements,29/09/2020,3110828834,504.65,Redacted Personal Data 
http://statistics.data.gov.uk/id/local-authority/38,Oxfordshire County Council,Support at Home 65+ Physical Support,5698,,09/09/2020,3110818089,504.73,Oxford Private Care
http://statistics.data.gov.uk/id/local-authority/38,Oxfordshire County Council,Support at Home U65 Learning Disability,5688,,10/09/2020,3110820826,504.86,Autism at Kingwood Limited
http://statistics.data.gov.uk/id/local-authority/38,Oxfordshire County Council,ATTACH TEAM,3105,Training related expenditure,17/09/2020,2200796241,505.00,The Compassionate Mind Foundation
http://statistics.data.gov.uk/id/local-authority/38,Oxfordshire County Council,,1441,Uncleared Misc Income Receipts,22/09/2020,3110825828,505.00,The Compassionate Mind Foundation
http://statistics.data.gov.uk/id/local-authority/38,Oxfordshire County Council,Support at Home U65 Learning Disability,5899,Social Care - Direct Payments,29/09/2020,3110828122,505.32,Purple Conversation Com In Co (DP)
http://statistics.data.gov.uk/id/local-authority/38,Oxfordshire County Council,FOSTERING MAIN,5227,Other Transport Arrangements,22/09/2020,3110826126,505.46,Redacted Personal Data 
http://statistics.data.gov.uk/id/local-authority/38,Oxfordshire County Council,POST18 UASC DCSF FND,5665,B*Fostering Project Care Fee,17/09/2020,9300048476,505.80,OCC SS Oxford City Div 1 Cash
http://statistics.data.gov.uk/id/local-authority/38,Oxfordshire County Council,CHC Fast Track - Sup at Homes - Over 65,5691,,30/09/2020,3110829795,506.00,Sue Ryder
http://statistics.data.gov.uk/id/local-authority/38,Oxfordshire County Council,Contingency Home Care,5689,,15/09/2020,3110823927,506.69,Oxford University Hospitals NHS FT
http://statistics.data.gov.uk/id/local-authority/38,Oxfordshire County Council,Support at Home U65 Physical Support,5688,,10/09/2020,3110821505,506.70,The Laurels (Witney)
http://statistics.data.gov.uk/id/local-authority/38,Oxfordshire County Council,Support at Home 65+ Physical Support,5681,,10/09/2020,3110818768,507.14,Orders of St John
http://statistics.data.gov.uk/id/local-authority/38,Oxfordshire County Council,MAINSTREAM-SECONDARY,4330,Transport to School Activities,21/09/2020,3110825703,507.30,First Call Transfers
http://statistics.data.gov.uk/id/local-authority/38,Oxfordshire County Council,Support at Home 65+ Physical Support,5689,,15/09/2020,3110823755,507.40,Kare Plus Oxford
http://statistics.data.gov.uk/id/local-authority/38,Oxfordshire County Council,SEN TRANSPORT,5227,Other Transport Arrangements,02/09/2020,3110815413,508.30,The Oxfordshire Taxi Company Ltd T/
http://statistics.data.gov.uk/id/local-authority/38,Oxfordshire County Council,Support at Home U65 MH OBC Contract,5899,Social Care - Direct Payments,01/09/2020,3110812730,508.36,Redacted Personal Data 
http://statistics.data.gov.uk/id/local-authority/38,Oxfordshire County Council,Support at Home U65 MH OBC Contract,5899,Social Care - Direct Payments,30/09/2020,3110829302,508.36,Redacted Personal Data 
http://statistics.data.gov.uk/id/local-authority/38,Oxfordshire County Council,Support at Home U65 Physical Support,5689,,15/09/2020,3110823849,508.48,My Carer Ltd
http://statistics.data.gov.uk/id/local-authority/38,Oxfordshire County Council,Contingency Home Care,5689,,15/09/2020,3110823916,508.69,Oxford University Hospitals NHS FT
http://statistics.data.gov.uk/id/local-authority/38,Oxfordshire County Council,ECH Central Costs,5688,,10/09/2020,3110818480,509.06,BPHA Limited
http://statistics.data.gov.uk/id/local-authority/38,Oxfordshire County Council,Support at Home U65 Learning Disability,5899,Social Care - Direct Payments,02/09/2020,3110813756,509.40,Purple Conversation Com In Co (DP)
http://statistics.data.gov.uk/id/local-authority/38,Oxfordshire County Council,Support at Home U65 Learning Disability,5899,Social Care - Direct Payments,29/09/2020,3110827603,509.40,Purple Conversation Com In Co (DP)
http://statistics.data.gov.uk/id/local-authority/38,Oxfordshire County Council,LD Continuing Care - Sup at Home - U65,5691,,11/09/2020,3110823053,509.44,HF TRUST Ltd
http://statistics.data.gov.uk/id/local-authority/38,Oxfordshire County Council,Support at Home 65+ Physical Support,5698,,09/09/2020,3110817918,509.63,Day & Night Care Assistance
http://statistics.data.gov.uk/id/local-authority/38,Oxfordshire County Council,Support at Home U65 Learning Disability,5227,Other Transport Arrangements,08/09/2020,3110816244,510.00,Black and White Cars T/A Banbury Ta
http://statistics.data.gov.uk/id/local-authority/38,Oxfordshire County Council,Care Packages & Placements- LD - OCC,5227,Other Transport Arrangements,16/09/2020,3110824878,510.00,Oxon Transport Services Ltd
http://statistics.data.gov.uk/id/local-authority/38,Oxfordshire County Council,MAINSTREAM-PRIMARY,4330,Transport to School Activities,02/09/2020,3110815430,510.00,Streamline Peppard Taxi
http://statistics.data.gov.uk/id/local-authority/38,Oxfordshire County Council,MAINSTREAM-SECONDARY,4330,Transport to School Activities,02/09/2020,3110815432,510.00,Streamline Peppard Taxi
http://statistics.data.gov.uk/id/local-authority/38,Oxfordshire County Council,SEN TRANSPORT,4330,Transport to School Activities,02/09/2020,3110815276,510.00,The Oxfordshire Taxi Company Ltd T/
http://statistics.data.gov.uk/id/local-authority/38,Oxfordshire County Council,MAINSTREAM-SECONDARY,4330,Transport to School Activities,02/09/2020,3110815321,510.00,The Oxfordshire Taxi Company Ltd T/
http://statistics.data.gov.uk/id/local-authority/38,Oxfordshire County Council,SEN TRANSPORT,5227,Other Transport Arrangements,02/09/2020,3110815356,510.00,The Oxfordshire Taxi Company Ltd T/
http://statistics.data.gov.uk/id/local-authority/38,Oxfordshire County Council,SEN TRANSPORT,5227,Other Transport Arrangements,08/09/2020,3110816199,510.00,The Oxfordshire Taxi Company Ltd T/
http://statistics.data.gov.uk/id/local-authority/38,Oxfordshire County Council,Contingency Home Care,5689,,15/09/2020,3110823903,510.03,OXFORD HEALTH NHS FOUNDATION TRUST
http://statistics.data.gov.uk/id/local-authority/38,Oxfordshire County Council,Delegated Health Tasks  - Over 65,5689,,15/09/2020,3110823483,510.23,Oxfordshire Crossroads
http://statistics.data.gov.uk/id/local-authority/38,Oxfordshire County Council,FOSTERING MAIN,5549,B*Fostering Allowance - Regulation 38,01/09/2020,3110813103,510.29,Redacted Personal Data 
http://statistics.data.gov.uk/id/local-authority/38,Oxfordshire County Council,LIBRARY COLLECTIONS,4539,"Books, DVDs and CDs",02/09/2020,3110815487,510.30,ASKEWS & HOLTS LIBRARY SERVICES LTD
http://statistics.data.gov.uk/id/local-authority/38,Oxfordshire County Council,Support at Home 65+ Physical Support,5899,Social Care - Direct Payments,01/09/2020,3110812786,510.40,Redacted Personal Data 
http://statistics.data.gov.uk/id/local-authority/38,Oxfordshire County Council,Support at Home 65+ Physical Support,5899,Social Care - Direct Payments,30/09/2020,3110829359,510.40,Redacted Personal Data 
http://statistics.data.gov.uk/id/local-authority/38,Oxfordshire County Council,Support at Home U65 Physical Support,5899,Social Care - Direct Payments,02/09/2020,3110814281,510.40,Purple Conversation Com In Co (DP)
http://statistics.data.gov.uk/id/local-authority/38,Oxfordshire County Council,Support at Home U65 Physical Support,5899,Social Care - Direct Payments,29/09/2020,3110828124,510.40,Purple Conversation Com In Co (DP)
http://statistics.data.gov.uk/id/local-authority/38,Oxfordshire County Council,Support at Home U65 Physical Support,5688,,10/09/2020,3110821422,510.59,H F TRUST LTD
http://statistics.data.gov.uk/id/local-authority/38,Oxfordshire County Council,COMM DRAWDOWN FUNDNG,8004,Design Consultant,18/09/2020,2200797285,510.71,Skanska Construction UK Ltd Sp
http://statistics.data.gov.uk/id/local-authority/38,Oxfordshire County Council,Support at Home 65+ Physical Support,5689,,15/09/2020,3110823780,510.86,Kare Plus Oxford
http://statistics.data.gov.uk/id/local-authority/38,Oxfordshire County Council,Support at Home 65+ Physical Support,5689,,15/09/2020,3110823510,511.38,Oxfordshire Crossroads
http://statistics.data.gov.uk/id/local-authority/38,Oxfordshire County Council,COUNTY PRINT FINSHRS,4236,Vehicle Equipment and Running Expen,24/09/2020,9300048581,511.50,OCC County Print Finisher Bank
http://statistics.data.gov.uk/id/local-authority/38,Oxfordshire County Council,COUNTY PRINT FINSHRS,4236,Vehicle Equipment and Running Expen,24/09/2020,9300048578,511.51,OCC County Print Finisher Cash
http://statistics.data.gov.uk/id/local-authority/38,Oxfordshire County Council,Support at Home U65 Learning Disability,5899,Social Care - Direct Payments,02/09/2020,3110814257,511.80,Purple Conversation Com In Co (DP)
http://statistics.data.gov.uk/id/local-authority/38,Oxfordshire County Council,Support at Home U65 Learning Disability,5899,Social Care - Direct Payments,29/09/2020,3110828100,511.80,Purple Conversation Com In Co (DP)
http://statistics.data.gov.uk/id/local-authority/38,Oxfordshire County Council,Planned preventative Maintenance,3787,Premises Repairs,14/09/2020,2200794783,511.80,Whitco Catering & Bakery Equipment
http://statistics.data.gov.uk/id/local-authority/38,Oxfordshire County Council,Support at Home 65+ Other /Soc Isolation,5693,,02/09/2020,3110813659,512.00,Redacted Personal Data 
http://statistics.data.gov.uk/id/local-authority/38,Oxfordshire County Council,Support at Home U65 Learning Disability,5899,Social Care - Direct Payments,01/09/2020,3110812513,512.00,Redacted Personal Data 
http://statistics.data.gov.uk/id/local-authority/38,Oxfordshire County Council,Support at Home U65 Learning Disability,5899,Social Care - Direct Payments,30/09/2020,3110829128,512.00,Redacted Personal Data 
http://statistics.data.gov.uk/id/local-authority/38,Oxfordshire County Council,Support at Home U65 Learning Disability,5899,Social Care - Direct Payments,02/09/2020,3110813883,512.00,Purple Conversation Com In Co (DP)
http://statistics.data.gov.uk/id/local-authority/38,Oxfordshire County Council,Support at Home 65+ Physical Support,5899,Social Care - Direct Payments,02/09/2020,3110814027,512.00,Purple Conversation Com In Co (DP)
http://statistics.data.gov.uk/id/local-authority/38,Oxfordshire County Council,Support at Home U65 Learning Disability,5899,Social Care - Direct Payments,29/09/2020,3110827731,512.00,Purple Conversation Com In Co (DP)
http://statistics.data.gov.uk/id/local-authority/38,Oxfordshire County Council,Support at Home 65+ Physical Support,5899,Social Care - Direct Payments,29/09/2020,3110827874,512.00,Purple Conversation Com In Co (DP)
http://statistics.data.gov.uk/id/local-authority/38,Oxfordshire County Council,Support at Home U65 Learning Disability,5697,,16/09/2020,3110825050,512.40,Style Acre
http://statistics.data.gov.uk/id/local-authority/38,Oxfordshire County Council,Planned preventative Maintenance,3787,Premises Repairs,29/09/2020,2200800343,512.63,Marlowe Fire & Security Ltd
http://statistics.data.gov.uk/id/local-authority/38,Oxfordshire County Council,Support at Home U65 Physical Support,5899,Social Care - Direct Payments,02/09/2020,3110813698,512.80,Purple Conversation Com In Co (DP)
http://statistics.data.gov.uk/id/local-authority/38,Oxfordshire County Council,Support at Home U65 Physical Support,5899,Social Care - Direct Payments,29/09/2020,3110827532,512.80,Purple Conversation Com In Co (DP)
http://statistics.data.gov.uk/id/local-authority/38,Oxfordshire County Council,FOSTERING MAIN,5549,B*Fostering Allowance - Regulation 38,09/09/2020,3110817427,512.90,Redacted Personal Data 
http://statistics.data.gov.uk/id/local-authority/38,Oxfordshire County Council,FOSTERING MAIN,5549,B*Fostering Allowance - Regulation 38,29/09/2020,3110828927,512.90,Redacted Personal Data 
http://statistics.data.gov.uk/id/local-authority/38,Oxfordshire County Council,Support at Home 65+ Physical Support,5696,,09/09/2020,3110817197,513.00,1st Homecare (Oxford) Ltd
http://statistics.data.gov.uk/id/local-authority/38,Oxfordshire County Council,RISING BOLLARDS,4861,Hired and Contracted Services,08/09/2020,2200792167,513.00,Oxford Direct Services Ltd
http://statistics.data.gov.uk/id/local-authority/38,Oxfordshire County Council,Support at Home U65 Physical Support,5689,,15/09/2020,3110823808,513.01,Lifecarers Limited
http://statistics.data.gov.uk/id/local-authority/38,Oxfordshire County Council,SHORT BREAK ACTIVITIES,5195,Grant Aid and Donations,22/09/2020,3110825862,513.60,OCC One Time Vendor
http://statistics.data.gov.uk/id/local-authority/38,Oxfordshire County Council,POST18 UASC DCSF FND,5227,Other Transport Arrangements,29/09/2020,9300048653,514.20,OCC SS Banbury Area Off Cash
http://statistics.data.gov.uk/id/local-authority/38,Oxfordshire County Council,Support at Home U65 Physical Support,5696,,09/09/2020,3110817235,514.36,Radis Community Care
http://statistics.data.gov.uk/id/local-authority/38,Oxfordshire County Council,Support at Home 65+ Physical Support,5696,,08/09/2020,3110816366,514.42,Orders of St John Care Trust
http://statistics.data.gov.uk/id/local-authority/38,Oxfordshire County Council,Support at Home 65+ Physical Support,5696,,08/09/2020,3110816467,514.42,Orders of St John Care Trust
http://statistics.data.gov.uk/id/local-authority/38,Oxfordshire County Council,Support at Home 65+ Physical Support,5696,,08/09/2020,3110816516,514.42,Orders of St John Care Trust
http://statistics.data.gov.uk/id/local-authority/38,Oxfordshire County Council,Support at Home 65+ Physical Support,5689,,15/09/2020,3110823336,514.50,Care Outlook Ltd
http://statistics.data.gov.uk/id/local-authority/38,Oxfordshire County Council,Contingency Home Care,5689,,15/09/2020,3110823979,514.69,Oxford University Hospitals NHS FT
http://statistics.data.gov.uk/id/local-authority/38,Oxfordshire County Council,LEGAL BUDGET,5251,Legal Costs,24/09/2020,2200799341,514.80,Dr Sonia Bues
http://statistics.data.gov.uk/id/local-authority/38,Oxfordshire County Council,Support at Home U65 Physical Support,5899,Social Care - Direct Payments,02/09/2020,3110813893,514.88,Purple Conversation Com In Co (DP)
http://statistics.data.gov.uk/id/local-authority/38,Oxfordshire County Council,Support at Home U65 Physical Support,5899,Social Care - Direct Payments,29/09/2020,3110827741,514.88,Purple Conversation Com In Co (DP)
http://statistics.data.gov.uk/id/local-authority/38,Oxfordshire County Council,Support at Home U65 Physical Support,5899,Social Care - Direct Payments,02/09/2020,3110814261,515.20,Purple Conversation Com In Co (DP)
http://statistics.data.gov.uk/id/local-authority/38,Oxfordshire County Council,Support at Home U65 Physical Support,5899,Social Care - Direct Payments,29/09/2020,3110828104,515.20,Purple Conversation Com In Co (DP)
http://statistics.data.gov.uk/id/local-authority/38,Oxfordshire County Council,Support at Home 65+ Physical Support,5689,,15/09/2020,3110823288,515.21,Amber Healthcare Personnel Ltd
http://statistics.data.gov.uk/id/local-authority/38,Oxfordshire County Council,Support at Home U65 Sensory Support,5899,Social Care - Direct Payments,01/09/2020,3110812379,515.52,Redacted Personal Data 
http://statistics.data.gov.uk/id/local-authority/38,Oxfordshire County Council,Support at Home U65 Sensory Support,5899,Social Care - Direct Payments,30/09/2020,3110829062,515.52,Redacted Personal Data 
http://statistics.data.gov.uk/id/local-authority/38,Oxfordshire County Council,Delegated Health Tasks  - Under 65,5691,,23/09/2020,3110826671,516.00,The Caring Company (Oxon)
http://statistics.data.gov.uk/id/local-authority/38,Oxfordshire County Council,Support at Home U65 Physical Support,5693,,09/09/2020,3110817145,516.06,Helping Hands
http://statistics.data.gov.uk/id/local-authority/38,Oxfordshire County Council,Support at Home 65+ Physical Support,5689,,15/09/2020,3110823497,516.32,Oxfordshire Crossroads
http://statistics.data.gov.uk/id/local-authority/38,Oxfordshire County Council,Planned preventative Maintenance,3787,Premises Repairs,14/09/2020,2200794825,516.73,Grafton Merchanting GB Ltd T/A Buil
http://statistics.data.gov.uk/id/local-authority/38,Oxfordshire County Council,LD Continuing Care - Sup at Home - U65,5691,,16/09/2020,3110825182,516.89,Paterson Recruitment
http://statistics.data.gov.uk/id/local-authority/38,Oxfordshire County Council,COVID-19 INFECTION CONTROL 1,5689,,25/09/2020,3110827116,517.05,MacIntyre Care (Womaston)
http://statistics.data.gov.uk/id/local-authority/38,Oxfordshire County Council,COVID-19 INFECTION CONTROL 1,5689,,28/09/2020,3110827397,517.05,OCC One Time Vendor
http://statistics.data.gov.uk/id/local-authority/38,Oxfordshire County Council,COVID-19 INFECTION CONTROL 1,5689,,28/09/2020,3110827399,517.05,OCC One Time Vendor
http://statistics.data.gov.uk/id/local-authority/38,Oxfordshire County Council,MAINSTREAM-SECONDARY,4330,Transport to School Activities,22/09/2020,3110825829,517.14,HORSEMAN COACHES LIMITED
http://statistics.data.gov.uk/id/local-authority/38,Oxfordshire County Council,Support at Home U65 Physical Support,5698,,09/09/2020,3110817744,517.20,Bridges Home Care Ltd
http://statistics.data.gov.uk/id/local-authority/38,Oxfordshire County Council,Support at Home 65+ Physical Support,5698,,09/09/2020,3110817855,517.55,Charterville Care At Home Ltd
http://statistics.data.gov.uk/id/local-authority/38,Oxfordshire County Council,,1429,Charitable Donations,14/09/2020,3110823088,517.59,GIVE AS YOU EARN
http://statistics.data.gov.uk/id/local-authority/38,Oxfordshire County Council,LEAVING CARE SOUTH,4685,Clothing and Uniforms,15/09/2020,9300048443,518.00,OCC SS Vale of White Horse Cash
http://statistics.data.gov.uk/id/local-authority/38,Oxfordshire County Council,FOSTERING MAIN,5541,B*Foster Parents,01/09/2020,3110813428,518.00,Redacted Personal Data 
http://statistics.data.gov.uk/id/local-authority/38,Oxfordshire County Council,FOSTERING MAIN,5541,B*Foster Parents,09/09/2020,3110817485,518.00,Redacted Personal Data 
http://statistics.data.gov.uk/id/local-authority/38,Oxfordshire County Council,FOSTERING MAIN,5541,B*Foster Parents,15/09/2020,3110824675,518.00,Redacted Personal Data 
http://statistics.data.gov.uk/id/local-authority/38,Oxfordshire County Council,FOSTERING MAIN,5541,B*Foster Parents,22/09/2020,3110826220,518.00,Redacted Personal Data 
http://statistics.data.gov.uk/id/local-authority/38,Oxfordshire County Council,FOSTERING MAIN,5541,B*Foster Parents,29/09/2020,3110828968,518.00,Redacted Personal Data 
http://statistics.data.gov.uk/id/local-authority/38,Oxfordshire County Council,FOSTERING MAIN,5541,B*Foster Parents,01/09/2020,3110813455,518.00,Redacted Personal Data 
http://statistics.data.gov.uk/id/local-authority/38,Oxfordshire County Council,FOSTERING MAIN,5541,B*Foster Parents,09/09/2020,3110817500,518.00,Redacted Personal Data 
http://statistics.data.gov.uk/id/local-authority/38,Oxfordshire County Council,FOSTERING MAIN,5541,B*Foster Parents,15/09/2020,3110824700,518.00,Redacted Personal Data 
http://statistics.data.gov.uk/id/local-authority/38,Oxfordshire County Council,FOSTERING MAIN,5541,B*Foster Parents,22/09/2020,3110826234,518.00,Redacted Personal Data 
http://statistics.data.gov.uk/id/local-authority/38,Oxfordshire County Council,FOSTERING MAIN,5541,B*Foster Parents,29/09/2020,3110828981,518.00,Redacted Personal Data 
http://statistics.data.gov.uk/id/local-authority/38,Oxfordshire County Council,OTHER HOUSEHOLD,5526,Payments to Private Contractors,30/09/2020,2200800935,518.16,GRUNDON WASTE MANAGEMENT LTD
http://statistics.data.gov.uk/id/local-authority/38,Oxfordshire County Council,Support at Home U65 Other /Soc Isolation,5899,Social Care - Direct Payments,02/09/2020,3110813868,518.40,Purple Conversation Com In Co (DP)
http://statistics.data.gov.uk/id/local-authority/38,Oxfordshire County Council,Support at Home 65+ Physical Support,5899,Social Care - Direct Payments,02/09/2020,3110814291,518.40,Purple Conversation Com In Co (DP)
http://statistics.data.gov.uk/id/local-authority/38,Oxfordshire County Council,Support at Home U65 Other /Soc Isolation,5899,Social Care - Direct Payments,29/09/2020,3110827716,518.40,Purple Conversation Com In Co (DP)
http://statistics.data.gov.uk/id/local-authority/38,Oxfordshire County Council,Support at Home 65+ Physical Support,5899,Social Care - Direct Payments,29/09/2020,3110828135,518.40,Purple Conversation Com In Co (DP)
http://statistics.data.gov.uk/id/local-authority/38,Oxfordshire County Council,NURSERY ED FUND,5537,Payments to Other Establishments,02/09/2020,3110814920,519.12,Abbie Norris
http://statistics.data.gov.uk/id/local-authority/38,Oxfordshire County Council,NURSERY ED FUND,5537,Payments to Other Establishments,02/09/2020,3110814922,519.12,Amanda's Childcare
http://statistics.data.gov.uk/id/local-authority/38,Oxfordshire County Council,NURSERY ED FUND,5537,Payments to Other Establishments,18/09/2020,3110825627,519.12,Anna Smith
http://statistics.data.gov.uk/id/local-authority/38,Oxfordshire County Council,NURSERY ED FUND,5537,Payments to Other Establishments,02/09/2020,3110814924,519.12,Anne Marie Davis
http://statistics.data.gov.uk/id/local-authority/38,Oxfordshire County Council,,1441,Uncleared Misc Income Receipts,07/09/2020,3110816025,519.12,Appleton Village Pre-School
http://statistics.data.gov.uk/id/local-authority/38,Oxfordshire County Council,NURSERY ED FUND,5537,Payments to Other Establishments,02/09/2020,3110814925,519.12,Camilla Collins
http://statistics.data.gov.uk/id/local-authority/38,Oxfordshire County Council,NURSERY ED FUND,5537,Payments to Other Establishments,02/09/2020,3110814932,519.12,Charmaine Fouche
http://statistics.data.gov.uk/id/local-authority/38,Oxfordshire County Council,NURSERY ED FUND,5537,Payments to Other Establishments,02/09/2020,3110814935,519.12,Claire Dow
http://statistics.data.gov.uk/id/local-authority/38,Oxfordshire County Council,NURSERY ED FUND,5537,Payments to Other Establishments,02/09/2020,3110814941,519.12,Deborah Taylor
http://statistics.data.gov.uk/id/local-authority/38,Oxfordshire County Council,NURSERY ED FUND,5537,Payments to Other Establishments,02/09/2020,3110814948,519.12,Emma Marshall
http://statistics.data.gov.uk/id/local-authority/38,Oxfordshire County Council,NURSERY ED FUND,5537,Payments to Other Establishments,02/09/2020,3110814950,519.12,Redacted Personal Data 
http://statistics.data.gov.uk/id/local-authority/38,Oxfordshire County Council,NURSERY ED FUND,5537,Payments to Other Establishments,02/09/2020,3110814952,519.12,Gemma Jenkins
http://statistics.data.gov.uk/id/local-authority/38,Oxfordshire County Council,NURSERY ED FUND,5537,Payments to Other Establishments,02/09/2020,3110814953,519.12,Gemma Westlake
http://statistics.data.gov.uk/id/local-authority/38,Oxfordshire County Council,NURSERY ED FUND,5537,Payments to Other Establishments,02/09/2020,3110814978,519.12,Karen Wilcox
http://statistics.data.gov.uk/id/local-authority/38,Oxfordshire County Council,NURSERY ED FUND,5537,Payments to Other Establishments,02/09/2020,3110814982,519.12,Kelly Chappell
http://statistics.data.gov.uk/id/local-authority/38,Oxfordshire County Council,NURSERY ED FUND,5537,Payments to Other Establishments,02/09/2020,3110814933,519.12,Little Sky Childminding
http://statistics.data.gov.uk/id/local-authority/38,Oxfordshire County Council,NURSERY ED FUND,5537,Payments to Other Establishments,02/09/2020,3110814988,519.12,Louise Duncan
http://statistics.data.gov.uk/id/local-authority/38,Oxfordshire County Council,NURSERY ED FUND,5537,Payments to Other Establishments,02/09/2020,3110815028,519.12,Sharon Humphrey
http://statistics.data.gov.uk/id/local-authority/38,Oxfordshire County Council,NURSERY ED FUND,5537,Payments to Other Establishments,02/09/2020,3110815044,519.12,Zoe Mercer
http://statistics.data.gov.uk/id/local-authority/38,Oxfordshire County Council,Urgent Response,5689,,15/09/2020,3110823526,519.56,Day and Nightcare Assistance
http://statistics.data.gov.uk/id/local-authority/38,Oxfordshire County Council,Support at Home 65+ Physical Support,5689,,15/09/2020,3110823397,519.95,Caremark (West Oxfordshire & Cherwe
http://statistics.data.gov.uk/id/local-authority/38,Oxfordshire County Council,Support at Home U65 Learning Disability,5899,Social Care - Direct Payments,01/09/2020,3110812605,520.00,Redacted Personal Data 
http://statistics.data.gov.uk/id/local-authority/38,Oxfordshire County Council,Support at Home U65 Learning Disability,5899,Social Care - Direct Payments,30/09/2020,3110829186,520.00,Redacted Personal Data 
http://statistics.data.gov.uk/id/local-authority/38,Oxfordshire County Council,COMM DRAWDOWN FUNDNG,8102,Payments to main contractor,01/09/2020,2200790070,520.00,Mawdsleys BER Ltd
http://statistics.data.gov.uk/id/local-authority/38,Oxfordshire County Council,Support at Home U65 Physical Support,5899,Social Care - Direct Payments,02/09/2020,3110813807,520.00,Purple Conversation Com In Co (DP)
http://statistics.data.gov.uk/id/local-authority/38,Oxfordshire County Council,Support at Home U65 Physical Support,5899,Social Care - Direct Payments,02/09/2020,3110814177,520.00,Purple Conversation Com In Co (DP)
http://statistics.data.gov.uk/id/local-authority/38,Oxfordshire County Council,Support at Home U65 Physical Support,5899,Social Care - Direct Payments,02/09/2020,3110814205,520.00,Purple Conversation Com In Co (DP)
http://statistics.data.gov.uk/id/local-authority/38,Oxfordshire County Council,Support at Home U65 Physical Support,5899,Social Care - Direct Payments,29/09/2020,3110827655,520.00,Purple Conversation Com In Co (DP)
http://statistics.data.gov.uk/id/local-authority/38,Oxfordshire County Council,Support at Home U65 Physical Support,5899,Social Care - Direct Payments,29/09/2020,3110828020,520.00,Purple Conversation Com In Co (DP)
http://statistics.data.gov.uk/id/local-authority/38,Oxfordshire County Council,Support at Home U65 Physical Support,5899,Social Care - Direct Payments,29/09/2020,3110828047,520.00,Purple Conversation Com In Co (DP)
http://statistics.data.gov.uk/id/local-authority/38,Oxfordshire County Council,Support at Home 65+ Mental Health,5693,,16/09/2020,3110825047,520.00,Star Projections T/A Christies Care
http://statistics.data.gov.uk/id/local-authority/38,Oxfordshire County Council,SEN TRANSPORT,5227,Other Transport Arrangements,02/09/2020,3110815445,520.00,The Oxfordshire Taxi Company Ltd T/
http://statistics.data.gov.uk/id/local-authority/38,Oxfordshire County Council,SEN TRANSPORT,5227,Other Transport Arrangements,02/09/2020,3110815453,520.00,The Oxfordshire Taxi Company Ltd T/
http://statistics.data.gov.uk/id/local-authority/38,Oxfordshire County Council,SEN TRANSPORT,5227,Other Transport Arrangements,08/09/2020,3110816276,520.00,The Oxfordshire Taxi Company Ltd T/
http://statistics.data.gov.uk/id/local-authority/38,Oxfordshire County Council,Support at Home 65+ Physical Support,5696,,08/09/2020,3110816443,520.19,Orders of St John Care Trust
http://statistics.data.gov.uk/id/local-authority/38,Oxfordshire County Council,Support at Home 65+ Learning Disability,5696,,09/09/2020,3110817151,520.20,Housing&care21
http://statistics.data.gov.uk/id/local-authority/38,Oxfordshire County Council,Support at Home U65 Other /Soc Isolation,5899,Social Care - Direct Payments,02/09/2020,3110814434,520.80,Purple Conversation Com In Co (DP)
http://statistics.data.gov.uk/id/local-authority/38,Oxfordshire County Council,Support at Home U65 Other /Soc Isolation,5899,Social Care - Direct Payments,29/09/2020,3110828277,520.80,Purple Conversation Com In Co (DP)
http://statistics.data.gov.uk/id/local-authority/38,Oxfordshire County Council,Support at Home 65+ Physical Support,5698,,09/09/2020,3110818031,521.02,Day & Night Care Assistance
http://statistics.data.gov.uk/id/local-authority/38,Oxfordshire County Council,Support at Home 65+ Physical Support,5689,,15/09/2020,3110823492,521.02,Oxfordshire Crossroads
http://statistics.data.gov.uk/id/local-authority/38,Oxfordshire County Council,Support at Home U65 Physical Support,5899,Social Care - Direct Payments,02/09/2020,3110814377,521.20,Purple Conversation Com In Co (DP)
http://statistics.data.gov.uk/id/local-authority/38,Oxfordshire County Council,Support at Home U65 Physical Support,5899,Social Care - Direct Payments,29/09/2020,3110828221,521.20,Purple Conversation Com In Co (DP)
http://statistics.data.gov.uk/id/local-authority/38,Oxfordshire County Council,FLEET MAINTENANCE,4220,Vehicle Workshop Spares and Consumables,01/09/2020,2200790260,522.00,C Track UK
http://statistics.data.gov.uk/id/local-authority/38,Oxfordshire County Council,FLEET MAINTENANCE,4220,Vehicle Workshop Spares and Consumables,02/09/2020,2200790713,522.00,C Track UK
http://statistics.data.gov.uk/id/local-authority/38,Oxfordshire County Council,Support at Home U65 Physical Support,5227,Other Transport Arrangements,07/09/2020,3110816176,522.00,Her Ride Limited
http://statistics.data.gov.uk/id/local-authority/38,Oxfordshire County Council,Contingency Home Care,5689,,15/09/2020,3110823902,522.03,OXFORD HEALTH NHS FOUNDATION TRUST
http://statistics.data.gov.uk/id/local-authority/38,Oxfordshire County Council,LOOKED AFTER CITY 1,4525,Furniture,04/09/2020,9300048174,522.90,OCC SS Oxford City Div 1 Cash
http://statistics.data.gov.uk/id/local-authority/38,Oxfordshire County Council,Support at Home U65 Physical Support,5698,,09/09/2020,3110818131,523.56,Oxford Private Care
http://statistics.data.gov.uk/id/local-authority/38,Oxfordshire County Council,LIBRARY COLLECTIONS,4539,"Books, DVDs and CDs",02/09/2020,3110815500,523.60,ASKEWS & HOLTS LIBRARY SERVICES LTD
http://statistics.data.gov.uk/id/local-authority/38,Oxfordshire County Council,MAINSTREAM-SECONDARY,4330,Transport to School Activities,28/09/2020,3110827375,523.60,Carriage Company
http://statistics.data.gov.uk/id/local-authority/38,Oxfordshire County Council,Support at Home U65 Learning Disability,5899,Social Care - Direct Payments,01/09/2020,3110812603,524.00,Redacted Personal Data 
http://statistics.data.gov.uk/id/local-authority/38,Oxfordshire County Council,Support at Home U65 Learning Disability,5899,Social Care - Direct Payments,30/09/2020,3110829624,524.00,Redacted Personal Data 
http://statistics.data.gov.uk/id/local-authority/38,Oxfordshire County Council,LANDLORD & TENANT,4001,Uniform Business Rates,29/09/2020,3500073175,524.00,South Oxfordshire District Council
http://statistics.data.gov.uk/id/local-authority/38,Oxfordshire County Council,Supervised Consumption APL,4934,,01/09/2020,3110818413,524.16,Sutton Chase Ltd
http://statistics.data.gov.uk/id/local-authority/38,Oxfordshire County Council,Supervised Consumption APL,4934,,01/09/2020,3110818421,524.16,Tesco Pharmacy
http://statistics.data.gov.uk/id/local-authority/38,Oxfordshire County Council,Central FSS Statutory - Barton,5394,Other Expenses,10/09/2020,9300048392,524.37,OCC SS Oxford City Div 1 Cash
http://statistics.data.gov.uk/id/local-authority/38,Oxfordshire County Council,SHARED LIVES,5555,Payments to Carers,10/09/2020,3110818654,524.81,Redacted Personal Data 
http://statistics.data.gov.uk/id/local-authority/38,Oxfordshire County Council,Support at Home 65+ Physical Support,5693,,09/09/2020,3110817138,525.00,Enable Health Ltd
http://statistics.data.gov.uk/id/local-authority/38,Oxfordshire County Council,LAC PUPIL PREMIUM,5380,"Author, Speaker and Lecturer Fees",04/09/2020,2200791193,525.00,Herd Thyme
http://statistics.data.gov.uk/id/local-authority/38,Oxfordshire County Council,COUNTY PRINT FINSHRS,4531,Materials,29/09/2020,2200800303,525.00,Print & Stationery Management Co Lt
http://statistics.data.gov.uk/id/local-authority/38,Oxfordshire County Council,COUNTY PRINT FINSHRS,4531,Materials,15/09/2020,2200795660,526.00,MP Printers (Thame) Ltd
http://statistics.data.gov.uk/id/local-authority/38,Oxfordshire County Council,Support at Home 65+ Physical Support,5689,,15/09/2020,3110823635,526.21,Goldsmith Personnel Ltd
http://statistics.data.gov.uk/id/local-authority/38,Oxfordshire County Council,FOSTERING MAIN,5549,B*Fostering Allowance - Regulation 38,09/09/2020,3110817194,526.28,Redacted Personal Data 
http://statistics.data.gov.uk/id/local-authority/38,Oxfordshire County Council,,1416,FSNBF,14/09/2020,3110823079,526.41,THE FIRE FIGHTERS CHARITY
http://statistics.data.gov.uk/id/local-authority/38,Oxfordshire County Council,Support at Home 65+ Physical Support,5899,Social Care - Direct Payments,22/09/2020,3110825853,526.50,Redacted Personal Data 
http://statistics.data.gov.uk/id/local-authority/38,Oxfordshire County Council,Support at Home 65+ Physical Support,5698,,09/09/2020,3110817726,526.52,Bridges Home Care Ltd
http://statistics.data.gov.uk/id/local-authority/38,Oxfordshire County Council,TRANSLATION,5668,Technical and Professional Consultant F,17/09/2020,2200796123,526.99,K International PLC
http://statistics.data.gov.uk/id/local-authority/38,Oxfordshire County Council,Support at Home 65+ Physical Support,5698,,09/09/2020,3110817741,527.29,Bridges Home Care Ltd
http://statistics.data.gov.uk/id/local-authority/38,Oxfordshire County Council,FOSTERING MAIN,5549,B*Fostering Allowance - Regulation 38,01/09/2020,3110813336,528.00,Redacted Personal Data 
http://statistics.data.gov.uk/id/local-authority/38,Oxfordshire County Council,FOSTERING MAIN,5549,B*Fostering Allowance - Regulation 38,09/09/2020,3110817432,528.00,Redacted Personal Data 
http://statistics.data.gov.uk/id/local-authority/38,Oxfordshire County Council,FOSTERING MAIN,5549,B*Fostering Allowance - Regulation 38,15/09/2020,3110824598,528.00,Redacted Personal Data 
http://statistics.data.gov.uk/id/local-authority/38,Oxfordshire County Council,FOSTERING MAIN,5549,B*Fostering Allowance - Regulation 38,22/09/2020,3110826170,528.00,Redacted Personal Data 
http://statistics.data.gov.uk/id/local-authority/38,Oxfordshire County Council,FOSTERING MAIN,5549,B*Fostering Allowance - Regulation 38,29/09/2020,3110828917,528.00,Redacted Personal Data 
http://statistics.data.gov.uk/id/local-authority/38,Oxfordshire County Council,Support at Home U65 Physical Support,5899,Social Care - Direct Payments,02/09/2020,3110813923,528.00,Purple Conversation Com In Co (DP)
http://statistics.data.gov.uk/id/local-authority/38,Oxfordshire County Council,Support at Home 65+ Physical Support,5899,Social Care - Direct Payments,02/09/2020,3110814149,528.00,Purple Conversation Com In Co (DP)
http://statistics.data.gov.uk/id/local-authority/38,Oxfordshire County Council,Support at Home U65 Physical Support,5899,Social Care - Direct Payments,29/09/2020,3110827771,528.00,Purple Conversation Com In Co (DP)
http://statistics.data.gov.uk/id/local-authority/38,Oxfordshire County Council,Support at Home 65+ Physical Support,5899,Social Care - Direct Payments,29/09/2020,3110827993,528.00,Purple Conversation Com In Co (DP)
http://statistics.data.gov.uk/id/local-authority/38,Oxfordshire County Council,Care Packages & Placements- LD - OCC,5227,Other Transport Arrangements,22/09/2020,3110825833,528.00,Streamline Peppard Taxi
http://statistics.data.gov.uk/id/local-authority/38,Oxfordshire County Council,Support at Home 65+ Physical Support,5696,,02/09/2020,2200790569,528.14,Orders of St John Care Trust
http://statistics.data.gov.uk/id/local-authority/38,Oxfordshire County Council,Independent Foster,5559,,16/09/2020,3110825202,528.47,Integrated Services Programme Ltd
http://statistics.data.gov.uk/id/local-authority/38,Oxfordshire County Council,Independent Foster,5559,,16/09/2020,3110825203,528.47,Integrated Services Programme Ltd
http://statistics.data.gov.uk/id/local-authority/38,Oxfordshire County Council,Independent Foster,5559,,02/09/2020,3110815147,528.55,FAMILY PLACEMENT.COM
http://statistics.data.gov.uk/id/local-authority/38,Oxfordshire County Council,SM DISABILITIES,5554,Childrens' Social Care - Direct Payments,25/09/2020,3110827232,528.55,Redacted Personal Data 
http://statistics.data.gov.uk/id/local-authority/38,Oxfordshire County Council,SM DISABILITIES,5554,Childrens' Social Care - Direct Payments,25/09/2020,3110827303,528.55,Purple Conversation Com In Co (DP)
http://statistics.data.gov.uk/id/local-authority/38,Oxfordshire County Council,FOSTERING MAIN,5541,B*Foster Parents,01/09/2020,3110813394,529.00,Redacted Personal Data 
http://statistics.data.gov.uk/id/local-authority/38,Oxfordshire County Council,FOSTERING MAIN,5541,B*Foster Parents,09/09/2020,3110817463,529.00,Redacted Personal Data 
http://statistics.data.gov.uk/id/local-authority/38,Oxfordshire County Council,FOSTERING MAIN,5541,B*Foster Parents,15/09/2020,3110824647,529.00,Redacted Personal Data 
http://statistics.data.gov.uk/id/local-authority/38,Oxfordshire County Council,FOSTERING MAIN,5541,B*Foster Parents,22/09/2020,3110826199,529.00,Redacted Personal Data 
http://statistics.data.gov.uk/id/local-authority/38,Oxfordshire County Council,FOSTERING MAIN,5541,B*Foster Parents,29/09/2020,3110828947,529.00,Redacted Personal Data 
http://statistics.data.gov.uk/id/local-authority/38,Oxfordshire County Council,FAM GRP CONFERENCES,4940,Other Services,24/09/2020,2200799193,529.00,Helen Frost
http://statistics.data.gov.uk/id/local-authority/38,Oxfordshire County Council,FOSTERING MAIN,5541,B*Foster Parents,01/09/2020,3110813230,529.00,Redacted Personal Data 
http://statistics.data.gov.uk/id/local-authority/38,Oxfordshire County Council,SM DISABILITIES,5554,Childrens' Social Care - Direct Payments,25/09/2020,3110827266,529.04,Redacted Personal Data 
http://statistics.data.gov.uk/id/local-authority/38,Oxfordshire County Council,Support at Home 65+ Physical Support,5696,,08/09/2020,3110816379,529.48,Orders of St John Care Trust
http://statistics.data.gov.uk/id/local-authority/38,Oxfordshire County Council,,1448,Blackfield Inc & Exp A/c,11/09/2020,3110823003,529.76,Pegasus Primary School
http://statistics.data.gov.uk/id/local-authority/38,Oxfordshire County Council,TREE MAINT OPS,5526,Payments to Private Contractors,03/09/2020,2200790730,530.00,Acreman's Arboriculture Ltd
http://statistics.data.gov.uk/id/local-authority/38,Oxfordshire County Council,Support at Home 65+ Physical Support,5698,,09/09/2020,3110817757,530.01,Bridges Home Care Ltd
http://statistics.data.gov.uk/id/local-authority/38,Oxfordshire County Council,Support at Home U65 Physical Support,5899,Social Care - Direct Payments,02/09/2020,3110814119,530.48,Purple Conversation Com In Co (DP)
http://statistics.data.gov.uk/id/local-authority/38,Oxfordshire County Council,Support at Home U65 Physical Support,5899,Social Care - Direct Payments,29/09/2020,3110827963,530.48,Purple Conversation Com In Co (DP)
http://statistics.data.gov.uk/id/local-authority/38,Oxfordshire County Council,Support at Home 65+ Physical Support,5689,,15/09/2020,3110824055,530.63,PLL Care Services
http://statistics.data.gov.uk/id/local-authority/38,Oxfordshire County Council,,1448,Blackfield Inc & Exp A/c,21/09/2020,3110825651,531.00,OCC One Time Vendor
http://statistics.data.gov.uk/id/local-authority/38,Oxfordshire County Council,Support at Home U65 Physical Support,5899,Social Care - Direct Payments,02/09/2020,3110813937,531.20,Purple Conversation Com In Co (DP)
http://statistics.data.gov.uk/id/local-authority/38,Oxfordshire County Council,Support at Home U65 Physical Support,5899,Social Care - Direct Payments,29/09/2020,3110827783,531.20,Purple Conversation Com In Co (DP)
http://statistics.data.gov.uk/id/local-authority/38,Oxfordshire County Council,SEN TRANSPORT,4330,Transport to School Activities,08/09/2020,3110816193,531.25,The Oxfordshire Taxi Company Ltd T/
http://statistics.data.gov.uk/id/local-authority/38,Oxfordshire County Council,Support at Home U65 Learning Disability,5682,,18/09/2020,3110825606,531.73,The Brandon Trust
http://statistics.data.gov.uk/id/local-authority/38,Oxfordshire County Council,LOOKED AFTER NORTH,4330,Transport to School Activities,08/09/2020,3110816283,532.00,Banbury Taxis
http://statistics.data.gov.uk/id/local-authority/38,Oxfordshire County Council,LEAVING CARE NORTH,5665,B*Fostering Project Care Fee,18/09/2020,9300048515,532.00,OCC SS Oxford City Div 1 Cash
http://statistics.data.gov.uk/id/local-authority/38,Oxfordshire County Council,Support at Home 65+ Physical Support,5899,Social Care - Direct Payments,02/09/2020,3110813936,532.00,Purple Conversation Com In Co (DP)
http://statistics.data.gov.uk/id/local-authority/38,Oxfordshire County Council,Support at Home 65+ Physical Support,5899,Social Care - Direct Payments,29/09/2020,3110827782,532.00,Purple Conversation Com In Co (DP)
http://statistics.data.gov.uk/id/local-authority/38,Oxfordshire County Council,Support at Home 65+ Physical Support,5689,,15/09/2020,3110824150,532.13,AVR (Oxon) Ltd
http://statistics.data.gov.uk/id/local-authority/38,Oxfordshire County Council,Support at Home 65+ Mental Health,5689,,15/09/2020,3110823449,532.35,Casa Care Ltd
http://statistics.data.gov.uk/id/local-authority/38,Oxfordshire County Council,Support at Home 65+ Physical Support,5698,,09/09/2020,3110817655,532.76,Acquire Care Ltd
http://statistics.data.gov.uk/id/local-authority/38,Oxfordshire County Council,Support at Home 65+ Physical Support,5689,,15/09/2020,3110823679,533.63,Greigcare Home Service
http://statistics.data.gov.uk/id/local-authority/38,Oxfordshire County Council,VOIDS/VACANCY COSTS,3945,Rent,10/09/2020,3110819214,533.70,Cherwell District Council
http://statistics.data.gov.uk/id/local-authority/38,Oxfordshire County Council,VOIDS/VACANCY COSTS,3945,Rent,10/09/2020,3110819219,533.70,Cherwell District Council
http://statistics.data.gov.uk/id/local-authority/38,Oxfordshire County Council,VOIDS/VACANCY COSTS,3945,Rent,10/09/2020,3110819224,533.70,Cherwell District Council
http://statistics.data.gov.uk/id/local-authority/38,Oxfordshire County Council,VOIDS/VACANCY COSTS,3945,Rent,10/09/2020,3110819232,533.70,Cherwell District Council
http://statistics.data.gov.uk/id/local-authority/38,Oxfordshire County Council,FPT NORTH,4685,Clothing and Uniforms,29/09/2020,3110828957,533.80,Redacted Personal Data 
http://statistics.data.gov.uk/id/local-authority/38,Oxfordshire County Council,Delegated Health Tasks  - Over 65,5698,,09/09/2020,3110817807,533.84,Charterville Care At Home Ltd
http://statistics.data.gov.uk/id/local-authority/38,Oxfordshire County Council,Support at Home 65+ Physical Support,5698,,09/09/2020,3110817720,533.89,Bridges Home Care Ltd
http://statistics.data.gov.uk/id/local-authority/38,Oxfordshire County Council,Support at Home U65 Physical Support,5693,,16/09/2020,3110825040,534.40,Pioneering Care Bicester Limited
http://statistics.data.gov.uk/id/local-authority/38,Oxfordshire County Council,Support at Home 65+ Physical Support,5698,,09/09/2020,3110817922,534.60,Day & Night Care Assistance
http://statistics.data.gov.uk/id/local-authority/38,Oxfordshire County Council,LIBRARY COLLECTIONS,4539,"Books, DVDs and CDs",16/09/2020,3110825250,534.81,ASKEWS & HOLTS LIBRARY SERVICES LTD
http://statistics.data.gov.uk/id/local-authority/38,Oxfordshire County Council,Support at Home 65+ Physical Support,5689,,15/09/2020,3110824008,535.14,Pechiv Ltd
http://statistics.data.gov.uk/id/local-authority/38,Oxfordshire County Council,ON ST PARK OXFD P&D,4496,Equipment Maintenance Contracts,22/09/2020,2200797991,535.25,Flowbird Smart City
http://statistics.data.gov.uk/id/local-authority/38,Oxfordshire County Council,Support at Home 65+ Physical Support,5693,,16/09/2020,3110825078,535.64,XPERIENCE RECRUITMENT LIMITED
http://statistics.data.gov.uk/id/local-authority/38,Oxfordshire County Council,Support at Home U65 Physical Support,5899,Social Care - Direct Payments,02/09/2020,3110814321,535.96,Purple Conversation Com In Co (DP)
http://statistics.data.gov.uk/id/local-authority/38,Oxfordshire County Council,Support at Home U65 Physical Support,5899,Social Care - Direct Payments,29/09/2020,3110828164,535.96,Purple Conversation Com In Co (DP)
http://statistics.data.gov.uk/id/local-authority/38,Oxfordshire County Council,Support at Home U65 Learning Disability,5899,Social Care - Direct Payments,01/09/2020,3110812429,536.00,Redacted Personal Data 
http://statistics.data.gov.uk/id/local-authority/38,Oxfordshire County Council,Support at Home U65 Learning Disability,5899,Social Care - Direct Payments,30/09/2020,3110829091,536.00,Redacted Personal Data 
http://statistics.data.gov.uk/id/local-authority/38,Oxfordshire County Council,Support at Home U65 Physical Support,5899,Social Care - Direct Payments,01/09/2020,3110812406,536.00,Redacted Personal Data 
http://statistics.data.gov.uk/id/local-authority/38,Oxfordshire County Council,Support at Home U65 Physical Support,5899,Social Care - Direct Payments,30/09/2020,3110829077,536.00,Redacted Personal Data 
http://statistics.data.gov.uk/id/local-authority/38,Oxfordshire County Council,LANDLORD & TENANT,4001,Uniform Business Rates,29/09/2020,3500073096,536.00,Oxford City Council
http://statistics.data.gov.uk/id/local-authority/38,Oxfordshire County Council,Support at Home U65 Learning Disability,5899,Social Care - Direct Payments,01/09/2020,3110812535,536.00,Redacted Personal Data 
http://statistics.data.gov.uk/id/local-authority/38,Oxfordshire County Council,Support at Home U65 Learning Disability,5899,Social Care - Direct Payments,30/09/2020,3110829142,536.00,Redacted Personal Data 
http://statistics.data.gov.uk/id/local-authority/38,Oxfordshire County Council,Support at Home 65+ Physical Support,5698,,09/09/2020,3110817751,536.22,Bridges Home Care Ltd
http://statistics.data.gov.uk/id/local-authority/38,Oxfordshire County Council,Support at Home U65 Learning Disability,5899,Social Care - Direct Payments,02/09/2020,3110814095,538.80,Purple Conversation Com In Co (DP)
http://statistics.data.gov.uk/id/local-authority/38,Oxfordshire County Council,Support at Home U65 Learning Disability,5899,Social Care - Direct Payments,29/09/2020,3110827941,538.80,Purple Conversation Com In Co (DP)
http://statistics.data.gov.uk/id/local-authority/38,Oxfordshire County Council,TREE MAINT OPS,5526,Payments to Private Contractors,17/09/2020,2200796117,540.00,Climbers Way Tree Care Ltd.
http://statistics.data.gov.uk/id/local-authority/38,Oxfordshire County Council,LEGAL BUDGET,5251,Legal Costs,24/09/2020,2200798975,540.00,Dr Tom L McClintock
http://statistics.data.gov.uk/id/local-authority/38,Oxfordshire County Council,Support at Home 65+ Physical Support,5899,Social Care - Direct Payments,01/09/2020,3110812381,540.00,Redacted Personal Data 
http://statistics.data.gov.uk/id/local-authority/38,Oxfordshire County Council,Support at Home 65+ Mental Health,5899,Social Care - Direct Payments,02/09/2020,3110813895,540.00,Purple Conversation Com In Co (DP)
http://statistics.data.gov.uk/id/local-authority/38,Oxfordshire County Council,Support at Home 65+ Mental Health,5899,Social Care - Direct Payments,29/09/2020,3110827743,540.00,Purple Conversation Com In Co (DP)
http://statistics.data.gov.uk/id/local-authority/38,Oxfordshire County Council,Support at Home U65 Learning Disability,5899,Social Care - Direct Payments,08/09/2020,3110816315,540.00,Redacted Personal Data 
http://statistics.data.gov.uk/id/local-authority/38,Oxfordshire County Council,COVID-19 response CDAI,4060,Cleaning Materials,14/09/2020,2200794953,540.00,Seldram Supplies
http://statistics.data.gov.uk/id/local-authority/38,Oxfordshire County Council,AAC EQUIPMENT,4450,Disability Aids and Equipment,25/09/2020,2200799398,540.00,Smartbox Assistive Technology
http://statistics.data.gov.uk/id/local-authority/38,Oxfordshire County Council,ICT Operations & Maintenance,4494,Purchase of IT Equipment,23/09/2020,2200798467,540.00,TOTAL COMPUTERS NETWORK LTD
http://statistics.data.gov.uk/id/local-authority/38,Oxfordshire County Council,TREE MAINT OPS,5526,Payments to Private Contractors,07/09/2020,2200792078,540.00,Treetech Arboricultural Services Lt
http://statistics.data.gov.uk/id/local-authority/38,Oxfordshire County Council,SEN TRANSPORT,4330,Transport to School Activities,02/09/2020,3110815260,540.70,The Oxfordshire Taxi Company Ltd T/
http://statistics.data.gov.uk/id/local-authority/38,Oxfordshire County Council,ANTI-BULLYING,3942,Hire of Accommodation and Facilities,30/09/2020,2200801044,541.00,NYS CORPORATE LTD
http://statistics.data.gov.uk/id/local-authority/38,Oxfordshire County Council,OTHER HOUSEHOLD,5526,Payments to Private Contractors,28/09/2020,2200799981,541.16,FCC Environment (UK) Ltd
http://statistics.data.gov.uk/id/local-authority/38,Oxfordshire County Council,,1448,Blackfield Inc & Exp A/c,21/09/2020,3110825697,541.80,OCC One Time Vendor
http://statistics.data.gov.uk/id/local-authority/38,Oxfordshire County Council,Support at Home U65 Sensory Support,5689,,15/09/2020,3110823619,542.24,Goldsmith Personnel Ltd
http://statistics.data.gov.uk/id/local-authority/38,Oxfordshire County Council,Support at Home 65+ Physical Support,5689,,15/09/2020,3110823834,542.36,My Carer Ltd
http://statistics.data.gov.uk/id/local-authority/38,Oxfordshire County Council,FOSTERING MAIN,5549,B*Fostering Allowance - Regulation 38,29/09/2020,3110829006,542.72,Redacted Personal Data 
http://statistics.data.gov.uk/id/local-authority/38,Oxfordshire County Council,Support at Home U65 Learning Disability,5690,,10/09/2020,3110818549,542.91,Life Path Trust Ltd
http://statistics.data.gov.uk/id/local-authority/38,Oxfordshire County Council,Support at Home U65 Learning Disability,5690,,10/09/2020,3110818510,543.09,Life Path Trust Ltd
http://statistics.data.gov.uk/id/local-authority/38,Oxfordshire County Council,Support at Home U65 Learning Disability,5690,,10/09/2020,3110818544,543.09,Life Path Trust Ltd
http://statistics.data.gov.uk/id/local-authority/38,Oxfordshire County Council,Delegated Health Tasks  - Over 65,5691,,23/09/2020,3110826668,543.20,The Caring Company (Oxon)
http://statistics.data.gov.uk/id/local-authority/38,Oxfordshire County Council,Support at Home 65+ Physical Support,5689,,15/09/2020,3110824153,543.38,AVR (Oxon) Ltd
http://statistics.data.gov.uk/id/local-authority/38,Oxfordshire County Council,Support at Home 65+ Physical Support,5899,Social Care - Direct Payments,01/09/2020,3110812852,544.00,Redacted Personal Data 
http://statistics.data.gov.uk/id/local-authority/38,Oxfordshire County Council,Support at Home 65+ Physical Support,5899,Social Care - Direct Payments,30/09/2020,3110829424,544.00,Redacted Personal Data 
http://statistics.data.gov.uk/id/local-authority/38,Oxfordshire County Council,Support at Home U65 Other /Soc Isolation,5899,Social Care - Direct Payments,08/09/2020,3110816329,544.00,Purple Conversation Com In Co (DP)
http://statistics.data.gov.uk/id/local-authority/38,Oxfordshire County Council,SEN TRANSPORT,5227,Other Transport Arrangements,02/09/2020,3110815238,544.00,The Oxfordshire Taxi Company Ltd T/
http://statistics.data.gov.uk/id/local-authority/38,Oxfordshire County Council,Support at Home 65+ Physical Support,5693,,16/09/2020,3110824998,544.20,Helping Hands
http://statistics.data.gov.uk/id/local-authority/38,Oxfordshire County Council,LIBRARY COLLECTIONS,4539,"Books, DVDs and CDs",07/09/2020,3110816114,544.52,ASKEWS & HOLTS LIBRARY SERVICES LTD
http://statistics.data.gov.uk/id/local-authority/38,Oxfordshire County Council,FOSTERING MAIN,5545,B*Fostering Enhancements - Level 2,29/09/2020,3110828821,544.90,Redacted Personal Data 
http://statistics.data.gov.uk/id/local-authority/38,Oxfordshire County Council,FOSTERING MAIN,5549,B*Fostering Allowance - Regulation 38,15/09/2020,3110824451,544.90,Redacted Personal Data 
http://statistics.data.gov.uk/id/local-authority/38,Oxfordshire County Council,FOSTERING MAIN,5532,B*Fostering - Loan Equipment,15/09/2020,3110824719,545.16,Redacted Personal Data 
http://statistics.data.gov.uk/id/local-authority/38,Oxfordshire County Council,Support at Home U65 Learning Disability,5899,Social Care - Direct Payments,02/09/2020,3110813676,546.00,Purple Conversation Com In Co (DP)
http://statistics.data.gov.uk/id/local-authority/38,Oxfordshire County Council,Support at Home U65 Learning Disability,5899,Social Care - Direct Payments,29/09/2020,3110827504,546.00,Purple Conversation Com In Co (DP)
http://statistics.data.gov.uk/id/local-authority/38,Oxfordshire County Council,Support at Home U65 Learning Disability,5690,,10/09/2020,3110818829,546.00,Turnstyle
http://statistics.data.gov.uk/id/local-authority/38,Oxfordshire County Council,,1441,Uncleared Misc Income Receipts,03/09/2020,3110815580,546.52,OCC One Time Vendor
http://statistics.data.gov.uk/id/local-authority/38,Oxfordshire County Council,Support at Home U65 Learning Disability,5899,Social Care - Direct Payments,01/09/2020,3110812428,546.88,Redacted Personal Data 
http://statistics.data.gov.uk/id/local-authority/38,Oxfordshire County Council,Support at Home U65 Learning Disability,5899,Social Care - Direct Payments,30/09/2020,3110829543,546.88,Redacted Personal Data 
http://statistics.data.gov.uk/id/local-authority/38,Oxfordshire County Council,Support at Home 65+ Physical Support,5696,,08/09/2020,3110816483,546.96,Orders of St John Care Trust
http://statistics.data.gov.uk/id/local-authority/38,Oxfordshire County Council,Support at Home 65+ Physical Support,5696,,03/09/2020,2200790937,547.30,Orders of St John Care Trust
http://statistics.data.gov.uk/id/local-authority/38,Oxfordshire County Council,Support at Home 65+ Physical Support,5693,,16/09/2020,3110825042,547.60,Pioneering Care Bicester Limited
http://statistics.data.gov.uk/id/local-authority/38,Oxfordshire County Council,Support at Home 65+ Physical Support,5696,,08/09/2020,3110816384,547.85,Orders of St John Care Trust
http://statistics.data.gov.uk/id/local-authority/38,Oxfordshire County Council,SEN Miscellaneous Expenditure,5554,Childrens' Social Care - Direct Payments,25/09/2020,3110827202,548.17,Redacted Personal Data 
http://statistics.data.gov.uk/id/local-authority/38,Oxfordshire County Council,Support at Home U65 Learning Disability,5688,,10/09/2020,3110820615,548.26,The Brandon Trust
http://statistics.data.gov.uk/id/local-authority/38,Oxfordshire County Council,North FSS Statutory - Witney,5227,Other Transport Arrangements,15/09/2020,9300048426,548.77,OCC SS Oxford City Div 1 Cash
http://statistics.data.gov.uk/id/local-authority/38,Oxfordshire County Council,Support at Home 65+ Physical Support,5899,Social Care - Direct Payments,29/09/2020,3110827713,549.60,Purple Conversation Com In Co (DP)
http://statistics.data.gov.uk/id/local-authority/38,Oxfordshire County Council,LEGAL SERVICES,5251,Legal Costs,21/09/2020,2200797635,550.00,Alex Perry
http://statistics.data.gov.uk/id/local-authority/38,Oxfordshire County Council,LEGAL SERVICES,5251,Legal Costs,11/09/2020,2200794475,550.00,Annie Sayers
http://statistics.data.gov.uk/id/local-authority/38,Oxfordshire County Council,LEGAL SERVICES,5251,Legal Costs,11/09/2020,2200794564,550.00,David Marusza
http://statistics.data.gov.uk/id/local-authority/38,Oxfordshire County Council,Independent Foster,5559,,02/09/2020,3110815145,550.00,FAMILY PLACEMENT.COM
http://statistics.data.gov.uk/id/local-authority/38,Oxfordshire County Council,CENS & SURV NON GRNT,4531,Materials,29/09/2020,2200800267,550.00,Intelligent Data (Collection) Ltd
http://statistics.data.gov.uk/id/local-authority/38,Oxfordshire County Council,LEGAL SERVICES,5251,Legal Costs,21/09/2020,2200797657,550.00,Kate Ferguson
http://statistics.data.gov.uk/id/local-authority/38,Oxfordshire County Council,LEGAL SERVICES,5251,Legal Costs,24/09/2020,2200799174,550.00,Miss Chloe Wilkins
http://statistics.data.gov.uk/id/local-authority/38,Oxfordshire County Council,LEGAL SERVICES,5251,Legal Costs,03/09/2020,2200791027,550.00,Miss Emily Rayner
http://statistics.data.gov.uk/id/local-authority/38,Oxfordshire County Council,LEGAL SERVICES,5251,Legal Costs,18/09/2020,2200797383,550.00,Miss Emily Rayner
http://statistics.data.gov.uk/id/local-authority/38,Oxfordshire County Council,LEGAL SERVICES,5251,Legal Costs,30/09/2020,2200801025,550.00,Miss Justine Ramsden
http://statistics.data.gov.uk/id/local-authority/38,Oxfordshire County Council,LEGAL SERVICES,5251,Legal Costs,21/09/2020,2200797798,550.00,Oliver Powell (Harcourt)
http://statistics.data.gov.uk/id/local-authority/38,Oxfordshire County Council,Support at Home 65+ Physical Support,5899,Social Care - Direct Payments,02/09/2020,3110814138,550.00,Purple Conversation Com In Co (DP)
http://statistics.data.gov.uk/id/local-authority/38,Oxfordshire County Council,Support at Home 65+ Physical Support,5899,Social Care - Direct Payments,29/09/2020,3110827982,550.00,Purple Conversation Com In Co (DP)
http://statistics.data.gov.uk/id/local-authority/38,Oxfordshire County Council,LEGAL SERVICES,5251,Legal Costs,03/09/2020,2200790766,550.00,Stephen Crispin
http://statistics.data.gov.uk/id/local-authority/38,Oxfordshire County Council,SEN TRANSPORT,4330,Transport to School Activities,02/09/2020,3110815466,550.00,The Oxfordshire Taxi Company Ltd T/
http://statistics.data.gov.uk/id/local-authority/38,Oxfordshire County Council,LEGAL SERVICES,5251,Legal Costs,02/09/2020,2200790696,550.00,Vicky Reynolds
http://statistics.data.gov.uk/id/local-authority/38,Oxfordshire County Council,LEGAL SERVICES,5251,Legal Costs,10/09/2020,2200793852,550.00,Vicky Reynolds
http://statistics.data.gov.uk/id/local-authority/38,Oxfordshire County Council,LEGAL SERVICES,5251,Legal Costs,21/09/2020,2200797647,550.00,Vicky Reynolds
http://statistics.data.gov.uk/id/local-authority/38,Oxfordshire County Council,LEGAL SERVICES,5251,Legal Costs,18/09/2020,2200797281,550.00,Victoria Flowers
http://statistics.data.gov.uk/id/local-authority/38,Oxfordshire County Council,Support at Home U65 Physical Support,5689,,15/09/2020,3110823344,550.13,Care Outlook Ltd
http://statistics.data.gov.uk/id/local-authority/38,Oxfordshire County Council,MAINSTREAM-PRIMARY,4330,Transport to School Activities,02/09/2020,3110815348,550.80,Go Green Taxis
http://statistics.data.gov.uk/id/local-authority/38,Oxfordshire County Council,Support at Home 65+ Physical Support,5689,,15/09/2020,3110823410,551.00,Caremark (West Oxfordshire & Cherwe
http://statistics.data.gov.uk/id/local-authority/38,Oxfordshire County Council,Support at Home U65 Learning Disability,5688,,10/09/2020,3110819566,551.10,Mencap Contracts
http://statistics.data.gov.uk/id/local-authority/38,Oxfordshire County Council,Support at Home U65 Learning Disability,5688,,10/09/2020,3110819631,551.10,Mencap Contracts
http://statistics.data.gov.uk/id/local-authority/38,Oxfordshire County Council,Support at Home U65 Learning Disability,5688,,10/09/2020,3110819634,551.10,Mencap Contracts
http://statistics.data.gov.uk/id/local-authority/38,Oxfordshire County Council,Support at Home 65+ Learning Disability,5688,,10/09/2020,3110820487,551.10,The Brandon Trust
http://statistics.data.gov.uk/id/local-authority/38,Oxfordshire County Council,Support at Home 65+ Physical Support,5681,,10/09/2020,3110819874,551.14,Orders of St John
http://statistics.data.gov.uk/id/local-authority/38,Oxfordshire County Council,Support at Home 65+ Memory & Cognition,5693,,09/09/2020,3110817338,551.46,SureCare Oxfordshire
http://statistics.data.gov.uk/id/local-authority/38,Oxfordshire County Council,Support at Home U65 Sensory Support,5899,Social Care - Direct Payments,01/09/2020,3110812427,552.00,Redacted Personal Data 
http://statistics.data.gov.uk/id/local-authority/38,Oxfordshire County Council,Support at Home U65 Sensory Support,5899,Social Care - Direct Payments,30/09/2020,3110829090,552.00,Redacted Personal Data 
http://statistics.data.gov.uk/id/local-authority/38,Oxfordshire County Council,Support at Home U65 Other /Soc Isolation,5899,Social Care - Direct Payments,02/09/2020,3110813809,552.00,Purple Conversation Com In Co (DP)
http://statistics.data.gov.uk/id/local-authority/38,Oxfordshire County Council,Support at Home U65 Other /Soc Isolation,5899,Social Care - Direct Payments,29/09/2020,3110827657,552.00,Purple Conversation Com In Co (DP)
http://statistics.data.gov.uk/id/local-authority/38,Oxfordshire County Council,TRANSPORT COSTS,4330,Transport to School Activities,01/09/2020,3110812238,552.50,Lionne Cars
http://statistics.data.gov.uk/id/local-authority/38,Oxfordshire County Council,Support at Home U65 Physical Support,5698,,09/09/2020,3110817915,552.57,Day & Night Care Assistance
http://statistics.data.gov.uk/id/local-authority/38,Oxfordshire County Council,Support at Home 65+ Learning Disability,5690,,10/09/2020,3110819211,552.69,Style Acre
http://statistics.data.gov.uk/id/local-authority/38,Oxfordshire County Council,LOOKED AFTER CITY 2,5394,Other Expenses,09/09/2020,3110817419,552.75,Redacted Personal Data 
http://statistics.data.gov.uk/id/local-authority/38,Oxfordshire County Council,LOOKED AFTER CITY 2,5394,Other Expenses,29/09/2020,3110828904,552.75,Redacted Personal Data 
http://statistics.data.gov.uk/id/local-authority/38,Oxfordshire County Council,LOOKED AFTER CITY 1,5394,Other Expenses,29/09/2020,3110828918,552.75,Redacted Personal Data 
http://statistics.data.gov.uk/id/local-authority/38,Oxfordshire County Council,Support at Home U65 Learning Disability,5688,,10/09/2020,3110820754,553.05,The Camden Society
http://statistics.data.gov.uk/id/local-authority/38,Oxfordshire County Council,Support at Home U65 Learning Disability,5899,Social Care - Direct Payments,02/09/2020,3110814338,553.20,Purple Conversation Com In Co (DP)
http://statistics.data.gov.uk/id/local-authority/38,Oxfordshire County Council,Support at Home U65 Learning Disability,5899,Social Care - Direct Payments,29/09/2020,3110828181,553.20,Purple Conversation Com In Co (DP)
http://statistics.data.gov.uk/id/local-authority/38,Oxfordshire County Council,Supervised Consumption APL,4934,,01/09/2020,3110818404,553.28,Lloyds Pharmacy
http://statistics.data.gov.uk/id/local-authority/38,Oxfordshire County Council,Support at Home U65 Learning Disability,5689,,15/09/2020,3110824076,553.44,Premier Personal Care
http://statistics.data.gov.uk/id/local-authority/38,Oxfordshire County Council,Support at Home U65 Learning Disability,5227,Other Transport Arrangements,04/09/2020,3110815768,553.60,Crown Cabs Travel Ltd
http://statistics.data.gov.uk/id/local-authority/38,Oxfordshire County Council,NURSERY ED FUND,5537,Payments to Other Establishments,02/09/2020,3110814997,553.73,Melanie Ford
http://statistics.data.gov.uk/id/local-authority/38,Oxfordshire County Council,LANDLORD & TENANT,8102,Payments to main contractor,18/09/2020,2200797303,553.83,Skanska Construction UK Ltd Sp
http://statistics.data.gov.uk/id/local-authority/38,Oxfordshire County Council,Support at Home 65+ Physical Support,5689,,15/09/2020,3110823764,554.19,Kare Plus Oxford
http://statistics.data.gov.uk/id/local-authority/38,Oxfordshire County Council,Support at Home 65+ Physical Support,5698,,09/09/2020,3110817780,554.45,Bridges Home Care Ltd
http://statistics.data.gov.uk/id/local-authority/38,Oxfordshire County Council,Support at Home U65 Physical Support,5899,Social Care - Direct Payments,02/09/2020,3110813973,555.20,Purple Conversation Com In Co (DP)
http://statistics.data.gov.uk/id/local-authority/38,Oxfordshire County Council,Support at Home U65 Physical Support,5899,Social Care - Direct Payments,29/09/2020,3110827819,555.20,Purple Conversation Com In Co (DP)
http://statistics.data.gov.uk/id/local-authority/38,Oxfordshire County Council,Health Acquired Brain Injury C Homes U65,5691,,11/09/2020,3110823037,555.28,PROFESSIONAL CARE SERVICES BUCKS
http://statistics.data.gov.uk/id/local-authority/38,Oxfordshire County Council,Support at Home 65+ Physical Support,5689,,15/09/2020,3110823450,555.39,Casa Care Ltd
http://statistics.data.gov.uk/id/local-authority/38,Oxfordshire County Council,Support at Home 65+ Physical Support,5696,,08/09/2020,3110816404,555.75,Orders of St John Care Trust
http://statistics.data.gov.uk/id/local-authority/38,Oxfordshire County Council,Staff Travel Benefits,4340,Staff and Volunteer Travel Expenses - General,25/09/2020,2200799399,555.75,Stagecoach Services Ltd.
http://statistics.data.gov.uk/id/local-authority/38,Oxfordshire County Council,Support at Home U65 Physical Support,5899,Social Care - Direct Payments,02/09/2020,3110813772,556.00,Purple Conversation Com In Co (DP)
http://statistics.data.gov.uk/id/local-authority/38,Oxfordshire County Council,Support at Home U65 Physical Support,5899,Social Care - Direct Payments,29/09/2020,3110827620,556.00,Purple Conversation Com In Co (DP)
http://statistics.data.gov.uk/id/local-authority/38,Oxfordshire County Council,Support at Home U65 Learning Disability,5899,Social Care - Direct Payments,01/09/2020,3110812474,556.00,Redacted Personal Data 
http://statistics.data.gov.uk/id/local-authority/38,Oxfordshire County Council,Support at Home U65 Learning Disability,5899,Social Care - Direct Payments,30/09/2020,3110829107,556.00,Redacted Personal Data 
http://statistics.data.gov.uk/id/local-authority/38,Oxfordshire County Council,Support at Home U65 Learning Disability,5689,,15/09/2020,3110824012,556.14,Pechiv Ltd
http://statistics.data.gov.uk/id/local-authority/38,Oxfordshire County Council,Support at Home U65 Learning Disability,5690,,10/09/2020,3110819132,556.93,Style Acre
http://statistics.data.gov.uk/id/local-authority/38,Oxfordshire County Council,Support at Home 65+ Physical Support,5696,,08/09/2020,3110816466,557.18,Orders of St John Care Trust
http://statistics.data.gov.uk/id/local-authority/38,Oxfordshire County Council,CHC Fast Track - Sup at Homes - Over 65,5691,,11/09/2020,3110823064,557.40,Olive Tree Services
http://statistics.data.gov.uk/id/local-authority/38,Oxfordshire County Council,Support at Home U65 Learning Disability,5899,Social Care - Direct Payments,01/09/2020,3110812421,557.60,Redacted Personal Data 
http://statistics.data.gov.uk/id/local-authority/38,Oxfordshire County Council,Support at Home U65 Learning Disability,5899,Social Care - Direct Payments,30/09/2020,3110829086,557.60,Redacted Personal Data 
http://statistics.data.gov.uk/id/local-authority/38,Oxfordshire County Council,Support at Home U65 Other /Soc Isolation,5899,Social Care - Direct Payments,02/09/2020,3110813790,557.60,Purple Conversation Com In Co (DP)
http://statistics.data.gov.uk/id/local-authority/38,Oxfordshire County Council,Support at Home U65 Other /Soc Isolation,5899,Social Care - Direct Payments,29/09/2020,3110827638,557.60,Purple Conversation Com In Co (DP)
http://statistics.data.gov.uk/id/local-authority/38,Oxfordshire County Council,Support at Home 65+ Physical Support,5689,,15/09/2020,3110823678,557.63,Greigcare Home Service
http://statistics.data.gov.uk/id/local-authority/38,Oxfordshire County Council,Support at Home 65+ Physical Support,5689,,15/09/2020,3110823415,557.99,Caremark (West Oxfordshire & Cherwe
http://statistics.data.gov.uk/id/local-authority/38,Oxfordshire County Council,Support at Home 65+ Physical Support,5689,,15/09/2020,3110823650,558.00,Greigcare Home Service
http://statistics.data.gov.uk/id/local-authority/38,Oxfordshire County Council,Support at Home U65 Physical Support,5899,Social Care - Direct Payments,02/09/2020,3110814451,558.00,Purple Conversation Com In Co (DP)
http://statistics.data.gov.uk/id/local-authority/38,Oxfordshire County Council,Support at Home U65 Physical Support,5899,Social Care - Direct Payments,29/09/2020,3110828294,558.00,Purple Conversation Com In Co (DP)
http://statistics.data.gov.uk/id/local-authority/38,Oxfordshire County Council,LIBRARY COLLECTIONS,4539,"Books, DVDs and CDs",16/09/2020,3110825222,559.98,ASKEWS & HOLTS LIBRARY SERVICES LTD
http://statistics.data.gov.uk/id/local-authority/38,Oxfordshire County Council,L&D CORE PROGRAMME,3103,Other Training Courses and Qualification,28/09/2020,2200799839,560.00,Premier Partnership
http://statistics.data.gov.uk/id/local-authority/38,Oxfordshire County Council,Support at Home U65 Learning Disability,5899,Social Care - Direct Payments,02/09/2020,3110813903,560.00,Purple Conversation Com In Co (DP)
http://statistics.data.gov.uk/id/local-authority/38,Oxfordshire County Council,Support at Home U65 Physical Support,5899,Social Care - Direct Payments,02/09/2020,3110814101,560.00,Purple Conversation Com In Co (DP)
http://statistics.data.gov.uk/id/local-authority/38,Oxfordshire County Council,Support at Home U65 Physical Support,5899,Social Care - Direct Payments,02/09/2020,3110814279,560.00,Purple Conversation Com In Co (DP)
http://statistics.data.gov.uk/id/local-authority/38,Oxfordshire County Council,Support at Home 65+ Physical Support,5899,Social Care - Direct Payments,02/09/2020,3110814419,560.00,Purple Conversation Com In Co (DP)
http://statistics.data.gov.uk/id/local-authority/38,Oxfordshire County Council,Support at Home 65+ Physical Support,5899,Social Care - Direct Payments,22/09/2020,3110825841,560.00,Purple Conversation Com In Co (DP)
http://statistics.data.gov.uk/id/local-authority/38,Oxfordshire County Council,Support at Home U65 Learning Disability,5899,Social Care - Direct Payments,29/09/2020,3110827751,560.00,Purple Conversation Com In Co (DP)
http://statistics.data.gov.uk/id/local-authority/38,Oxfordshire County Council,Support at Home U65 Physical Support,5899,Social Care - Direct Payments,29/09/2020,3110827947,560.00,Purple Conversation Com In Co (DP)
http://statistics.data.gov.uk/id/local-authority/38,Oxfordshire County Council,Support at Home U65 Physical Support,5899,Social Care - Direct Payments,29/09/2020,3110828121,560.00,Purple Conversation Com In Co (DP)
http://statistics.data.gov.uk/id/local-authority/38,Oxfordshire County Council,Support at Home 65+ Physical Support,5899,Social Care - Direct Payments,29/09/2020,3110828262,560.00,Purple Conversation Com In Co (DP)
http://statistics.data.gov.uk/id/local-authority/38,Oxfordshire County Council,Support at Home U65 Learning Disability,5696,,09/09/2020,3110817166,560.08,Housing&care21
http://statistics.data.gov.uk/id/local-authority/38,Oxfordshire County Council,SEN TRANSPORT,5227,Other Transport Arrangements,23/09/2020,3110826583,561.00,A2B Castle Cars Ltd
http://statistics.data.gov.uk/id/local-authority/38,Oxfordshire County Council,SEN TRANSPORT,5227,Other Transport Arrangements,23/09/2020,3110826591,561.00,A2B Castle Cars Ltd
http://statistics.data.gov.uk/id/local-authority/38,Oxfordshire County Council,SEN TRANSPORT,4330,Transport to School Activities,02/09/2020,3110815296,561.00,The Oxfordshire Taxi Company Ltd T/
http://statistics.data.gov.uk/id/local-authority/38,Oxfordshire County Council,Support at Home 65+ Physical Support,5689,,15/09/2020,3110823369,561.06,Caremark (West Oxfordshire & Cherwe
http://statistics.data.gov.uk/id/local-authority/38,Oxfordshire County Council,Support at Home 65+ Physical Support,5899,Social Care - Direct Payments,02/09/2020,3110814358,561.44,Purple Conversation Com In Co (DP)
http://statistics.data.gov.uk/id/local-authority/38,Oxfordshire County Council,Support at Home 65+ Physical Support,5899,Social Care - Direct Payments,29/09/2020,3110828201,561.44,Purple Conversation Com In Co (DP)
http://statistics.data.gov.uk/id/local-authority/38,Oxfordshire County Council,Support at Home U65 Learning Disability,5690,,10/09/2020,3110818867,561.60,Turnstyle
http://statistics.data.gov.uk/id/local-authority/38,Oxfordshire County Council,LEAVING CARE NORTH,3942,Hire of Accommodation and Facilities,17/09/2020,3110825367,561.94,St Mungos Community Housing Ltd
http://statistics.data.gov.uk/id/local-authority/38,Oxfordshire County Council,Community DOLS,4861,Hired and Contracted Services,04/09/2020,3110815827,562.50,OCC One Time Vendor
http://statistics.data.gov.uk/id/local-authority/38,Oxfordshire County Council,AGENCY RESID - DISAB,5549,B*Fostering Allowance - Regulation 38,01/09/2020,3110813286,562.90,Redacted Personal Data 
http://statistics.data.gov.uk/id/local-authority/38,Oxfordshire County Council,CSC Sustainability Payments Covid-19,4450,Disability Aids and Equipment,02/09/2020,3110815203,564.00,KIDS
http://statistics.data.gov.uk/id/local-authority/38,Oxfordshire County Council,Support at Home U65 Physical Support,5899,Social Care - Direct Payments,02/09/2020,3110814218,564.00,Purple Conversation Com In Co (DP)
http://statistics.data.gov.uk/id/local-authority/38,Oxfordshire County Council,Support at Home U65 Physical Support,5899,Social Care - Direct Payments,29/09/2020,3110828060,564.00,Purple Conversation Com In Co (DP)
http://statistics.data.gov.uk/id/local-authority/38,Oxfordshire County Council,2 YEAR OLD FUNDING,5537,Payments to Other Establishments,07/09/2020,3110816000,564.48,The Nursery
http://statistics.data.gov.uk/id/local-authority/38,Oxfordshire County Council,Support at Home U65 Mental Health,5698,,09/09/2020,3110818079,564.75,KCARE NURSING AGENCY
http://statistics.data.gov.uk/id/local-authority/38,Oxfordshire County Council,ELECTRIC AVENUE,4111,Security Costs,04/09/2020,2200791203,565.00,Securipol Ltd
http://statistics.data.gov.uk/id/local-authority/38,Oxfordshire County Council,Support at Home U65 Learning Disability,5696,,08/09/2020,3110816478,565.33,Orders of St John Care Trust
http://statistics.data.gov.uk/id/local-authority/38,Oxfordshire County Council,LIBRARY COLLECTIONS,4539,"Books, DVDs and CDs",02/09/2020,3110815498,565.69,ASKEWS & HOLTS LIBRARY SERVICES LTD
http://statistics.data.gov.uk/id/local-authority/38,Oxfordshire County Council,Support at Home U65 Learning Disability,5899,Social Care - Direct Payments,01/09/2020,3110812922,565.88,Redacted Personal Data 
http://statistics.data.gov.uk/id/local-authority/38,Oxfordshire County Council,Support at Home U65 Learning Disability,5899,Social Care - Direct Payments,30/09/2020,3110829497,565.88,Redacted Personal Data 
http://statistics.data.gov.uk/id/local-authority/38,Oxfordshire County Council,FLEET OPERATIONS,4210,Vehicles and Plant - Repairs and Main,14/09/2020,2200794703,566.03,Cherwell District Council
http://statistics.data.gov.uk/id/local-authority/38,Oxfordshire County Council,SEN TRANSPORT,4330,Transport to School Activities,08/09/2020,3110816250,566.10,Streamline Peppard Taxi
http://statistics.data.gov.uk/id/local-authority/38,Oxfordshire County Council,Support at Home 65+ Physical Support,5698,,09/09/2020,3110817913,566.15,Day & Night Care Assistance
http://statistics.data.gov.uk/id/local-authority/38,Oxfordshire County Council,COUNTY HALL,4531,Materials,09/09/2020,2200792917,566.45,Nationwide Business Relocations Ltd
http://statistics.data.gov.uk/id/local-authority/38,Oxfordshire County Council,Support at Home U65 Learning Disability,5899,Social Care - Direct Payments,01/09/2020,3110812729,567.84,Redacted Personal Data 
http://statistics.data.gov.uk/id/local-authority/38,Oxfordshire County Council,Support at Home U65 Learning Disability,5899,Social Care - Direct Payments,30/09/2020,3110829301,567.84,Redacted Personal Data 
http://statistics.data.gov.uk/id/local-authority/38,Oxfordshire County Council,Support at Home 65+ Physical Support,5899,Social Care - Direct Payments,02/09/2020,3110813968,568.00,Purple Conversation Com In Co (DP)
http://statistics.data.gov.uk/id/local-authority/38,Oxfordshire County Council,Support at Home 65+ Physical Support,5899,Social Care - Direct Payments,29/09/2020,3110827814,568.00,Purple Conversation Com In Co (DP)
http://statistics.data.gov.uk/id/local-authority/38,Oxfordshire County Council,DISABILITIES TEAM-C,5227,Other Transport Arrangements,04/09/2020,3110815789,568.33,Oxfordshire Travel Ltd
http://statistics.data.gov.uk/id/local-authority/38,Oxfordshire County Council,Support at Home 65+ Physical Support,5698,,09/09/2020,3110817840,568.54,Charterville Care At Home Ltd
http://statistics.data.gov.uk/id/local-authority/38,Oxfordshire County Council,AGENCY RESID - DISAB,5549,B*Fostering Allowance - Regulation 38,01/09/2020,3110813538,569.00,Redacted Personal Data 
http://statistics.data.gov.uk/id/local-authority/38,Oxfordshire County Council,AGENCY RESID - DISAB,5549,B*Fostering Allowance - Regulation 38,09/09/2020,3110817542,569.00,Redacted Personal Data 
http://statistics.data.gov.uk/id/local-authority/38,Oxfordshire County Council,AGENCY RESID - DISAB,5549,B*Fostering Allowance - Regulation 38,15/09/2020,3110824776,569.00,Redacted Personal Data 
http://statistics.data.gov.uk/id/local-authority/38,Oxfordshire County Council,AGENCY RESID - DISAB,5549,B*Fostering Allowance - Regulation 38,22/09/2020,3110826281,569.00,Redacted Personal Data 
http://statistics.data.gov.uk/id/local-authority/38,Oxfordshire County Council,AGENCY RESID - DISAB,5549,B*Fostering Allowance - Regulation 38,29/09/2020,3110829029,569.00,Redacted Personal Data 
http://statistics.data.gov.uk/id/local-authority/38,Oxfordshire County Council,FOSTERING MAIN,5541,B*Foster Parents,01/09/2020,3110813266,569.00,Redacted Personal Data 
http://statistics.data.gov.uk/id/local-authority/38,Oxfordshire County Council,FOSTERING MAIN,5541,B*Foster Parents,09/09/2020,3110817393,569.00,Redacted Personal Data 
http://statistics.data.gov.uk/id/local-authority/38,Oxfordshire County Council,FOSTERING MAIN,5541,B*Foster Parents,15/09/2020,3110824542,569.00,Redacted Personal Data 
http://statistics.data.gov.uk/id/local-authority/38,Oxfordshire County Council,FOSTERING MAIN,5541,B*Foster Parents,22/09/2020,3110826134,569.00,Redacted Personal Data 
http://statistics.data.gov.uk/id/local-authority/38,Oxfordshire County Council,FOSTERING MAIN,5541,B*Foster Parents,29/09/2020,3110828881,569.00,Redacted Personal Data 
http://statistics.data.gov.uk/id/local-authority/38,Oxfordshire County Council,FOSTERING MAIN,5541,B*Foster Parents,01/09/2020,3110813097,569.00,Redacted Personal Data 
http://statistics.data.gov.uk/id/local-authority/38,Oxfordshire County Council,FOSTERING MAIN,5541,B*Foster Parents,09/09/2020,3110817208,569.00,Redacted Personal Data 
http://statistics.data.gov.uk/id/local-authority/38,Oxfordshire County Council,FOSTERING MAIN,5541,B*Foster Parents,15/09/2020,3110824396,569.00,Redacted Personal Data 
http://statistics.data.gov.uk/id/local-authority/38,Oxfordshire County Council,FOSTERING MAIN,5541,B*Foster Parents,22/09/2020,3110826017,569.00,Redacted Personal Data 
http://statistics.data.gov.uk/id/local-authority/38,Oxfordshire County Council,FOSTERING MAIN,5541,B*Foster Parents,29/09/2020,3110828790,569.00,Redacted Personal Data 
http://statistics.data.gov.uk/id/local-authority/38,Oxfordshire County Council,Support at Home U65 Learning Disability,5899,Social Care - Direct Payments,02/09/2020,3110814186,570.00,Purple Conversation Com In Co (DP)
http://statistics.data.gov.uk/id/local-authority/38,Oxfordshire County Council,Support at Home U65 Learning Disability,5899,Social Care - Direct Payments,29/09/2020,3110828029,570.00,Purple Conversation Com In Co (DP)
http://statistics.data.gov.uk/id/local-authority/38,Oxfordshire County Council,Support at Home U65 Learning Disability,5688,,10/09/2020,3110820109,570.00,Style Acre
http://statistics.data.gov.uk/id/local-authority/38,Oxfordshire County Council,Care Homes - Over 65 Memory & Cognition,5686,,10/09/2020,3110819513,571.00,Fewcott Healthcare Ltd
http://statistics.data.gov.uk/id/local-authority/38,Oxfordshire County Council,Support at Home U65 Physical Support,5899,Social Care - Direct Payments,02/09/2020,3110813894,571.20,Purple Conversation Com In Co (DP)
http://statistics.data.gov.uk/id/local-authority/38,Oxfordshire County Council,Support at Home U65 Physical Support,5899,Social Care - Direct Payments,29/09/2020,3110827742,571.20,Purple Conversation Com In Co (DP)
http://statistics.data.gov.uk/id/local-authority/38,Oxfordshire County Council,,1448,Blackfield Inc & Exp A/c,21/09/2020,3110825700,571.43,OCC One Time Vendor
http://statistics.data.gov.uk/id/local-authority/38,Oxfordshire County Council,Support at Home 65+ Physical Support,5698,,09/09/2020,3110817724,571.52,Bridges Home Care Ltd
http://statistics.data.gov.uk/id/local-authority/38,Oxfordshire County Council,SEN TRANSPORT,5227,Other Transport Arrangements,02/09/2020,3110815213,572.00,Ash Cars (UK) Ltd
http://statistics.data.gov.uk/id/local-authority/38,Oxfordshire County Council,Support at Home U65 Learning Disability,5899,Social Care - Direct Payments,02/09/2020,3110813748,572.00,Purple Conversation Com In Co (DP)
http://statistics.data.gov.uk/id/local-authority/38,Oxfordshire County Council,Support at Home U65 Learning Disability,5899,Social Care - Direct Payments,29/09/2020,3110827595,572.00,Purple Conversation Com In Co (DP)
http://statistics.data.gov.uk/id/local-authority/38,Oxfordshire County Council,LD Continuing Care - Sup at Home - U65,5691,,16/09/2020,3110825188,572.11,Paterson Recruitment
http://statistics.data.gov.uk/id/local-authority/38,Oxfordshire County Council,Support at Home U65 MH OBC Contract,5689,,15/09/2020,3110824095,572.76,Response Organisation
http://statistics.data.gov.uk/id/local-authority/38,Oxfordshire County Council,Support at Home 65+ Physical Support,5698,,09/09/2020,3110818084,572.97,Oxford Private Care
http://statistics.data.gov.uk/id/local-authority/38,Oxfordshire County Council,Support at Home U65 Physical Support,5698,,09/09/2020,3110817814,573.00,Charterville Care At Home Ltd
http://statistics.data.gov.uk/id/local-authority/38,Oxfordshire County Council,Support at Home 65+ Learning Disability,5690,,10/09/2020,3110818987,573.00,Style Acre
http://statistics.data.gov.uk/id/local-authority/38,Oxfordshire County Council,Support at Home 65+ Physical Support,5689,,15/09/2020,3110823468,573.11,Oxfordshire Crossroads
http://statistics.data.gov.uk/id/local-authority/38,Oxfordshire County Council,SEN TRANSPORT,5227,Other Transport Arrangements,30/09/2020,3110827367,573.20,C&M Management Services Ltd
http://statistics.data.gov.uk/id/local-authority/38,Oxfordshire County Council,Delegated Health Tasks  - Over 65,5691,,07/09/2020,3110816646,573.50,Bluebird Care
http://statistics.data.gov.uk/id/local-authority/38,Oxfordshire County Council,,1448,Blackfield Inc & Exp A/c,11/09/2020,3110822989,573.56,OCC One Time Vendor
http://statistics.data.gov.uk/id/local-authority/38,Oxfordshire County Council,Support at Home 65+ Physical Support,5899,Social Care - Direct Payments,02/09/2020,3110814078,574.00,Purple Conversation Com In Co (DP)
http://statistics.data.gov.uk/id/local-authority/38,Oxfordshire County Council,Support at Home 65+ Physical Support,5899,Social Care - Direct Payments,29/09/2020,3110827925,574.00,Purple Conversation Com In Co (DP)
http://statistics.data.gov.uk/id/local-authority/38,Oxfordshire County Council,LANDLORD & TENANT,4001,Uniform Business Rates,29/09/2020,3500073174,574.00,South Oxfordshire District Council
http://statistics.data.gov.uk/id/local-authority/38,Oxfordshire County Council,LANDLORD & TENANT,4001,Uniform Business Rates,29/09/2020,3500073149,574.00,West Oxfordshire District Council
http://statistics.data.gov.uk/id/local-authority/38,Oxfordshire County Council,PREMISES,4001,Uniform Business Rates,29/09/2020,3500073152,574.00,West Oxfordshire District Council
http://statistics.data.gov.uk/id/local-authority/38,Oxfordshire County Council,COVID-19 INFECTION CONTROL 1,5689,,25/09/2020,3110827119,574.50,Fitzroy Support
http://statistics.data.gov.uk/id/local-authority/38,Oxfordshire County Council,COVID-19 INFECTION CONTROL 1,5689,,25/09/2020,3110827086,574.50,Life Path Trust Ltd
http://statistics.data.gov.uk/id/local-authority/38,Oxfordshire County Council,COVID-19 INFECTION CONTROL 1,5689,,25/09/2020,3110827133,574.50,SEEABILITY
http://statistics.data.gov.uk/id/local-authority/38,Oxfordshire County Council,Support at Home 65+ Physical Support,5696,,08/09/2020,3110816484,574.52,Orders of St John Care Trust
http://statistics.data.gov.uk/id/local-authority/38,Oxfordshire County Council,Support at Home 65+ Physical Support,5698,,09/09/2020,3110817815,574.53,Charterville Care At Home Ltd
http://statistics.data.gov.uk/id/local-authority/38,Oxfordshire County Council,Support at Home U65 Learning Disability,5899,Social Care - Direct Payments,01/09/2020,3110812479,574.60,Redacted Personal Data 
http://statistics.data.gov.uk/id/local-authority/38,Oxfordshire County Council,Support at Home U65 Learning Disability,5899,Social Care - Direct Payments,30/09/2020,3110829109,574.60,Redacted Personal Data 
http://statistics.data.gov.uk/id/local-authority/38,Oxfordshire County Council,Contingency Home Care,5689,,15/09/2020,3110823932,574.70,Oxford University Hospitals NHS FT
http://statistics.data.gov.uk/id/local-authority/38,Oxfordshire County Council,Support at Home 65+ Physical Support,5698,,09/09/2020,3110818083,574.75,Oxford Private Care
http://statistics.data.gov.uk/id/local-authority/38,Oxfordshire County Council,LEGAL SERVICES,5251,Legal Costs,11/09/2020,2200794465,575.00,Annie Sayers
http://statistics.data.gov.uk/id/local-authority/38,Oxfordshire County Council,LEGAL SERVICES,5251,Legal Costs,21/09/2020,2200797654,575.00,Vicky Reynolds
http://statistics.data.gov.uk/id/local-authority/38,Oxfordshire County Council,Support at Home U65 Learning Disability,5899,Social Care - Direct Payments,01/09/2020,3110812648,575.20,Redacted Personal Data 
http://statistics.data.gov.uk/id/local-authority/38,Oxfordshire County Council,Support at Home U65 Learning Disability,5899,Social Care - Direct Payments,30/09/2020,3110829220,575.20,Redacted Personal Data 
http://statistics.data.gov.uk/id/local-authority/38,Oxfordshire County Council,LIBRARY COLLECTIONS,4539,"Books, DVDs and CDs",10/09/2020,2200793675,575.30,ULVERSCROFT LARGE PRINT BOOKS LTD
http://statistics.data.gov.uk/id/local-authority/38,Oxfordshire County Council,LIBRARY COLLECTIONS,4539,"Books, DVDs and CDs",17/09/2020,2200796584,575.30,ULVERSCROFT LARGE PRINT BOOKS LTD
http://statistics.data.gov.uk/id/local-authority/38,Oxfordshire County Council,Support at Home 65+ Physical Support,5899,Social Care - Direct Payments,29/09/2020,3110827736,575.32,Purple Conversation Com In Co (DP)
http://statistics.data.gov.uk/id/local-authority/38,Oxfordshire County Council,Support at Home 65+ Physical Support,5693,,09/09/2020,3110817080,575.75,247 HOME CARE LTD
http://statistics.data.gov.uk/id/local-authority/38,Oxfordshire County Council,Support at Home U65 Mental Health,5899,Social Care - Direct Payments,02/09/2020,3110813706,576.00,Purple Conversation Com In Co (DP)
http://statistics.data.gov.uk/id/local-authority/38,Oxfordshire County Council,Support at Home 65+ Physical Support,5899,Social Care - Direct Payments,02/09/2020,3110813882,576.00,Purple Conversation Com In Co (DP)
http://statistics.data.gov.uk/id/local-authority/38,Oxfordshire County Council,Support at Home U65 Mental Health,5899,Social Care - Direct Payments,29/09/2020,3110827545,576.00,Purple Conversation Com In Co (DP)
http://statistics.data.gov.uk/id/local-authority/38,Oxfordshire County Council,Support at Home 65+ Physical Support,5899,Social Care - Direct Payments,29/09/2020,3110827730,576.00,Purple Conversation Com In Co (DP)
http://statistics.data.gov.uk/id/local-authority/38,Oxfordshire County Council,Support at Home U65 Physical Support,5899,Social Care - Direct Payments,02/09/2020,3110813646,576.04,Purple Conversation Com In Co (DP)
http://statistics.data.gov.uk/id/local-authority/38,Oxfordshire County Council,Support at Home U65 Physical Support,5899,Social Care - Direct Payments,29/09/2020,3110827475,576.04,Purple Conversation Com In Co (DP)
http://statistics.data.gov.uk/id/local-authority/38,Oxfordshire County Council,Support at Home 65+ Physical Support,5698,,09/09/2020,3110817761,576.57,Bridges Home Care Ltd
http://statistics.data.gov.uk/id/local-authority/38,Oxfordshire County Council,SM DISABILITIES,5554,Childrens' Social Care - Direct Payments,25/09/2020,3110827273,576.60,Purple Conversation Com In Co (DP)
http://statistics.data.gov.uk/id/local-authority/38,Oxfordshire County Council,Urgent Response,5689,,15/09/2020,3110823537,576.74,Day and Nightcare Assistance
http://statistics.data.gov.uk/id/local-authority/38,Oxfordshire County Council,Support at Home U65 Physical Support,5899,Social Care - Direct Payments,02/09/2020,3110813697,576.80,Purple Conversation Com In Co (DP)
http://statistics.data.gov.uk/id/local-authority/38,Oxfordshire County Council,Support at Home U65 Physical Support,5899,Social Care - Direct Payments,29/09/2020,3110827530,576.80,Purple Conversation Com In Co (DP)
http://statistics.data.gov.uk/id/local-authority/38,Oxfordshire County Council,Support at Home 65+ Learning Disability,5690,,10/09/2020,3110819187,577.63,Style Acre
http://statistics.data.gov.uk/id/local-authority/38,Oxfordshire County Council,2 YEAR OLD FUNDING,5537,Payments to Other Establishments,07/09/2020,3110816012,577.92,Wheatley Pre-School
http://statistics.data.gov.uk/id/local-authority/38,Oxfordshire County Council,SEN TRANSPORT,5227,Other Transport Arrangements,16/09/2020,3110825289,578.00,Abingdon Taxis FKN Autotaxis
http://statistics.data.gov.uk/id/local-authority/38,Oxfordshire County Council,Support at Home 65+ Physical Support,5698,,09/09/2020,3110817750,578.51,Bridges Home Care Ltd
http://statistics.data.gov.uk/id/local-authority/38,Oxfordshire County Council,TRANSPORT GENERAL,4232,Vehicle Fuel,04/09/2020,2200791290,578.54,Allstar Business Solutions Ltd
http://statistics.data.gov.uk/id/local-authority/38,Oxfordshire County Council,Covid-19 Home Support Planned Hours,5693,,16/09/2020,3110825051,579.60,Style Acre
http://statistics.data.gov.uk/id/local-authority/38,Oxfordshire County Council,Support at Home U65 Physical Support,5899,Social Care - Direct Payments,02/09/2020,3110814013,580.00,Purple Conversation Com In Co (DP)
http://statistics.data.gov.uk/id/local-authority/38,Oxfordshire County Council,Support at Home U65 Physical Support,5899,Social Care - Direct Payments,29/09/2020,3110827860,580.00,Purple Conversation Com In Co (DP)
http://statistics.data.gov.uk/id/local-authority/38,Oxfordshire County Council,Support at Home U65 Learning Disability,5899,Social Care - Direct Payments,02/09/2020,3110813701,581.40,Purple Conversation Com In Co (DP)
http://statistics.data.gov.uk/id/local-authority/38,Oxfordshire County Council,Support at Home U65 Learning Disability,5899,Social Care - Direct Payments,29/09/2020,3110827538,581.40,Purple Conversation Com In Co (DP)
http://statistics.data.gov.uk/id/local-authority/38,Oxfordshire County Council,Support at Home 65+ Mental Health,5698,,09/09/2020,3110817736,581.61,Bridges Home Care Ltd
http://statistics.data.gov.uk/id/local-authority/38,Oxfordshire County Council,Support at Home 65+ Physical Support,5689,,15/09/2020,3110823333,581.88,Care Outlook Ltd
http://statistics.data.gov.uk/id/local-authority/38,Oxfordshire County Council,Support at Home U65 Learning Disability,5899,Social Care - Direct Payments,01/09/2020,3110812448,581.92,Redacted Personal Data 
http://statistics.data.gov.uk/id/local-authority/38,Oxfordshire County Council,Support at Home U65 Learning Disability,5899,Social Care - Direct Payments,30/09/2020,3110829555,581.92,Redacted Personal Data 
http://statistics.data.gov.uk/id/local-authority/38,Oxfordshire County Council,Support at Home 65+ Physical Support,5689,,15/09/2020,3110823736,582.84,Home Helpers Care Ltd
http://statistics.data.gov.uk/id/local-authority/38,Oxfordshire County Council,FOSTERING MAIN,5549,B*Fostering Allowance - Regulation 38,29/09/2020,3110828916,582.90,Redacted Personal Data 
http://statistics.data.gov.uk/id/local-authority/38,Oxfordshire County Council,LEGAL SERVICES,5251,Legal Costs,11/09/2020,2200794566,583.33,Alex Perry
http://statistics.data.gov.uk/id/local-authority/38,Oxfordshire County Council,SIP MANAGEMENT,5251,Legal Costs,03/09/2020,2200790728,583.33,Redacted Personal Data 
http://statistics.data.gov.uk/id/local-authority/38,Oxfordshire County Council,Support at Home 65+ Memory & Cognition,5689,,15/09/2020,3110823593,583.38,Golden Services Care Ltd
http://statistics.data.gov.uk/id/local-authority/38,Oxfordshire County Council,Support at Home 65+ Physical Support,5696,,08/09/2020,3110816352,583.59,Orders of St John Care Trust
http://statistics.data.gov.uk/id/local-authority/38,Oxfordshire County Council,Support at Home 65+ Physical Support,5899,Social Care - Direct Payments,02/09/2020,3110814468,584.00,Purple Conversation Com In Co (DP)
http://statistics.data.gov.uk/id/local-authority/38,Oxfordshire County Council,Support at Home 65+ Physical Support,5899,Social Care - Direct Payments,29/09/2020,3110828311,584.00,Purple Conversation Com In Co (DP)
http://statistics.data.gov.uk/id/local-authority/38,Oxfordshire County Council,SEN TRANSPORT,5227,Other Transport Arrangements,07/09/2020,3110816152,584.02,Black and White Cars T/A Banbury Ta
http://statistics.data.gov.uk/id/local-authority/38,Oxfordshire County Council,Care Homes - Over 65 Physical Sypport,5685,B*Cycle tracks,10/09/2020,3110822732,584.44,MARIPOSA CARE GROUP LIMITED
http://statistics.data.gov.uk/id/local-authority/38,Oxfordshire County Council,LIBRARY COLLECTIONS,4539,"Books, DVDs and CDs",16/09/2020,3110825212,584.80,ASKEWS & HOLTS LIBRARY SERVICES LTD
http://statistics.data.gov.uk/id/local-authority/38,Oxfordshire County Council,FAM GRP CONFERENCES,5668,Technical and Professional Consultant F,17/09/2020,2200796239,585.00,Katie Mollaghan
http://statistics.data.gov.uk/id/local-authority/38,Oxfordshire County Council,TRADING STANDARDS,3103,Other Training Courses and Qualification,09/09/2020,9300048364,585.00,OCC Trading Standards Bank
http://statistics.data.gov.uk/id/local-authority/38,Oxfordshire County Council,Support at Home 65+ Physical Support,5899,Social Care - Direct Payments,01/09/2020,3110812589,585.00,Redacted Personal Data 
http://statistics.data.gov.uk/id/local-authority/38,Oxfordshire County Council,Support at Home 65+ Physical Support,5899,Social Care - Direct Payments,30/09/2020,3110829176,585.00,Redacted Personal Data 
http://statistics.data.gov.uk/id/local-authority/38,Oxfordshire County Council,Support at Home U65 Learning Disability,5697,,23/09/2020,3110826653,585.60,Style Acre
http://statistics.data.gov.uk/id/local-authority/38,Oxfordshire County Council,Support at Home U65 Physical Support,5698,,09/09/2020,3110818174,585.73,Oxfordshire Crossroads
http://statistics.data.gov.uk/id/local-authority/38,Oxfordshire County Council,Support at Home 65+ Physical Support,5698,,09/09/2020,3110817718,585.88,Bridges Home Care Ltd
http://statistics.data.gov.uk/id/local-authority/38,Oxfordshire County Council,"Abingdon CC, Stratton Way",3821,Grounds Maintenance Contracts,16/09/2020,2200795791,586.10,Aspire Oxfordshire
http://statistics.data.gov.uk/id/local-authority/38,Oxfordshire County Council,Delegated Health Tasks  - Over 65,5689,,15/09/2020,3110823800,586.40,Lifecarers Limited
http://statistics.data.gov.uk/id/local-authority/38,Oxfordshire County Council,MUSEUMS COLLECTIONS,4111,Security Costs,15/09/2020,2200795536,586.50,Contact Security
http://statistics.data.gov.uk/id/local-authority/38,Oxfordshire County Council,Support at Home U65 Learning Disability,5899,Social Care - Direct Payments,01/09/2020,3110812593,586.56,Redacted Personal Data 
http://statistics.data.gov.uk/id/local-authority/38,Oxfordshire County Council,Support at Home U65 Learning Disability,5899,Social Care - Direct Payments,30/09/2020,3110829178,586.56,Redacted Personal Data 
http://statistics.data.gov.uk/id/local-authority/38,Oxfordshire County Council,Property Cleaning,4060,Cleaning Materials,07/09/2020,2200791639,586.70,Seldram Supplies
http://statistics.data.gov.uk/id/local-authority/38,Oxfordshire County Council,Contingency Home Care,5689,,15/09/2020,3110823972,587.36,Oxford University Hospitals NHS FT
http://statistics.data.gov.uk/id/local-authority/38,Oxfordshire County Council,NURSERY ED FUND,5537,Payments to Other Establishments,02/09/2020,3110814929,588.34,Catherine Campbell
http://statistics.data.gov.uk/id/local-authority/38,Oxfordshire County Council,NURSERY ED FUND,5537,Payments to Other Establishments,02/09/2020,3110815018,588.34,Samantha Gadsby (Childminder)
http://statistics.data.gov.uk/id/local-authority/38,Oxfordshire County Council,NURSERY ED FUND,5537,Payments to Other Establishments,02/09/2020,3110815023,588.34,Sarah Cooksley
http://statistics.data.gov.uk/id/local-authority/38,Oxfordshire County Council,Support at Home U65 Learning Disability,5899,Social Care - Direct Payments,02/09/2020,3110813974,588.40,Purple Conversation Com In Co (DP)
http://statistics.data.gov.uk/id/local-authority/38,Oxfordshire County Council,Support at Home U65 Learning Disability,5899,Social Care - Direct Payments,29/09/2020,3110827820,588.40,Purple Conversation Com In Co (DP)
http://statistics.data.gov.uk/id/local-authority/38,Oxfordshire County Council,EDUCATION & LEARNING ADMINISTRATION,2040,Agency Staff,11/09/2020,3110823008,588.76,Allen Associates (Oxford) Limited
http://statistics.data.gov.uk/id/local-authority/38,Oxfordshire County Council,Support at Home 65+ Learning Disability,5688,,10/09/2020,3110821499,588.81,The Laurels (Witney)
http://statistics.data.gov.uk/id/local-authority/38,Oxfordshire County Council,PREMISES,4070,Cleaning services,10/09/2020,2200793484,589.30,D F Williams Cleaning Services Ltd
http://statistics.data.gov.uk/id/local-authority/38,Oxfordshire County Council,Planned preventative Maintenance,3787,Premises Repairs,02/09/2020,2200790531,590.00,Metro Rod Ltd (Oxon & West Bucks)
http://statistics.data.gov.uk/id/local-authority/38,Oxfordshire County Council,Planned preventative Maintenance,3787,Premises Repairs,02/09/2020,2200790598,590.00,Metro Rod Ltd (Oxon & West Bucks)
http://statistics.data.gov.uk/id/local-authority/38,Oxfordshire County Council,Planned preventative Maintenance,3787,Premises Repairs,02/09/2020,2200790599,590.00,Metro Rod Ltd (Oxon & West Bucks)
http://statistics.data.gov.uk/id/local-authority/38,Oxfordshire County Council,Planned preventative Maintenance,3787,Premises Repairs,02/09/2020,2200790601,590.00,Metro Rod Ltd (Oxon & West Bucks)
http://statistics.data.gov.uk/id/local-authority/38,Oxfordshire County Council,Support at Home U65 Physical Support,5899,Social Care - Direct Payments,02/09/2020,3110813733,590.00,Purple Conversation Com In Co (DP)
http://statistics.data.gov.uk/id/local-authority/38,Oxfordshire County Council,Support at Home U65 Physical Support,5899,Social Care - Direct Payments,29/09/2020,3110827581,590.00,Purple Conversation Com In Co (DP)
http://statistics.data.gov.uk/id/local-authority/38,Oxfordshire County Council,FAM GRP CONFERENCES,5668,Technical and Professional Consultant F,07/09/2020,2200791952,590.00,Sandra Woodward
http://statistics.data.gov.uk/id/local-authority/38,Oxfordshire County Council,VOIDS/VACANCY COSTS,3945,Rent,10/09/2020,3110819286,590.01,Oxford Citizens Housing Association
http://statistics.data.gov.uk/id/local-authority/38,Oxfordshire County Council,Support at Home 65+ Physical Support,5689,,15/09/2020,3110823209,590.63,Alina Homecare
http://statistics.data.gov.uk/id/local-authority/38,Oxfordshire County Council,Support at Home 65+ Mental Health,5899,Social Care - Direct Payments,01/09/2020,3110812442,591.00,Redacted Personal Data 
http://statistics.data.gov.uk/id/local-authority/38,Oxfordshire County Council,Support at Home 65+ Mental Health,5899,Social Care - Direct Payments,30/09/2020,3110829096,591.00,Redacted Personal Data 
http://statistics.data.gov.uk/id/local-authority/38,Oxfordshire County Council,VOIDS/VACANCY COSTS,3945,Rent,10/09/2020,3110819277,591.99,Oxford Citizens Housing Association
http://statistics.data.gov.uk/id/local-authority/38,Oxfordshire County Council,Support at Home U65 Other /Soc Isolation,5690,,10/09/2020,3110819196,592.80,Style Acre
http://statistics.data.gov.uk/id/local-authority/38,Oxfordshire County Council,Support at Home U65 Learning Disability,5690,,10/09/2020,3110819206,592.80,Style Acre
http://statistics.data.gov.uk/id/local-authority/38,Oxfordshire County Council,Support at Home U65 Learning Disability,5690,,10/09/2020,3110818924,593.49,Turnstyle
http://statistics.data.gov.uk/id/local-authority/38,Oxfordshire County Council,Support at Home U65 Physical Support,5899,Social Care - Direct Payments,02/09/2020,3110814003,593.84,Purple Conversation Com In Co (DP)
http://statistics.data.gov.uk/id/local-authority/38,Oxfordshire County Council,Support at Home U65 Physical Support,5899,Social Care - Direct Payments,29/09/2020,3110827850,593.84,Purple Conversation Com In Co (DP)
http://statistics.data.gov.uk/id/local-authority/38,Oxfordshire County Council,Support at Home U65 Mental Health,5899,Social Care - Direct Payments,02/09/2020,3110814139,594.00,Purple Conversation Com In Co (DP)
http://statistics.data.gov.uk/id/local-authority/38,Oxfordshire County Council,Support at Home U65 Mental Health,5899,Social Care - Direct Payments,29/09/2020,3110827983,594.00,Purple Conversation Com In Co (DP)
http://statistics.data.gov.uk/id/local-authority/38,Oxfordshire County Council,Care Packages & Placements- LD - OCC,5227,Other Transport Arrangements,02/09/2020,3110815407,594.00,Streamline Peppard Taxi
http://statistics.data.gov.uk/id/local-authority/38,Oxfordshire County Council,Support at Home 65+ Physical Support,5689,,15/09/2020,3110823416,594.73,Caremark (West Oxfordshire & Cherwe
http://statistics.data.gov.uk/id/local-authority/38,Oxfordshire County Council,CAP CHRGES-PRIM SCHS,8102,Payments to main contractor,02/09/2020,2200790460,595.00,Amity Insulation Services Limited
http://statistics.data.gov.uk/id/local-authority/38,Oxfordshire County Council,South FSS Statutory - Abingdon,4940,Other Services,03/09/2020,3110815532,595.00,OCC One Time Vendor
http://statistics.data.gov.uk/id/local-authority/38,Oxfordshire County Council,Support at Home 65+ Physical Support,5698,,09/09/2020,3110817722,595.19,Bridges Home Care Ltd
http://statistics.data.gov.uk/id/local-authority/38,Oxfordshire County Council,LIBRARY COLLECTIONS,4539,"Books, DVDs and CDs",02/09/2020,3110815499,595.71,ASKEWS & HOLTS LIBRARY SERVICES LTD
http://statistics.data.gov.uk/id/local-authority/38,Oxfordshire County Council,Support at Home U65 Physical Support,5899,Social Care - Direct Payments,02/09/2020,3110813728,596.00,Purple Conversation Com In Co (DP)
http://statistics.data.gov.uk/id/local-authority/38,Oxfordshire County Council,Support at Home U65 Physical Support,5899,Social Care - Direct Payments,29/09/2020,3110827576,596.00,Purple Conversation Com In Co (DP)
http://statistics.data.gov.uk/id/local-authority/38,Oxfordshire County Council,Property Cleaning,4060,Cleaning Materials,23/09/2020,2200798829,596.00,Seldram Supplies
http://statistics.data.gov.uk/id/local-authority/38,Oxfordshire County Council,Support at Home 65+ Physical Support,5689,,15/09/2020,3110823402,596.04,Caremark (West Oxfordshire & Cherwe
http://statistics.data.gov.uk/id/local-authority/38,Oxfordshire County Council,Support at Home 65+ Physical Support,5689,,15/09/2020,3110823889,596.28,Oasis Private Care Ltd
http://statistics.data.gov.uk/id/local-authority/38,Oxfordshire County Council,Delegated Health Tasks  - Over 65,5691,,01/09/2020,3110812313,596.84,Bluebird Care (Oxford South & West)
http://statistics.data.gov.uk/id/local-authority/38,Oxfordshire County Council,Delegated Health Tasks  - Over 65,5691,,30/09/2020,3110829878,596.84,Bluebird Care (Oxford South & West)
http://statistics.data.gov.uk/id/local-authority/38,Oxfordshire County Council,TRAINING MANAGEMENT,3105,Training related expenditure,30/09/2020,2200801153,597.00,GMCA
http://statistics.data.gov.uk/id/local-authority/38,Oxfordshire County Council,Contingency Home Care,5689,,15/09/2020,3110823976,597.36,Oxford University Hospitals NHS FT
http://statistics.data.gov.uk/id/local-authority/38,Oxfordshire County Council,SEN TRANSPORT,5227,Other Transport Arrangements,07/09/2020,3110816154,598.00,Black and White Cars T/A Banbury Ta
http://statistics.data.gov.uk/id/local-authority/38,Oxfordshire County Council,Support at Home 65+ Memory & Cognition,5899,Social Care - Direct Payments,30/09/2020,3110829454,598.00,Redacted Personal Data 
http://statistics.data.gov.uk/id/local-authority/38,Oxfordshire County Council,Support at Home U65 Mental Health,5689,,15/09/2020,3110823455,598.18,Casa Care Ltd
http://statistics.data.gov.uk/id/local-authority/38,Oxfordshire County Council,ContrO ASC Payments Control Account,5554,Childrens' Social Care - Direct Payments,25/09/2020,3110827157,598.26,Redacted Personal Data 
http://statistics.data.gov.uk/id/local-authority/38,Oxfordshire County Council,Care Packages & Placements- LD - OCC,5227,Other Transport Arrangements,16/09/2020,3110824883,598.40,Oxon Transport Services Ltd
http://statistics.data.gov.uk/id/local-authority/38,Oxfordshire County Council,SPECIAL GUARDIANSHIP,5661,B*Carriageway pre surf. dressing patchin,01/09/2020,3110813616,598.42,Redacted Personal Data 
http://statistics.data.gov.uk/id/local-authority/38,Oxfordshire County Council,Support at Home 65+ Physical Support,5689,,15/09/2020,3110823463,598.59,Casa Care Ltd
http://statistics.data.gov.uk/id/local-authority/38,Oxfordshire County Council,SEN TRANSPORT,4322,"Season Tickets - Bus, Rail & Ferry",15/09/2020,3110823128,599.00,Oxford Bus Company Ltd
http://statistics.data.gov.uk/id/local-authority/38,Oxfordshire County Council,Support at Home 65+ Physical Support,5698,,09/09/2020,3110817885,599.02,Day & Night Care Assistance
http://statistics.data.gov.uk/id/local-authority/38,Oxfordshire County Council,Central FSS Statutory - Barton,5394,Other Expenses,01/09/2020,9300048141,599.20,OCC SS Oxford City Div 1 Cash
http://statistics.data.gov.uk/id/local-authority/38,Oxfordshire County Council,Support at Home 65+ Physical Support,5698,,09/09/2020,3110817933,599.46,Day & Night Care Assistance
http://statistics.data.gov.uk/id/local-authority/38,Oxfordshire County Council,LEGAL SERVICES,5251,Legal Costs,02/09/2020,2200790702,600.00,Alex Perry
http://statistics.data.gov.uk/id/local-authority/38,Oxfordshire County Council,SEN TRANSPORT,5227,Other Transport Arrangements,30/09/2020,3110827359,600.00,C&M Management Services Ltd
http://statistics.data.gov.uk/id/local-authority/38,Oxfordshire County Council,SEN TRANSPORT,5227,Other Transport Arrangements,30/09/2020,3110827363,600.00,C&M Management Services Ltd
http://statistics.data.gov.uk/id/local-authority/38,Oxfordshire County Council,LEGAL SERVICES,5251,Legal Costs,30/09/2020,2200800875,600.00,David Marusza
http://statistics.data.gov.uk/id/local-authority/38,Oxfordshire County Council,Contolling Migration,5668,Technical and Professional Consultant F,21/09/2020,2200797675,600.00,Dr Hilary Walker
http://statistics.data.gov.uk/id/local-authority/38,Oxfordshire County Council,Support at Home 65+ Mental Health,5899,Social Care - Direct Payments,01/09/2020,3110812444,600.00,Redacted Personal Data 
http://statistics.data.gov.uk/id/local-authority/38,Oxfordshire County Council,Support at Home 65+ Mental Health,5899,Social Care - Direct Payments,30/09/2020,3110829097,600.00,Redacted Personal Data 
http://statistics.data.gov.uk/id/local-authority/38,Oxfordshire County Council,ALTERNATIVE PROVISIO,4940,Other Services,21/09/2020,2200797426,600.00,FLEET TUTORS
http://statistics.data.gov.uk/id/local-authority/38,Oxfordshire County Council,Support at Home U65 Learning Disability,5227,Other Transport Arrangements,03/09/2020,3110815537,600.00,Go Green Taxis
http://statistics.data.gov.uk/id/local-authority/38,Oxfordshire County Council,SEN TRANSPORT,5227,Other Transport Arrangements,30/09/2020,3110827426,600.00,Her Ride Limited
http://statistics.data.gov.uk/id/local-authority/38,Oxfordshire County Council,LEGAL SERVICES,5251,Legal Costs,07/09/2020,2200791973,600.00,Miss Chloe Wilkins
http://statistics.data.gov.uk/id/local-authority/38,Oxfordshire County Council,LEGAL SERVICES,5251,Legal Costs,24/09/2020,2200799137,600.00,Miss Justine Ramsden
http://statistics.data.gov.uk/id/local-authority/38,Oxfordshire County Council,Central FSS Statutory - Blackbird Leys,4940,Other Services,25/09/2020,3110827072,600.00,OCC One Time Vendor
http://statistics.data.gov.uk/id/local-authority/38,Oxfordshire County Council,Support at Home U65 Learning Disability,5227,Other Transport Arrangements,10/09/2020,3110818352,600.00,Oxon Transport Services Ltd
http://statistics.data.gov.uk/id/local-authority/38,Oxfordshire County Council,Support at Home U65 Learning Disability,5899,Social Care - Direct Payments,02/09/2020,3110813734,600.00,Purple Conversation Com In Co (DP)
http://statistics.data.gov.uk/id/local-authority/38,Oxfordshire County Council,Support at Home U65 Learning Disability,5899,Social Care - Direct Payments,02/09/2020,3110813812,600.00,Purple Conversation Com In Co (DP)
http://statistics.data.gov.uk/id/local-authority/38,Oxfordshire County Council,Support at Home U65 Physical Support,5899,Social Care - Direct Payments,02/09/2020,3110813948,600.00,Purple Conversation Com In Co (DP)
http://statistics.data.gov.uk/id/local-authority/38,Oxfordshire County Council,Support at Home U65 Learning Disability,5899,Social Care - Direct Payments,02/09/2020,3110814037,600.00,Purple Conversation Com In Co (DP)
http://statistics.data.gov.uk/id/local-authority/38,Oxfordshire County Council,Support at Home U65 Learning Disability,5899,Social Care - Direct Payments,02/09/2020,3110814038,600.00,Purple Conversation Com In Co (DP)
http://statistics.data.gov.uk/id/local-authority/38,Oxfordshire County Council,Support at Home U65 Learning Disability,5899,Social Care - Direct Payments,02/09/2020,3110814111,600.00,Purple Conversation Com In Co (DP)
http://statistics.data.gov.uk/id/local-authority/38,Oxfordshire County Council,Support at Home 65+ Learning Disability,5899,Social Care - Direct Payments,02/09/2020,3110814371,600.00,Purple Conversation Com In Co (DP)
http://statistics.data.gov.uk/id/local-authority/38,Oxfordshire County Council,Support at Home U65 Learning Disability,5899,Social Care - Direct Payments,29/09/2020,3110827582,600.00,Purple Conversation Com In Co (DP)
http://statistics.data.gov.uk/id/local-authority/38,Oxfordshire County Council,Support at Home U65 Autism /Abated,5899,Social Care - Direct Payments,29/09/2020,3110827660,600.00,Purple Conversation Com In Co (DP)
http://statistics.data.gov.uk/id/local-authority/38,Oxfordshire County Council,Support at Home U65 Physical Support,5899,Social Care - Direct Payments,29/09/2020,3110827793,600.00,Purple Conversation Com In Co (DP)
http://statistics.data.gov.uk/id/local-authority/38,Oxfordshire County Council,Support at Home U65 Learning Disability,5899,Social Care - Direct Payments,29/09/2020,3110827885,600.00,Purple Conversation Com In Co (DP)
http://statistics.data.gov.uk/id/local-authority/38,Oxfordshire County Council,Support at Home U65 Learning Disability,5899,Social Care - Direct Payments,29/09/2020,3110827886,600.00,Purple Conversation Com In Co (DP)
http://statistics.data.gov.uk/id/local-authority/38,Oxfordshire County Council,Support at Home U65 Learning Disability,5899,Social Care - Direct Payments,29/09/2020,3110827956,600.00,Purple Conversation Com In Co (DP)
http://statistics.data.gov.uk/id/local-authority/38,Oxfordshire County Council,Support at Home 65+ Learning Disability,5899,Social Care - Direct Payments,29/09/2020,3110828215,600.00,Purple Conversation Com In Co (DP)
http://statistics.data.gov.uk/id/local-authority/38,Oxfordshire County Council,Support at Home U65 Learning Disability,5899,Social Care - Direct Payments,29/09/2020,3110828251,600.00,Purple Conversation Com In Co (DP)
http://statistics.data.gov.uk/id/local-authority/38,Oxfordshire County Council,TREE MAINT OPS,5526,Payments to Private Contractors,09/09/2020,2200792746,600.00,Ringrose Tree Surgery Ltd
http://statistics.data.gov.uk/id/local-authority/38,Oxfordshire County Council,MEADOWBROOK TRANSPT,4330,Transport to School Activities,02/09/2020,3110815442,600.00,The Oxfordshire Taxi Company Ltd T/
http://statistics.data.gov.uk/id/local-authority/38,Oxfordshire County Council,SEN TRANSPORT,4330,Transport to School Activities,24/09/2020,3110826850,600.00,The Oxfordshire Taxi Company Ltd T/
http://statistics.data.gov.uk/id/local-authority/38,Oxfordshire County Council,LEGAL SERVICES,5251,Legal Costs,24/09/2020,2200799024,600.00,Vicky Reynolds
http://statistics.data.gov.uk/id/local-authority/38,Oxfordshire County Council,Support at Home 65+ Physical Support,5698,,09/09/2020,3110818049,600.75,KCARE NURSING AGENCY
http://statistics.data.gov.uk/id/local-authority/38,Oxfordshire County Council,Support at Home U65 Learning Disability,5697,,23/09/2020,3110826655,600.83,Style Acre
http://statistics.data.gov.uk/id/local-authority/38,Oxfordshire County Council,Support at Home 65+ Physical Support,5689,,15/09/2020,3110823505,601.69,Oxfordshire Crossroads
http://statistics.data.gov.uk/id/local-authority/38,Oxfordshire County Council,Support at Home U65 Learning Disability,5690,,10/09/2020,3110818647,601.71,MacIntyre Care (Womaston)
http://statistics.data.gov.uk/id/local-authority/38,Oxfordshire County Council,Support at Home U65 Learning Disability,5690,,10/09/2020,3110818698,601.71,MacIntyre Care (Womaston)
http://statistics.data.gov.uk/id/local-authority/38,Oxfordshire County Council,Support at Home U65 Physical Support,5696,,08/09/2020,3110816485,602.08,Orders of St John Care Trust
http://statistics.data.gov.uk/id/local-authority/38,Oxfordshire County Council,Support at Home U65 Learning Disability,5688,,10/09/2020,3110818538,602.30,ADVANCE HOUSING & SUPPORT LTD
http://statistics.data.gov.uk/id/local-authority/38,Oxfordshire County Council,Support at Home U65 Learning Disability,5688,,10/09/2020,3110818590,602.30,ADVANCE HOUSING & SUPPORT LTD
http://statistics.data.gov.uk/id/local-authority/38,Oxfordshire County Council,Support at Home 65+ Physical Support,5698,,09/09/2020,3110818168,602.34,Oxford Private Care
http://statistics.data.gov.uk/id/local-authority/38,Oxfordshire County Council,Support at Home 65+ Physical Support,5696,,08/09/2020,3110816446,602.86,Orders of St John Care Trust
http://statistics.data.gov.uk/id/local-authority/38,Oxfordshire County Council,Support at Home 65+ Physical Support,5696,,08/09/2020,3110816385,602.97,Orders of St John Care Trust
http://statistics.data.gov.uk/id/local-authority/38,Oxfordshire County Council,Support at Home 65+ Physical Support,5689,,15/09/2020,3110823716,603.41,Harino Care
http://statistics.data.gov.uk/id/local-authority/38,Oxfordshire County Council,A4260 and A44 Corridor Imps,5526,Payments to Private Contractors,18/09/2020,2200797217,603.41,Skanska Construction UK Ltd Sp
http://statistics.data.gov.uk/id/local-authority/38,Oxfordshire County Council,OPERATIONS,4498,Health and Safety Equipment,10/09/2020,2200793406,603.50,Lighthouse (Uk) Ltd
http://statistics.data.gov.uk/id/local-authority/38,Oxfordshire County Council,Support at Home U65 Learning Disability,5899,Social Care - Direct Payments,02/09/2020,3110814210,604.32,Purple Conversation Com In Co (DP)
http://statistics.data.gov.uk/id/local-authority/38,Oxfordshire County Council,Support at Home U65 Learning Disability,5899,Social Care - Direct Payments,29/09/2020,3110828052,604.32,Purple Conversation Com In Co (DP)
http://statistics.data.gov.uk/id/local-authority/38,Oxfordshire County Council,2 YEAR OLD FUNDING,5537,Payments to Other Establishments,07/09/2020,3110815955,604.80,Natalie Huckin
http://statistics.data.gov.uk/id/local-authority/38,Oxfordshire County Council,Support at Home U65 Sensory Support,5899,Social Care - Direct Payments,02/09/2020,3110813884,604.80,Purple Conversation Com In Co (DP)
http://statistics.data.gov.uk/id/local-authority/38,Oxfordshire County Council,Support at Home U65 Sensory Support,5899,Social Care - Direct Payments,29/09/2020,3110827732,604.80,Purple Conversation Com In Co (DP)
http://statistics.data.gov.uk/id/local-authority/38,Oxfordshire County Council,Support at Home U65 Autism /Abated,5899,Social Care - Direct Payments,01/09/2020,3110812849,605.08,Redacted Personal Data 
http://statistics.data.gov.uk/id/local-authority/38,Oxfordshire County Council,Support at Home U65 Autism /Abated,5899,Social Care - Direct Payments,30/09/2020,3110829421,605.08,Redacted Personal Data 
http://statistics.data.gov.uk/id/local-authority/38,Oxfordshire County Council,POST 16 SEN,4330,Transport to School Activities,24/09/2020,3110826858,605.20,The Oxfordshire Taxi Company Ltd T/
http://statistics.data.gov.uk/id/local-authority/38,Oxfordshire County Council,Support at Home U65 Learning Disability,5697,,09/09/2020,3110817193,605.76,Life Path Trust Ltd
http://statistics.data.gov.uk/id/local-authority/38,Oxfordshire County Council,LD Continuing Care - Sup at Home - U65,5688,,10/09/2020,3110819575,605.83,Mencap Contracts
http://statistics.data.gov.uk/id/local-authority/38,Oxfordshire County Council,Support at Home U65 Other /Soc Isolation,5693,,09/09/2020,3110817181,606.22,Autism at Kingwood Limited
http://statistics.data.gov.uk/id/local-authority/38,Oxfordshire County Council,SEN TRANSPORT,5227,Other Transport Arrangements,02/09/2020,3110815345,607.74,AKR Ltd
http://statistics.data.gov.uk/id/local-authority/38,Oxfordshire County Council,TRANSPORT COSTS,4330,Transport to School Activities,08/09/2020,3110816297,608.00,Banbury Taxis
http://statistics.data.gov.uk/id/local-authority/38,Oxfordshire County Council,Support at Home U65 Physical Support,5899,Social Care - Direct Payments,02/09/2020,3110814393,608.00,Purple Conversation Com In Co (DP)
http://statistics.data.gov.uk/id/local-authority/38,Oxfordshire County Council,Support at Home 65+ Physical Support,5698,,09/09/2020,3110817991,608.22,Day & Night Care Assistance
http://statistics.data.gov.uk/id/local-authority/38,Oxfordshire County Council,Support at Home 65+ Memory & Cognition,5686,,10/09/2020,3110819532,608.57,Orders of St John
http://statistics.data.gov.uk/id/local-authority/38,Oxfordshire County Council,Support at Home 65+ Physical Support,5698,,09/09/2020,3110817746,609.16,Bridges Home Care Ltd
http://statistics.data.gov.uk/id/local-authority/38,Oxfordshire County Council,LIBRARY COLLECTIONS,4539,"Books, DVDs and CDs",02/09/2020,3110815494,609.81,ASKEWS & HOLTS LIBRARY SERVICES LTD
http://statistics.data.gov.uk/id/local-authority/38,Oxfordshire County Council,Delegated Health Tasks  - Over 65,5691,,23/09/2020,3110826682,610.00,George Springall Homecare
http://statistics.data.gov.uk/id/local-authority/38,Oxfordshire County Council,Support at Home U65 MH OBC Contract,5691,,15/09/2020,3110823177,610.34,BANTU Carers Ltd
http://statistics.data.gov.uk/id/local-authority/38,Oxfordshire County Council,Support at Home U65 Physical Support,5698,,09/09/2020,3110818122,610.47,Oxford Private Care
http://statistics.data.gov.uk/id/local-authority/38,Oxfordshire County Council,Support at Home U65 Learning Disability,5690,,10/09/2020,3110818466,610.85,Life Path Trust Ltd
http://statistics.data.gov.uk/id/local-authority/38,Oxfordshire County Council,Support at Home U65 Learning Disability,5690,,10/09/2020,3110818569,610.85,Life Path Trust Ltd
http://statistics.data.gov.uk/id/local-authority/38,Oxfordshire County Council,Support at Home U65 Learning Disability,5690,,10/09/2020,3110818633,610.85,Life Path Trust Ltd
http://statistics.data.gov.uk/id/local-authority/38,Oxfordshire County Council,Support at Home 65+ Physical Support,5689,,15/09/2020,3110824067,611.06,PLL Care Services
http://statistics.data.gov.uk/id/local-authority/38,Oxfordshire County Council,Support at Home 65+ Physical Support,5698,,09/09/2020,3110817794,611.20,Charterville Care At Home Ltd
http://statistics.data.gov.uk/id/local-authority/38,Oxfordshire County Council,VOIDS/VACANCY COSTS,3945,Rent,10/09/2020,3110819269,611.87,Oxford Citizens Housing Association
http://statistics.data.gov.uk/id/local-authority/38,Oxfordshire County Council,GYPSY & TRAVELLER SV,4940,Other Services,02/09/2020,2200790387,612.00,Advanced Pest Control Ltd
http://statistics.data.gov.uk/id/local-authority/38,Oxfordshire County Council,COUNTY PRINT FINSHRS,4531,Materials,03/09/2020,2200791088,612.00,Fine Print (Services) Ltd
http://statistics.data.gov.uk/id/local-authority/38,Oxfordshire County Council,Support at Home U65 Learning Disability,5899,Social Care - Direct Payments,01/09/2020,3110812921,612.00,Redacted Personal Data 
http://statistics.data.gov.uk/id/local-authority/38,Oxfordshire County Council,Support at Home U65 Learning Disability,5899,Social Care - Direct Payments,30/09/2020,3110829496,612.00,Redacted Personal Data 
http://statistics.data.gov.uk/id/local-authority/38,Oxfordshire County Council,Support at Home U65 Physical Support,5899,Social Care - Direct Payments,02/09/2020,3110814140,612.00,Purple Conversation Com In Co (DP)
http://statistics.data.gov.uk/id/local-authority/38,Oxfordshire County Council,Support at Home U65 Physical Support,5899,Social Care - Direct Payments,29/09/2020,3110827984,612.00,Purple Conversation Com In Co (DP)
http://statistics.data.gov.uk/id/local-authority/38,Oxfordshire County Council,SEN TRANSPORT,5227,Other Transport Arrangements,02/09/2020,3110815408,612.00,The Oxfordshire Taxi Company Ltd T/
http://statistics.data.gov.uk/id/local-authority/38,Oxfordshire County Council,SWOP APL,4934,,01/09/2020,3110818334,612.48,Jhoots Pharmacy
http://statistics.data.gov.uk/id/local-authority/38,Oxfordshire County Council,Support at Home 65+ Physical Support,5689,,15/09/2020,3110823592,612.87,Golden Services Care Ltd
http://statistics.data.gov.uk/id/local-authority/38,Oxfordshire County Council,Support at Home U65 Learning Disability,5690,,10/09/2020,3110818454,612.90,Mencap Contracts
http://statistics.data.gov.uk/id/local-authority/38,Oxfordshire County Council,OTHER HOUSEHOLD,5526,Payments to Private Contractors,16/09/2020,2200795943,613.07,GRUNDON WASTE MANAGEMENT LTD
http://statistics.data.gov.uk/id/local-authority/38,Oxfordshire County Council,Support at Home 65+ Physical Support,5698,,09/09/2020,3110817667,613.08,Acquire Care Ltd
http://statistics.data.gov.uk/id/local-authority/38,Oxfordshire County Council,Support at Home U65 Mental Health,5689,,15/09/2020,3110824103,613.13,Response Organisation
http://statistics.data.gov.uk/id/local-authority/38,Oxfordshire County Council,Support at Home 65+ Physical Support,5693,,09/09/2020,3110817379,613.72,We-Care-Recruitment Ltd
http://statistics.data.gov.uk/id/local-authority/38,Oxfordshire County Council,Support at Home U65 Physical Support,5689,,15/09/2020,3110823327,613.88,Care Outlook Ltd
http://statistics.data.gov.uk/id/local-authority/38,Oxfordshire County Council,Support at Home 65+ Physical Support,5689,,15/09/2020,3110823373,614.41,Caremark (West Oxfordshire & Cherwe
http://statistics.data.gov.uk/id/local-authority/38,Oxfordshire County Council,TRAFF SIGNALS MTCE,4531,Materials,02/09/2020,2200790691,614.72,Robelec Ltd
http://statistics.data.gov.uk/id/local-authority/38,Oxfordshire County Council,Support at Home 65+ Physical Support,5689,,15/09/2020,3110823687,615.10,Harino Care
http://statistics.data.gov.uk/id/local-authority/38,Oxfordshire County Council,Support at Home U65 Learning Disability,5899,Social Care - Direct Payments,30/09/2020,3110829521,615.16,Redacted Personal Data 
http://statistics.data.gov.uk/id/local-authority/38,Oxfordshire County Council,Support at Home 65+ Memory & Cognition,5899,Social Care - Direct Payments,01/09/2020,3110812494,615.32,Redacted Personal Data 
http://statistics.data.gov.uk/id/local-authority/38,Oxfordshire County Council,Support at Home 65+ Memory & Cognition,5899,Social Care - Direct Payments,30/09/2020,3110829581,615.32,Redacted Personal Data 
http://statistics.data.gov.uk/id/local-authority/38,Oxfordshire County Council,Support at Home 65+ Physical Support,5698,,09/09/2020,3110817719,615.37,Bridges Home Care Ltd
http://statistics.data.gov.uk/id/local-authority/38,Oxfordshire County Council,Support at Home 65+ Physical Support,5689,,15/09/2020,3110823332,615.38,Care Outlook Ltd
http://statistics.data.gov.uk/id/local-authority/38,Oxfordshire County Council,ICT Operations & Maintenance,5072,Telephone - Equipment,08/09/2020,2200792155,615.44,Vodafone Demon Account
http://statistics.data.gov.uk/id/local-authority/38,Oxfordshire County Council,NURSERY ED FUND,5537,Payments to Other Establishments,02/09/2020,3110814760,615.53,Magpies Edward Feild
http://statistics.data.gov.uk/id/local-authority/38,Oxfordshire County Council,Support at Home U65 Physical Support,5899,Social Care - Direct Payments,02/09/2020,3110814053,615.84,Purple Conversation Com In Co (DP)
http://statistics.data.gov.uk/id/local-authority/38,Oxfordshire County Council,Support at Home U65 Physical Support,5899,Social Care - Direct Payments,29/09/2020,3110827901,615.84,Purple Conversation Com In Co (DP)
http://statistics.data.gov.uk/id/local-authority/38,Oxfordshire County Council,PROCUREMENT,4232,Vehicle Fuel,10/09/2020,2200793417,615.88,VecTec Ltd
http://statistics.data.gov.uk/id/local-authority/38,Oxfordshire County Council,COMMUNITY & ROAD SAFETY,3103,Other Training Courses and Qualification,09/09/2020,2200793152,616.00,Avanti Cycling
http://statistics.data.gov.uk/id/local-authority/38,Oxfordshire County Council,Support at Home 65+ Physical Support,5899,Social Care - Direct Payments,02/09/2020,3110813752,616.00,Purple Conversation Com In Co (DP)
http://statistics.data.gov.uk/id/local-authority/38,Oxfordshire County Council,Support at Home U65 Physical Support,5899,Social Care - Direct Payments,02/09/2020,3110814070,616.00,Purple Conversation Com In Co (DP)
http://statistics.data.gov.uk/id/local-authority/38,Oxfordshire County Council,Support at Home 65+ Physical Support,5899,Social Care - Direct Payments,29/09/2020,3110827599,616.00,Purple Conversation Com In Co (DP)
http://statistics.data.gov.uk/id/local-authority/38,Oxfordshire County Council,Support at Home U65 Physical Support,5899,Social Care - Direct Payments,29/09/2020,3110827917,616.00,Purple Conversation Com In Co (DP)
http://statistics.data.gov.uk/id/local-authority/38,Oxfordshire County Council,ECH Central Costs,5688,,10/09/2020,3110818594,616.46,Orders of St John Care Trust
http://statistics.data.gov.uk/id/local-authority/38,Oxfordshire County Council,Support at Home 65+ Physical Support,5698,,09/09/2020,3110818115,616.46,Oxford Private Care
http://statistics.data.gov.uk/id/local-authority/38,Oxfordshire County Council,Support at Home U65 Learning Disability,5899,Social Care - Direct Payments,01/09/2020,3110812900,616.88,Redacted Personal Data 
http://statistics.data.gov.uk/id/local-authority/38,Oxfordshire County Council,Support at Home U65 Learning Disability,5899,Social Care - Direct Payments,30/09/2020,3110829474,616.88,Redacted Personal Data 
http://statistics.data.gov.uk/id/local-authority/38,Oxfordshire County Council,Support at Home 65+ Physical Support,5696,,08/09/2020,3110816375,618.42,Orders of St John Care Trust
http://statistics.data.gov.uk/id/local-authority/38,Oxfordshire County Council,Support at Home U65 Learning Disability,5696,,08/09/2020,3110816394,618.42,Orders of St John Care Trust
http://statistics.data.gov.uk/id/local-authority/38,Oxfordshire County Council,Support at Home U65 Learning Disability,5696,,08/09/2020,3110816418,618.42,Orders of St John Care Trust
http://statistics.data.gov.uk/id/local-authority/38,Oxfordshire County Council,Support at Home 65+ Physical Support,5696,,08/09/2020,3110816433,618.42,Orders of St John Care Trust
http://statistics.data.gov.uk/id/local-authority/38,Oxfordshire County Council,Support at Home 65+ Physical Support,5696,,08/09/2020,3110816436,618.42,Orders of St John Care Trust
http://statistics.data.gov.uk/id/local-authority/38,Oxfordshire County Council,Support at Home U65 Learning Disability,5690,,10/09/2020,3110818602,618.64,Life Path Trust Ltd
http://statistics.data.gov.uk/id/local-authority/38,Oxfordshire County Council,ECH Central Costs,5696,,10/09/2020,3110818476,618.81,BPHA Limited
http://statistics.data.gov.uk/id/local-authority/38,Oxfordshire County Council,Support at Home U65 MH OBC Contract,5689,,15/09/2020,3110824108,619.50,Response Organisation
http://statistics.data.gov.uk/id/local-authority/38,Oxfordshire County Council,Support at Home 65+ Physical Support,5698,,09/09/2020,3110818156,619.72,Oxford Private Care
http://statistics.data.gov.uk/id/local-authority/38,Oxfordshire County Council,Support at Home 65+ Physical Support,5899,Social Care - Direct Payments,01/09/2020,3110812716,620.00,Redacted Personal Data 
http://statistics.data.gov.uk/id/local-authority/38,Oxfordshire County Council,Support at Home 65+ Physical Support,5899,Social Care - Direct Payments,30/09/2020,3110829288,620.00,Redacted Personal Data 
http://statistics.data.gov.uk/id/local-authority/38,Oxfordshire County Council,Support at Home 65+ Physical Support,5899,Social Care - Direct Payments,02/09/2020,3110814421,620.00,Purple Conversation Com In Co (DP)
http://statistics.data.gov.uk/id/local-authority/38,Oxfordshire County Council,Support at Home 65+ Physical Support,5899,Social Care - Direct Payments,29/09/2020,3110828264,620.00,Purple Conversation Com In Co (DP)
http://statistics.data.gov.uk/id/local-authority/38,Oxfordshire County Council,SEN TRANSPORT,5227,Other Transport Arrangements,08/09/2020,3110816255,620.00,The Oxfordshire Taxi Company Ltd T/
http://statistics.data.gov.uk/id/local-authority/38,Oxfordshire County Council,Planned preventative Maintenance,3787,Premises Repairs,08/09/2020,2200792569,620.00,Windrush Door & Window Services Ltd
http://statistics.data.gov.uk/id/local-authority/38,Oxfordshire County Council,Contingency Home Care,5689,,15/09/2020,3110823985,620.03,Oxford University Hospitals NHS FT
http://statistics.data.gov.uk/id/local-authority/38,Oxfordshire County Council,Support at Home U65 Physical Support,5696,,08/09/2020,3110816521,620.06,Orders of St John Care Trust
http://statistics.data.gov.uk/id/local-authority/38,Oxfordshire County Council,Support at Home 65+ Physical Support,5696,,08/09/2020,3110816523,620.06,Orders of St John Care Trust
http://statistics.data.gov.uk/id/local-authority/38,Oxfordshire County Council,Support at Home 65+ Physical Support,5689,,15/09/2020,3110823180,620.29,Alina Homecare
http://statistics.data.gov.uk/id/local-authority/38,Oxfordshire County Council,Support at Home U65 Learning Disability,5899,Social Care - Direct Payments,01/09/2020,3110812671,620.32,Redacted Personal Data 
http://statistics.data.gov.uk/id/local-authority/38,Oxfordshire County Council,Support at Home U65 Learning Disability,5899,Social Care - Direct Payments,30/09/2020,3110829243,620.32,Redacted Personal Data 
http://statistics.data.gov.uk/id/local-authority/38,Oxfordshire County Council,Support at Home U65 Learning Disability,5696,,08/09/2020,3110816497,620.45,Orders of St John Care Trust
http://statistics.data.gov.uk/id/local-authority/38,Oxfordshire County Council,Support at Home 65+ Physical Support,5689,,15/09/2020,3110823203,621.07,Alina Homecare
http://statistics.data.gov.uk/id/local-authority/38,Oxfordshire County Council,Continuing Care - Support at Home - 65+,5691,,30/09/2020,3110829847,621.12,JESCARE SERVICES LTD
http://statistics.data.gov.uk/id/local-authority/38,Oxfordshire County Council,Continuing Care - Support at Home - 65+,5691,,30/09/2020,3110829849,621.12,JESCARE SERVICES LTD
http://statistics.data.gov.uk/id/local-authority/38,Oxfordshire County Council,COMM DRAWDOWN FUNDNG,8004,Design Consultant,18/09/2020,2200797311,621.18,Skanska Construction UK Ltd Sp
http://statistics.data.gov.uk/id/local-authority/38,Oxfordshire County Council,Support at Home 65+ Physical Support,5698,,09/09/2020,3110817953,621.37,Day & Night Care Assistance
http://statistics.data.gov.uk/id/local-authority/38,Oxfordshire County Council,Covid-19 Home Support Planned Hours,5693,,09/09/2020,3110817297,621.92,Stepping Stones
http://statistics.data.gov.uk/id/local-authority/38,Oxfordshire County Council,Support at Home 65+ Physical Support,5899,Social Care - Direct Payments,29/09/2020,3110827918,622.76,Purple Conversation Com In Co (DP)
http://statistics.data.gov.uk/id/local-authority/38,Oxfordshire County Council,Support at Home U65 Learning Disability,5690,,10/09/2020,3110819221,622.88,Style Acre
http://statistics.data.gov.uk/id/local-authority/38,Oxfordshire County Council,NURSERY ED FUND,5537,Payments to Other Establishments,02/09/2020,3110814934,622.94,Claire Clark
http://statistics.data.gov.uk/id/local-authority/38,Oxfordshire County Council,NURSERY ED FUND,5537,Payments to Other Establishments,02/09/2020,3110814959,622.94,Hazel Bridle
http://statistics.data.gov.uk/id/local-authority/38,Oxfordshire County Council,NURSERY ED FUND,5537,Payments to Other Establishments,02/09/2020,3110814980,622.94,Kayleigh James
http://statistics.data.gov.uk/id/local-authority/38,Oxfordshire County Council,NURSERY ED FUND,5537,Payments to Other Establishments,02/09/2020,3110814990,622.94,Lucy Bourne
http://statistics.data.gov.uk/id/local-authority/38,Oxfordshire County Council,NURSERY ED FUND,5537,Payments to Other Establishments,02/09/2020,3110815013,622.94,Rebecca Aldred
http://statistics.data.gov.uk/id/local-authority/38,Oxfordshire County Council,NURSERY ED FUND,5537,Payments to Other Establishments,02/09/2020,3110815025,622.94,Sarah Threlfall
http://statistics.data.gov.uk/id/local-authority/38,Oxfordshire County Council,NURSERY ED FUND,5537,Payments to Other Establishments,02/09/2020,3110815043,622.94,Zoe Heaton
http://statistics.data.gov.uk/id/local-authority/38,Oxfordshire County Council,Support at Home 65+ Physical Support,5693,,16/09/2020,3110824953,623.00,The Caring Company (Oxon)
http://statistics.data.gov.uk/id/local-authority/38,Oxfordshire County Council,CHC Fast Track - Sup at Homes - Over 65,5691,,25/09/2020,3110827142,623.25,OCC One Time Vendor
http://statistics.data.gov.uk/id/local-authority/38,Oxfordshire County Council,Support at Home U65 Physical Support,5698,,09/09/2020,3110817866,623.28,Charterville Care At Home Ltd
http://statistics.data.gov.uk/id/local-authority/38,Oxfordshire County Council,COMM DRAWDOWN FUNDNG,8004,Design Consultant,18/09/2020,2200797338,623.50,Skanska Construction UK Ltd Sp
http://statistics.data.gov.uk/id/local-authority/38,Oxfordshire County Council,Support at Home U65 Learning Disability,5688,,10/09/2020,3110819694,623.59,Dimensions (UK) Ltd
http://statistics.data.gov.uk/id/local-authority/38,Oxfordshire County Council,SEN TRANSPORT,5227,Other Transport Arrangements,07/09/2020,3110816158,624.00,Banbury Taxis
http://statistics.data.gov.uk/id/local-authority/38,Oxfordshire County Council,Support at Home 65+ Other /Soc Isolation,5899,Social Care - Direct Payments,01/09/2020,3110812367,624.00,Redacted Personal Data 
http://statistics.data.gov.uk/id/local-authority/38,Oxfordshire County Council,Support at Home 65+ Other /Soc Isolation,5899,Social Care - Direct Payments,30/09/2020,3110829059,624.00,Redacted Personal Data 
http://statistics.data.gov.uk/id/local-authority/38,Oxfordshire County Council,Central FSS Statutory - Barton,5227,Other Transport Arrangements,30/09/2020,3110827434,624.00,Her Ride Limited
http://statistics.data.gov.uk/id/local-authority/38,Oxfordshire County Council,Covid-19 Home Support Planned Hours,5693,,09/09/2020,3110817250,624.00,Pennyhooks Farm Trust
http://statistics.data.gov.uk/id/local-authority/38,Oxfordshire County Council,Support at Home 65+ Physical Support,5899,Social Care - Direct Payments,02/09/2020,3110814069,624.00,Purple Conversation Com In Co (DP)
http://statistics.data.gov.uk/id/local-authority/38,Oxfordshire County Council,Support at Home U65 Learning Disability,5899,Social Care - Direct Payments,02/09/2020,3110814169,624.00,Purple Conversation Com In Co (DP)
http://statistics.data.gov.uk/id/local-authority/38,Oxfordshire County Council,Support at Home U65 Physical Support,5899,Social Care - Direct Payments,02/09/2020,3110814513,624.00,Purple Conversation Com In Co (DP)
http://statistics.data.gov.uk/id/local-authority/38,Oxfordshire County Council,Support at Home 65+ Physical Support,5899,Social Care - Direct Payments,29/09/2020,3110827916,624.00,Purple Conversation Com In Co (DP)
http://statistics.data.gov.uk/id/local-authority/38,Oxfordshire County Council,Support at Home U65 Learning Disability,5899,Social Care - Direct Payments,29/09/2020,3110828012,624.00,Purple Conversation Com In Co (DP)
http://statistics.data.gov.uk/id/local-authority/38,Oxfordshire County Council,Support at Home U65 Physical Support,5899,Social Care - Direct Payments,29/09/2020,3110828356,624.00,Purple Conversation Com In Co (DP)
http://statistics.data.gov.uk/id/local-authority/38,Oxfordshire County Council,Support at Home U65 Learning Disability,5690,,10/09/2020,3110818997,624.00,Style Acre
http://statistics.data.gov.uk/id/local-authority/38,Oxfordshire County Council,Support at Home U65 Learning Disability,5690,,10/09/2020,3110818862,624.00,Turnstyle
http://statistics.data.gov.uk/id/local-authority/38,Oxfordshire County Council,Support at Home U65 Learning Disability,5690,,10/09/2020,3110818920,624.00,Turnstyle
http://statistics.data.gov.uk/id/local-authority/38,Oxfordshire County Council,Support at Home U65 Learning Disability,5899,Social Care - Direct Payments,01/09/2020,3110812694,624.40,Redacted Personal Data 
http://statistics.data.gov.uk/id/local-authority/38,Oxfordshire County Council,Support at Home U65 Learning Disability,5899,Social Care - Direct Payments,30/09/2020,3110829266,624.40,Redacted Personal Data 
http://statistics.data.gov.uk/id/local-authority/38,Oxfordshire County Council,EDUCATION & LEARNING ADMINISTRATION,2040,Agency Staff,11/09/2020,3110823005,624.46,Allen Associates (Oxford) Limited
http://statistics.data.gov.uk/id/local-authority/38,Oxfordshire County Council,Support at Home U65 Other /Soc Isolation,5690,,10/09/2020,3110818905,624.90,Turnstyle
http://statistics.data.gov.uk/id/local-authority/38,Oxfordshire County Council,Planned preventative Maintenance,4111,Security Costs,29/09/2020,2200800713,625.00,Darren Bryan Security Services
http://statistics.data.gov.uk/id/local-authority/38,Oxfordshire County Council,Planned preventative Maintenance,3787,Premises Repairs,02/09/2020,2200790600,625.00,Metro Rod Ltd (Oxon & West Bucks)
http://statistics.data.gov.uk/id/local-authority/38,Oxfordshire County Council,CORONER,5201,Funeral Director Services,04/09/2020,3110815828,625.00,OCC One Time Vendor
http://statistics.data.gov.uk/id/local-authority/38,Oxfordshire County Council,SEN TRANSPORT,5227,Other Transport Arrangements,08/09/2020,3110816203,625.60,The Oxfordshire Taxi Company Ltd T/
http://statistics.data.gov.uk/id/local-authority/38,Oxfordshire County Council,Support at Home 65+ Physical Support,5899,Social Care - Direct Payments,29/09/2020,3110827903,626.33,Purple Conversation Com In Co (DP)
http://statistics.data.gov.uk/id/local-authority/38,Oxfordshire County Council,Delegated Health Tasks  - Over 65,5698,,09/09/2020,3110818132,627.17,Oxford Private Care
http://statistics.data.gov.uk/id/local-authority/38,Oxfordshire County Council,Support at Home 65+ Physical Support,5689,,15/09/2020,3110823278,627.41,Amber Healthcare Personnel Ltd
http://statistics.data.gov.uk/id/local-authority/38,Oxfordshire County Council,,1441,Uncleared Misc Income Receipts,11/09/2020,3110823004,627.46,Completely Care Recruitment Cons
http://statistics.data.gov.uk/id/local-authority/38,Oxfordshire County Council,Support at Home 65+ Physical Support,5698,,09/09/2020,3110818005,627.50,Day & Night Care Assistance
http://statistics.data.gov.uk/id/local-authority/38,Oxfordshire County Council,Support at Home U65 Learning Disability,5899,Social Care - Direct Payments,01/09/2020,3110812599,628.00,Redacted Personal Data 
http://statistics.data.gov.uk/id/local-authority/38,Oxfordshire County Council,Support at Home U65 Learning Disability,5899,Social Care - Direct Payments,30/09/2020,3110829182,628.00,Redacted Personal Data 
http://statistics.data.gov.uk/id/local-authority/38,Oxfordshire County Council,MUSEUMS COLLECTIONS,4940,Other Services,14/09/2020,2200795128,628.66,Restore plc
http://statistics.data.gov.uk/id/local-authority/38,Oxfordshire County Council,Support at Home U65 Physical Support,5689,,15/09/2020,3110823599,629.43,Golden Services Care Ltd
http://statistics.data.gov.uk/id/local-authority/38,Oxfordshire County Council,Support at Home U65 Physical Support,5698,,09/09/2020,3110818054,629.63,KCARE NURSING AGENCY
http://statistics.data.gov.uk/id/local-authority/38,Oxfordshire County Council,Support at Home 65+ Physical Support,5689,,15/09/2020,3110823865,629.65,My Carer Ltd
http://statistics.data.gov.uk/id/local-authority/38,Oxfordshire County Council,Support at Home U65 Learning Disability,5688,,10/09/2020,3110818543,629.83,ADVANCE HOUSING & SUPPORT LTD
http://statistics.data.gov.uk/id/local-authority/38,Oxfordshire County Council,Support at Home U65 Learning Disability,5688,,10/09/2020,3110818548,629.83,ADVANCE HOUSING & SUPPORT LTD
http://statistics.data.gov.uk/id/local-authority/38,Oxfordshire County Council,Support at Home 65+ Learning Disability,5688,,10/09/2020,3110819527,629.83,Mencap Contracts
http://statistics.data.gov.uk/id/local-authority/38,Oxfordshire County Council,Support at Home U65 Learning Disability,5688,,10/09/2020,3110819616,629.83,Mencap Contracts
http://statistics.data.gov.uk/id/local-authority/38,Oxfordshire County Council,Support at Home U65 Learning Disability,5688,,10/09/2020,3110819664,629.83,Mencap Contracts
http://statistics.data.gov.uk/id/local-authority/38,Oxfordshire County Council,Support at Home U65 Learning Disability,5688,,10/09/2020,3110820523,629.83,The Brandon Trust
http://statistics.data.gov.uk/id/local-authority/38,Oxfordshire County Council,Support at Home 65+ Physical Support,5689,,15/09/2020,3110823341,630.00,Care Outlook Ltd
http://statistics.data.gov.uk/id/local-authority/38,Oxfordshire County Council,Support at Home 65+ Physical Support,5693,,09/09/2020,3110817066,630.56,1st Homecare (Oxford) Ltd
http://statistics.data.gov.uk/id/local-authority/38,Oxfordshire County Council,EDUCATION & LEARNING ADMINISTRATION,2040,Agency Staff,11/09/2020,3110823030,630.57,Allen Associates (Oxford) Limited
http://statistics.data.gov.uk/id/local-authority/38,Oxfordshire County Council,Support at Home 65+ Memory & Cognition,5899,Social Care - Direct Payments,02/09/2020,3110814135,631.20,Purple Conversation Com In Co (DP)
http://statistics.data.gov.uk/id/local-authority/38,Oxfordshire County Council,Support at Home 65+ Memory & Cognition,5899,Social Care - Direct Payments,29/09/2020,3110827979,631.20,Purple Conversation Com In Co (DP)
http://statistics.data.gov.uk/id/local-authority/38,Oxfordshire County Council,Support at Home U65 Physical Support,5689,,15/09/2020,3110823825,631.60,Lifecarers Limited
http://statistics.data.gov.uk/id/local-authority/38,Oxfordshire County Council,SEN TRANSPORT,4330,Transport to School Activities,02/09/2020,3110815331,632.40,The Oxfordshire Taxi Company Ltd T/
http://statistics.data.gov.uk/id/local-authority/38,Oxfordshire County Council,Delegated Health Tasks  - Over 65,5691,,01/09/2020,3110812315,632.72,Bluebird Care (Oxford South & West)
http://statistics.data.gov.uk/id/local-authority/38,Oxfordshire County Council,Delegated Health Tasks  - Over 65,5691,,01/09/2020,3110812316,632.72,Bluebird Care (Oxford South & West)
http://statistics.data.gov.uk/id/local-authority/38,Oxfordshire County Council,Delegated Health Tasks  - Under 65,5691,,01/09/2020,3110812317,632.72,Bluebird Care (Oxford South & West)
http://statistics.data.gov.uk/id/local-authority/38,Oxfordshire County Council,Continuing Care - Support at Home - U65,5691,,07/09/2020,3110816596,632.72,Bluebird Care (Oxford South & West)
http://statistics.data.gov.uk/id/local-authority/38,Oxfordshire County Council,Delegated Health Tasks  - Under 65,5691,,30/09/2020,3110829866,632.72,Bluebird Care (Oxford South & West)
http://statistics.data.gov.uk/id/local-authority/38,Oxfordshire County Council,Delegated Health Tasks  - Over 65,5691,,30/09/2020,3110829871,632.72,Bluebird Care (Oxford South & West)
http://statistics.data.gov.uk/id/local-authority/38,Oxfordshire County Council,Delegated Health Tasks  - Over 65,5691,,30/09/2020,3110829875,632.72,Bluebird Care (Oxford South & West)
http://statistics.data.gov.uk/id/local-authority/38,Oxfordshire County Council,Support at Home 65+ Physical Support,5689,,15/09/2020,3110823469,632.72,Oxfordshire Crossroads
http://statistics.data.gov.uk/id/local-authority/38,Oxfordshire County Council,Support at Home 65+ Physical Support,5698,,09/09/2020,3110817841,632.82,Charterville Care At Home Ltd
http://statistics.data.gov.uk/id/local-authority/38,Oxfordshire County Council,Support at Home U65 Physical Support,5696,,08/09/2020,3110816355,632.94,Orders of St John Care Trust
http://statistics.data.gov.uk/id/local-authority/38,Oxfordshire County Council,Contingency Home Care,5689,,15/09/2020,3110823933,633.37,Oxford University Hospitals NHS FT
http://statistics.data.gov.uk/id/local-authority/38,Oxfordshire County Council,Support at Home U65 MH OBC Contract,5691,,02/09/2020,3110812377,633.60,MerewoodHealthcare Services Limited
http://statistics.data.gov.uk/id/local-authority/38,Oxfordshire County Council,SWOP APL,4934,,01/09/2020,3110818381,633.60,The Leys Pharmacy Rosehill (Koasta)
http://statistics.data.gov.uk/id/local-authority/38,Oxfordshire County Council,Support at Home 65+ Physical Support,5696,,14/09/2020,2200795134,633.77,Orders of St John Care Trust
http://statistics.data.gov.uk/id/local-authority/38,Oxfordshire County Council,Support at Home U65 MH OBC Contract,5691,,15/09/2020,3110823199,634.00,Care With Dignity Partnerships
http://statistics.data.gov.uk/id/local-authority/38,Oxfordshire County Council,Support at Home 65+ Physical Support,5689,,15/09/2020,3110824068,634.13,PLL Care Services
http://statistics.data.gov.uk/id/local-authority/38,Oxfordshire County Council,Support at Home 65+ Physical Support,5689,,15/09/2020,3110823607,634.33,Goldsmith Personnel Ltd
http://statistics.data.gov.uk/id/local-authority/38,Oxfordshire County Council,Support at Home 65+ Physical Support,5698,,09/09/2020,3110817758,634.38,Bridges Home Care Ltd
http://statistics.data.gov.uk/id/local-authority/38,Oxfordshire County Council,FOSTERING MAIN,5532,B*Fostering - Loan Equipment,22/09/2020,3110825928,634.87,Redacted Personal Data 
http://statistics.data.gov.uk/id/local-authority/38,Oxfordshire County Council,Support at Home U65 Physical Support,5689,,15/09/2020,3110823665,635.26,Greigcare Home Service
http://statistics.data.gov.uk/id/local-authority/38,Oxfordshire County Council,Support at Home 65+ Physical Support,5689,,15/09/2020,3110823686,635.30,Harino Care
http://statistics.data.gov.uk/id/local-authority/38,Oxfordshire County Council,Support at Home 65+ Physical Support,5696,,02/09/2020,2200790574,635.43,Orders of St John Care Trust
http://statistics.data.gov.uk/id/local-authority/38,Oxfordshire County Council,FPT SOUTH/VALE,4525,Furniture,29/09/2020,3110828944,635.50,Redacted Personal Data 
http://statistics.data.gov.uk/id/local-authority/38,Oxfordshire County Council,Support at Home 65+ Physical Support,5698,,09/09/2020,3110817864,636.03,Charterville Care At Home Ltd
http://statistics.data.gov.uk/id/local-authority/38,Oxfordshire County Council,Support at Home 65+ Physical Support,5696,,17/09/2020,2200796419,636.12,Orders of St John Care Trust
http://statistics.data.gov.uk/id/local-authority/38,Oxfordshire County Council,Support at Home 65+ Physical Support,5693,,09/09/2020,3110817367,636.44,We-Care-Recruitment Ltd
http://statistics.data.gov.uk/id/local-authority/38,Oxfordshire County Council,Support at Home U65 Learning Disability,5696,,08/09/2020,3110816507,636.79,Orders of St John Care Trust
http://statistics.data.gov.uk/id/local-authority/38,Oxfordshire County Council,L&D CORE PROGRAMME,3100,Educational and Vocational Training,18/09/2020,2200796936,637.00,Premier Partnership
http://statistics.data.gov.uk/id/local-authority/38,Oxfordshire County Council,Support at Home 65+ Physical Support,5698,,09/09/2020,3110818130,637.01,Oxford Private Care
http://statistics.data.gov.uk/id/local-authority/38,Oxfordshire County Council,SHARED LIVES,5555,Payments to Carers,10/09/2020,3110818866,637.68,Redacted Personal Data 
http://statistics.data.gov.uk/id/local-authority/38,Oxfordshire County Council,Support at Home 65+ Physical Support,5696,,02/09/2020,2200790571,638.36,Orders of St John Care Trust
http://statistics.data.gov.uk/id/local-authority/38,Oxfordshire County Council,Delegated Health Tasks  - Over 65,5691,,16/09/2020,3110825126,638.42,Bluebird Care (Oxford South & West)
http://statistics.data.gov.uk/id/local-authority/38,Oxfordshire County Council,Support at Home 65+ Physical Support,5689,,15/09/2020,3110823664,638.63,Greigcare Home Service
http://statistics.data.gov.uk/id/local-authority/38,Oxfordshire County Council,Support at Home 65+ Physical Support,5698,,09/09/2020,3110817861,639.09,Charterville Care At Home Ltd
http://statistics.data.gov.uk/id/local-authority/38,Oxfordshire County Council,Support at Home 65+ Physical Support,5689,,15/09/2020,3110823259,639.25,Allied Health-Services Limited
http://statistics.data.gov.uk/id/local-authority/38,Oxfordshire County Council,Support at Home 65+ Memory & Cognition,5689,,15/09/2020,3110823996,639.35,Pechiv Ltd
http://statistics.data.gov.uk/id/local-authority/38,Oxfordshire County Council,SWOP APL,4934,,01/09/2020,3110818380,639.36,The Leys Pharmacy
http://statistics.data.gov.uk/id/local-authority/38,Oxfordshire County Council,Support at Home 65+ Physical Support,5698,,09/09/2020,3110817754,639.81,Bridges Home Care Ltd
http://statistics.data.gov.uk/id/local-authority/38,Oxfordshire County Council,TRANSPORT COSTS,4330,Transport to School Activities,02/09/2020,3110815322,639.92,The Oxfordshire Taxi Company Ltd T/
http://statistics.data.gov.uk/id/local-authority/38,Oxfordshire County Council,Support at Home 65+ Physical Support,5899,Social Care - Direct Payments,01/09/2020,3110812551,640.00,Redacted Personal Data 
http://statistics.data.gov.uk/id/local-authority/38,Oxfordshire County Council,Support at Home 65+ Physical Support,5899,Social Care - Direct Payments,30/09/2020,3110829152,640.00,Redacted Personal Data 
http://statistics.data.gov.uk/id/local-authority/38,Oxfordshire County Council,SEN TRANSPORT,5227,Other Transport Arrangements,30/09/2020,3110827354,640.00,C&M Management Services Ltd
http://statistics.data.gov.uk/id/local-authority/38,Oxfordshire County Council,SEN TRANSPORT,5227,Other Transport Arrangements,30/09/2020,3110827365,640.00,C&M Management Services Ltd
http://statistics.data.gov.uk/id/local-authority/38,Oxfordshire County Council,Support at Home U65 Learning Disability,5899,Social Care - Direct Payments,01/09/2020,3110812748,640.00,Redacted Personal Data 
http://statistics.data.gov.uk/id/local-authority/38,Oxfordshire County Council,Support at Home U65 Learning Disability,5899,Social Care - Direct Payments,30/09/2020,3110829320,640.00,Redacted Personal Data 
http://statistics.data.gov.uk/id/local-authority/38,Oxfordshire County Council,Support at Home U65 Learning Disability,5227,Other Transport Arrangements,10/09/2020,3110818361,640.00,Oxon Transport Services Ltd
http://statistics.data.gov.uk/id/local-authority/38,Oxfordshire County Council,Support at Home U65 Physical Support,5899,Social Care - Direct Payments,02/09/2020,3110813686,640.00,Purple Conversation Com In Co (DP)
http://statistics.data.gov.uk/id/local-authority/38,Oxfordshire County Council,Support at Home U65 Physical Support,5899,Social Care - Direct Payments,02/09/2020,3110813918,640.00,Purple Conversation Com In Co (DP)
http://statistics.data.gov.uk/id/local-authority/38,Oxfordshire County Council,Support at Home U65 Physical Support,5899,Social Care - Direct Payments,02/09/2020,3110814187,640.00,Purple Conversation Com In Co (DP)
http://statistics.data.gov.uk/id/local-authority/38,Oxfordshire County Council,Support at Home U65 Physical Support,5899,Social Care - Direct Payments,29/09/2020,3110827515,640.00,Purple Conversation Com In Co (DP)
http://statistics.data.gov.uk/id/local-authority/38,Oxfordshire County Council,Support at Home U65 Physical Support,5899,Social Care - Direct Payments,29/09/2020,3110827766,640.00,Purple Conversation Com In Co (DP)
http://statistics.data.gov.uk/id/local-authority/38,Oxfordshire County Council,Support at Home U65 Physical Support,5899,Social Care - Direct Payments,29/09/2020,3110828030,640.00,Purple Conversation Com In Co (DP)
http://statistics.data.gov.uk/id/local-authority/38,Oxfordshire County Council,SEN TRANSPORT,4330,Transport to School Activities,02/09/2020,3110815448,640.00,The Oxfordshire Taxi Company Ltd T/
http://statistics.data.gov.uk/id/local-authority/38,Oxfordshire County Council,Support at Home 65+ Physical Support,5689,,15/09/2020,3110823169,640.04,Alina Homecare
http://statistics.data.gov.uk/id/local-authority/38,Oxfordshire County Council,POST 16 SEN,4330,Transport to School Activities,16/09/2020,3110825295,641.75,Oxon Transport Services Ltd
http://statistics.data.gov.uk/id/local-authority/38,Oxfordshire County Council,Support at Home U65 Learning Disability,5690,,10/09/2020,3110818693,641.83,MacIntyre Care (Womaston)
http://statistics.data.gov.uk/id/local-authority/38,Oxfordshire County Council,UASC 16&17,5549,B*Fostering Allowance - Regulation 38,09/09/2020,3110817228,641.98,Redacted Personal Data 
http://statistics.data.gov.uk/id/local-authority/38,Oxfordshire County Council,FOSTERING MAIN,5549,B*Fostering Allowance - Regulation 38,01/09/2020,3110813268,641.98,Redacted Personal Data 
http://statistics.data.gov.uk/id/local-authority/38,Oxfordshire County Council,Support at Home 65+ Physical Support,5681,,10/09/2020,3110819341,643.00,Orders of St John
http://statistics.data.gov.uk/id/local-authority/38,Oxfordshire County Council,Support at Home 65+ Physical Support,5698,,09/09/2020,3110818166,643.01,Oxford Private Care
http://statistics.data.gov.uk/id/local-authority/38,Oxfordshire County Council,Support at Home U65 Physical Support,5899,Social Care - Direct Payments,02/09/2020,3110813967,643.12,Purple Conversation Com In Co (DP)
http://statistics.data.gov.uk/id/local-authority/38,Oxfordshire County Council,Support at Home U65 Physical Support,5899,Social Care - Direct Payments,29/09/2020,3110827813,643.12,Purple Conversation Com In Co (DP)
http://statistics.data.gov.uk/id/local-authority/38,Oxfordshire County Council,LEGAL BUDGET,5251,Legal Costs,30/09/2020,2200800979,643.26,Oxford Human Sciences Ltd
http://statistics.data.gov.uk/id/local-authority/38,Oxfordshire County Council,FPT CITY,4940,Other Services,22/09/2020,3110826083,643.71,Redacted Personal Data 
http://statistics.data.gov.uk/id/local-authority/38,Oxfordshire County Council,FPT CITY,4940,Other Services,22/09/2020,3110826082,643.72,Redacted Personal Data 
http://statistics.data.gov.uk/id/local-authority/38,Oxfordshire County Council,Support at Home 65+ Physical Support,5698,,09/09/2020,3110817859,643.80,Charterville Care At Home Ltd
http://statistics.data.gov.uk/id/local-authority/38,Oxfordshire County Council,GYPSY & TRAVELLER SV,4940,Other Services,29/09/2020,2200800739,644.00,Advanced Pest Control Ltd
http://statistics.data.gov.uk/id/local-authority/38,Oxfordshire County Council,Support at Home 65+ Physical Support,5693,,16/09/2020,3110825011,644.00,Kare Plus Oxford
http://statistics.data.gov.uk/id/local-authority/38,Oxfordshire County Council,FOSTERING MAIN,5549,B*Fostering Allowance - Regulation 38,01/09/2020,3110813058,644.00,Redacted Personal Data 
